Workbook

Sheet Instructions

Sheet Diet
W1: Created by: Lucas Taylor
F2: DIET PLANNER | H2: v.2.2
B4: Date | C4: Day | D4: Time | E4: Category | F4: Item | G4: QTY | H4: Base Unit | I4: Total Calories | J4: Fat Calories | K4: Fat | P4: Cholesterol (mg) | Q4: Sodium (mg) | R4: Potassium (mg) | S4: Carbs | X4: Protein (g)
K5: Total (g) | L5: Sat. (g) | M5: P.Unsat. (g) | N5: M.Unsat. (g) | O5: Trans (g) | S5: Total (g) | T5: Fiber (g) | U5: Sol. (g) | V5: Insol. (g) | W5: Sugar (g)
B6: STANDARD DAY | D6: 08:00:00 | E6: Beverage | F6: Coffee | G6: 1 | H6: =IF(Item="","",VLOOKUP(Item,Food,Database!C$1,FALSE)) -> 8 oz | I6: =IF(OR(Item="",Qty=""),"",Qty*VLOOKUP(Item,Food,Database!D$1,FALSE)) -> 2 | J6: =IF(OR(Item="",Qty=""),"",Qty*VLOOKUP(Item,Food,Database!E$1,FALSE)) -> 0 | K6: =IF(OR(Item="",Qty=""),"",Qty*VLOOKUP(Item,Food,Database!F$1,FALSE)) -> 0 | L6: =IF(OR(Item="",Qty=""),"",Qty*VLOOKUP(Item,Food,Database!G$1,FALSE)) -> 0 | M6: =IF(OR(Item="",Qty=""),"",Qty*VLOOKUP(Item,Food,Database!H$1,FALSE)) -> 0 | N6: =IF(OR(Item="",Qty=""),"",Qty*VLOOKUP(Item,Food,Database!I$1,FALSE)) -> 0 | O6: =IF(OR(Item="",Qty=""),"",Qty*VLOOKUP(Item,Food,Database!J$1,FALSE)) -> 0 | P6: =IF(OR(Item="",Qty=""),"",Qty*VLOOKUP(Item,Food,Database!K$1,FALSE)) -> 0 | Q6: =IF(OR(Item="",Qty=""),"",Qty*VLOOKUP(Item,Food,Database!L$1,FALSE)) -> 0 | R6: =IF(OR(Item="",Qty=""),"",Qty*VLOOKUP(Item,Food,Database!M$1,FALSE)) -> 0 | S6: =IF(OR(Item="",Qty=""),"",Qty*VLOOKUP(Item,Food,Database!N$1,FALSE)) -> 0 | T6: =IF(OR(Item="",Qty=""),"",Qty*VLOOKUP(Item,Food,Database!O$1,FALSE)) -> 0 | U6: =IF(OR(Item="",Qty=""),"",Qty*VLOOKUP(Item,Food,Database!P$1,FALSE)) -> 0 | V6: =IF(OR(Item="",Qty=""),"",Qty*VLOOKUP(Item,Food,Database!Q$1,FALSE)) -> 0 | W6: =IF(OR(Item="",Qty=""),"",Qty*VLOOKUP(Item,Food,Database!R$1,FALSE)) -> 0 | X6: =IF(OR(Item="",Qty=""),"",Qty*VLOOKUP(Item,Food,Database!S$1,FALSE)) -> 0
E7: Supplement | F7: Syntha-6 | G7: 1 | H7: =IF(Item="","",VLOOKUP(Item,Food,Database!C$1,FALSE)) -> 1 scoop (44 g) | I7: =IF(OR(Item="",Qty=""),"",Qty*VLOOKUP(Item,Food,Database!D$1,FALSE)) -> 200 | J7: =IF(OR(Item="",Qty=""),"",Qty*VLOOKUP(Item,Food,Database!E$1,FALSE)) -> 54 | K7: =IF(OR(Item="",Qty=""),"",Qty*VLOOKUP(Item,Food,Database!F$1,FALSE)) -> 6 | L7: =IF(OR(Item="",Qty=""),"",Qty*VLOOKUP(Item,Food,Database!G$1,FALSE)) -> 2 | M7: =IF(OR(Item="",Qty=""),"",Qty*VLOOKUP(Item,Food,Database!H$1,FALSE)) -> 0 | N7: =IF(OR(Item="",Qty=""),"",Qty*VLOOKUP(Item,Food,Database!I$1,FALSE)) -> 0 | O7: =IF(OR(Item="",Qty=""),"",Qty*VLOOKUP(Item,Food,Database!J$1,FALSE)) -> 0 | P7: =IF(OR(Item="",Qty=""),"",Qty*VLOOKUP(Item,Food,Database!K$1,FALSE)) -> 55 | Q7: =IF(OR(Item="",Qty=""),"",Qty*VLOOKUP(Item,Food,Database!L$1,FALSE)) -> 220 | R7: =IF(OR(Item="",Qty=""),"",Qty*VLOOKUP(Item,Food,Database!M$1,FALSE)) -> 170 | S7: =IF(OR(Item="",Qty=""),"",Qty*VLOOKUP(Item,Food,Database!N$1,FALSE)) -> 15 | T7: =IF(OR(Item="",Qty=""),"",Qty*VLOOKUP(Item,Food,Database!O$1,FALSE)) -> 5 | U7: =IF(OR(Item="",Qty=""),"",Qty*VLOOKUP(Item,Food,Database!P$1,FALSE)) -> 0 | V7: =IF(OR(Item="",Qty=""),"",Qty*VLOOKUP(Item,Food,Database!Q$1,FALSE)) -> 0 | W7: =IF(OR(Item="",Qty=""),"",Qty*VLOOKUP(Item,Food,Database!R$1,FALSE)) -> 2 | X7: =IF(OR(Item="",Qty=""),"",Qty*VLOOKUP(Item,Food,Database!S$1,FALSE)) -> 22
E8: Dairy | F8: Milk, Non-Fat | G8: 1 | H8: =IF(Item="","",VLOOKUP(Item,Food,Database!C$1,FALSE)) -> 1 cup (8 oz) | I8: =IF(OR(Item="",Qty=""),"",Qty*VLOOKUP(Item,Food,Database!D$1,FALSE)) -> 90 | J8: =IF(OR(Item="",Qty=""),"",Qty*VLOOKUP(Item,Food,Database!E$1,FALSE)) -> 0 | K8: =IF(OR(Item="",Qty=""),"",Qty*VLOOKUP(Item,Food,Database!F$1,FALSE)) -> 0 | L8: =IF(OR(Item="",Qty=""),"",Qty*VLOOKUP(Item,Food,Database!G$1,FALSE)) -> 0 | M8: =IF(OR(Item="",Qty=""),"",Qty*VLOOKUP(Item,Food,Database!H$1,FALSE)) -> 0 | N8: =IF(OR(Item="",Qty=""),"",Qty*VLOOKUP(Item,Food,Database!I$1,FALSE)) -> 0 | O8: =IF(OR(Item="",Qty=""),"",Qty*VLOOKUP(Item,Food,Database!J$1,FALSE)) -> 0 | P8: =IF(OR(Item="",Qty=""),"",Qty*VLOOKUP(Item,Food,Database!K$1,FALSE)) -> 4.9 | Q8: =IF(OR(Item="",Qty=""),"",Qty*VLOOKUP(Item,Food,Database!L$1,FALSE)) -> 125 | R8: =IF(OR(Item="",Qty=""),"",Qty*VLOOKUP(Item,Food,Database!M$1,FALSE)) -> 0 | S8: =IF(OR(Item="",Qty=""),"",Qty*VLOOKUP(Item,Food,Database!N$1,FALSE)) -> 13 | T8: =IF(OR(Item="",Qty=""),"",Qty*VLOOKUP(Item,Food,Database!O$1,FALSE)) -> 0 | U8: =IF(OR(Item="",Qty=""),"",Qty*VLOOKUP(Item,Food,Database!P$1,FALSE)) -> 0 | V8: =IF(OR(Item="",Qty=""),"",Qty*VLOOKUP(Item,Food,Database!Q$1,FALSE)) -> 0 | W8: =IF(OR(Item="",Qty=""),"",Qty*VLOOKUP(Item,Food,Database!R$1,FALSE)) -> 12 | X8: =IF(OR(Item="",Qty=""),"",Qty*VLOOKUP(Item,Food,Database!S$1,FALSE)) -> 8
H9: =IF(Item="","",VLOOKUP(Item,Food,Database!C$1,FALSE)) ->  | I9: =IF(OR(Item="",Qty=""),"",Qty*VLOOKUP(Item,Food,Database!D$1,FALSE)) ->  | J9: =IF(OR(Item="",Qty=""),"",Qty*VLOOKUP(Item,Food,Database!E$1,FALSE)) ->  | K9: =IF(OR(Item="",Qty=""),"",Qty*VLOOKUP(Item,Food,Database!F$1,FALSE)) ->  | L9: =IF(OR(Item="",Qty=""),"",Qty*VLOOKUP(Item,Food,Database!G$1,FALSE)) ->  | M9: =IF(OR(Item="",Qty=""),"",Qty*VLOOKUP(Item,Food,Database!H$1,FALSE)) ->  | N9: =IF(OR(Item="",Qty=""),"",Qty*VLOOKUP(Item,Food,Database!I$1,FALSE)) ->  | O9: =IF(OR(Item="",Qty=""),"",Qty*VLOOKUP(Item,Food,Database!J$1,FALSE)) ->  | P9: =IF(OR(Item="",Qty=""),"",Qty*VLOOKUP(Item,Food,Database!K$1,FALSE)) ->  | Q9: =IF(OR(Item="",Qty=""),"",Qty*VLOOKUP(Item,Food,Database!L$1,FALSE)) ->  | R9: =IF(OR(Item="",Qty=""),"",Qty*VLOOKUP(Item,Food,Database!M$1,FALSE)) ->  | S9: =IF(OR(Item="",Qty=""),"",Qty*VLOOKUP(Item,Food,Database!N$1,FALSE)) ->  | T9: =IF(OR(Item="",Qty=""),"",Qty*VLOOKUP(Item,Food,Database!O$1,FALSE)) ->  | U9: =IF(OR(Item="",Qty=""),"",Qty*VLOOKUP(Item,Food,Database!P$1,FALSE)) ->  | V9: =IF(OR(Item="",Qty=""),"",Qty*VLOOKUP(Item,Food,Database!Q$1,FALSE)) ->  | W9: =IF(OR(Item="",Qty=""),"",Qty*VLOOKUP(Item,Food,Database!R$1,FALSE)) ->  | X9: =IF(OR(Item="",Qty=""),"",Qty*VLOOKUP(Item,Food,Database!S$1,FALSE)) -> 
D10: 10:30:00 | E10: Fruit | F10: Banana | G10: 1 | H10: =IF(Item="","",VLOOKUP(Item,Food,Database!C$1,FALSE)) -> 1 (med) | I10: =IF(OR(Item="",Qty=""),"",Qty*VLOOKUP(Item,Food,Database!D$1,FALSE)) -> 105 | J10: =IF(OR(Item="",Qty=""),"",Qty*VLOOKUP(Item,Food,Database!E$1,FALSE)) -> 4 | K10: =IF(OR(Item="",Qty=""),"",Qty*VLOOKUP(Item,Food,Database!F$1,FALSE)) -> 0.4 | L10: =IF(OR(Item="",Qty=""),"",Qty*VLOOKUP(Item,Food,Database!G$1,FALSE)) -> 0.1 | M10: =IF(OR(Item="",Qty=""),"",Qty*VLOOKUP(Item,Food,Database!H$1,FALSE)) -> 0.1 | N10: =IF(OR(Item="",Qty=""),"",Qty*VLOOKUP(Item,Food,Database!I$1,FALSE)) -> 0 | O10: =IF(OR(Item="",Qty=""),"",Qty*VLOOKUP(Item,Food,Database!J$1,FALSE)) -> 0 | P10: =IF(OR(Item="",Qty=""),"",Qty*VLOOKUP(Item,Food,Database!K$1,FALSE)) -> 0 | Q10: =IF(OR(Item="",Qty=""),"",Qty*VLOOKUP(Item,Food,Database!L$1,FALSE)) -> 1.2 | R10: =IF(OR(Item="",Qty=""),"",Qty*VLOOKUP(Item,Food,Database!M$1,FALSE)) -> 422.4 | S10: =IF(OR(Item="",Qty=""),"",Qty*VLOOKUP(Item,Food,Database!N$1,FALSE)) -> 27 | T10: =IF(OR(Item="",Qty=""),"",Qty*VLOOKUP(Item,Food,Database!O$1,FALSE)) -> 3.1 | U10: =IF(OR(Item="",Qty=""),"",Qty*VLOOKUP(Item,Food,Database!P$1,FALSE)) -> 0 | V10: =IF(OR(Item="",Qty=""),"",Qty*VLOOKUP(Item,Food,Database!Q$1,FALSE)) -> 0 | W10: =IF(OR(Item="",Qty=""),"",Qty*VLOOKUP(Item,Food,Database!R$1,FALSE)) -> 14.4 | X10: =IF(OR(Item="",Qty=""),"",Qty*VLOOKUP(Item,Food,Database!S$1,FALSE)) -> 1.3
E11: Protein | F11: Chicken Breast | G11: 1 | H11: =IF(Item="","",VLOOKUP(Item,Food,Database!C$1,FALSE)) -> 3 oz | I11: =IF(OR(Item="",Qty=""),"",Qty*VLOOKUP(Item,Food,Database!D$1,FALSE)) -> 130 | J11: =IF(OR(Item="",Qty=""),"",Qty*VLOOKUP(Item,Food,Database!E$1,FALSE)) -> 15 | K11: =IF(OR(Item="",Qty=""),"",Qty*VLOOKUP(Item,Food,Database!F$1,FALSE)) -> 1.5 | L11: =IF(OR(Item="",Qty=""),"",Qty*VLOOKUP(Item,Food,Database!G$1,FALSE)) -> 0.5 | M11: =IF(OR(Item="",Qty=""),"",Qty*VLOOKUP(Item,Food,Database!H$1,FALSE)) -> 0 | N11: =IF(OR(Item="",Qty=""),"",Qty*VLOOKUP(Item,Food,Database!I$1,FALSE)) -> 0 | O11: =IF(OR(Item="",Qty=""),"",Qty*VLOOKUP(Item,Food,Database!J$1,FALSE)) -> 0 | P11: =IF(OR(Item="",Qty=""),"",Qty*VLOOKUP(Item,Food,Database!K$1,FALSE)) -> 75 | Q11: =IF(OR(Item="",Qty=""),"",Qty*VLOOKUP(Item,Food,Database!L$1,FALSE)) -> 25 | R11: =IF(OR(Item="",Qty=""),"",Qty*VLOOKUP(Item,Food,Database!M$1,FALSE)) -> 0 | S11: =IF(OR(Item="",Qty=""),"",Qty*VLOOKUP(Item,Food,Database!N$1,FALSE)) -> 0 | T11: =IF(OR(Item="",Qty=""),"",Qty*VLOOKUP(Item,Food,Database!O$1,FALSE)) -> 0 | U11: =IF(OR(Item="",Qty=""),"",Qty*VLOOKUP(Item,Food,Database!P$1,FALSE)) -> 0 | V11: =IF(OR(Item="",Qty=""),"",Qty*VLOOKUP(Item,Food,Database!Q$1,FALSE)) -> 0 | W11: =IF(OR(Item="",Qty=""),"",Qty*VLOOKUP(Item,Food,Database!R$1,FALSE)) -> 0 | X11: =IF(OR(Item="",Qty=""),"",Qty*VLOOKUP(Item,Food,Database!S$1,FALSE)) -> 28
E12: Starch | F12: Rice, Brown | G12: 1 | H12: =IF(Item="","",VLOOKUP(Item,Food,Database!C$1,FALSE)) -> 1 cup | I12: =IF(OR(Item="",Qty=""),"",Qty*VLOOKUP(Item,Food,Database!D$1,FALSE)) -> 218 | J12: =IF(OR(Item="",Qty=""),"",Qty*VLOOKUP(Item,Food,Database!E$1,FALSE)) -> 15 | K12: =IF(OR(Item="",Qty=""),"",Qty*VLOOKUP(Item,Food,Database!F$1,FALSE)) -> 1.6 | L12: =IF(OR(Item="",Qty=""),"",Qty*VLOOKUP(Item,Food,Database!G$1,FALSE)) -> 0.3 | M12: =IF(OR(Item="",Qty=""),"",Qty*VLOOKUP(Item,Food,Database!H$1,FALSE)) -> 0.6 | N12: =IF(OR(Item="",Qty=""),"",Qty*VLOOKUP(Item,Food,Database!I$1,FALSE)) -> 0.6 | O12: =IF(OR(Item="",Qty=""),"",Qty*VLOOKUP(Item,Food,Database!J$1,FALSE)) -> 0 | P12: =IF(OR(Item="",Qty=""),"",Qty*VLOOKUP(Item,Food,Database!K$1,FALSE)) -> 0 | Q12: =IF(OR(Item="",Qty=""),"",Qty*VLOOKUP(Item,Food,Database!L$1,FALSE)) -> 2 | R12: =IF(OR(Item="",Qty=""),"",Qty*VLOOKUP(Item,Food,Database!M$1,FALSE)) -> 154.1 | S12: =IF(OR(Item="",Qty=""),"",Qty*VLOOKUP(Item,Food,Database!N$1,FALSE)) -> 45.8 | T12: =IF(OR(Item="",Qty=""),"",Qty*VLOOKUP(Item,Food,Database!O$1,FALSE)) -> 3.5 | U12: =IF(OR(Item="",Qty=""),"",Qty*VLOOKUP(Item,Food,Database!P$1,FALSE)) -> 0 | V12: =IF(OR(Item="",Qty=""),"",Qty*VLOOKUP(Item,Food,Database!Q$1,FALSE)) -> 0 | W12: =IF(OR(Item="",Qty=""),"",Qty*VLOOKUP(Item,Food,Database!R$1,FALSE)) -> 0 | X12: =IF(OR(Item="",Qty=""),"",Qty*VLOOKUP(Item,Food,Database!S$1,FALSE)) -> 4.5
H13: =IF(Item="","",VLOOKUP(Item,Food,Database!C$1,FALSE)) ->  | I13: =IF(OR(Item="",Qty=""),"",Qty*VLOOKUP(Item,Food,Database!D$1,FALSE)) ->  | J13: =IF(OR(Item="",Qty=""),"",Qty*VLOOKUP(Item,Food,Database!E$1,FALSE)) ->  | K13: =IF(OR(Item="",Qty=""),"",Qty*VLOOKUP(Item,Food,Database!F$1,FALSE)) ->  | L13: =IF(OR(Item="",Qty=""),"",Qty*VLOOKUP(Item,Food,Database!G$1,FALSE)) ->  | M13: =IF(OR(Item="",Qty=""),"",Qty*VLOOKUP(Item,Food,Database!H$1,FALSE)) ->  | N13: =IF(OR(Item="",Qty=""),"",Qty*VLOOKUP(Item,Food,Database!I$1,FALSE)) ->  | O13: =IF(OR(Item="",Qty=""),"",Qty*VLOOKUP(Item,Food,Database!J$1,FALSE)) ->  | P13: =IF(OR(Item="",Qty=""),"",Qty*VLOOKUP(Item,Food,Database!K$1,FALSE)) ->  | Q13: =IF(OR(Item="",Qty=""),"",Qty*VLOOKUP(Item,Food,Database!L$1,FALSE)) ->  | R13: =IF(OR(Item="",Qty=""),"",Qty*VLOOKUP(Item,Food,Database!M$1,FALSE)) ->  | S13: =IF(OR(Item="",Qty=""),"",Qty*VLOOKUP(Item,Food,Database!N$1,FALSE)) ->  | T13: =IF(OR(Item="",Qty=""),"",Qty*VLOOKUP(Item,Food,Database!O$1,FALSE)) ->  | U13: =IF(OR(Item="",Qty=""),"",Qty*VLOOKUP(Item,Food,Database!P$1,FALSE)) ->  | V13: =IF(OR(Item="",Qty=""),"",Qty*VLOOKUP(Item,Food,Database!Q$1,FALSE)) ->  | W13: =IF(OR(Item="",Qty=""),"",Qty*VLOOKUP(Item,Food,Database!R$1,FALSE)) ->  | X13: =IF(OR(Item="",Qty=""),"",Qty*VLOOKUP(Item,Food,Database!S$1,FALSE)) -> 
D14: 13:00:00 | E14: Supplement | F14: Syntha-6 | G14: 1 | H14: =IF(Item="","",VLOOKUP(Item,Food,Database!C$1,FALSE)) -> 1 scoop (44 g) | I14: =IF(OR(Item="",Qty=""),"",Qty*VLOOKUP(Item,Food,Database!D$1,FALSE)) -> 200 | J14: =IF(OR(Item="",Qty=""),"",Qty*VLOOKUP(Item,Food,Database!E$1,FALSE)) -> 54 | K14: =IF(OR(Item="",Qty=""),"",Qty*VLOOKUP(Item,Food,Database!F$1,FALSE)) -> 6 | L14: =IF(OR(Item="",Qty=""),"",Qty*VLOOKUP(Item,Food,Database!G$1,FALSE)) -> 2 | M14: =IF(OR(Item="",Qty=""),"",Qty*VLOOKUP(Item,Food,Database!H$1,FALSE)) -> 0 | N14: =IF(OR(Item="",Qty=""),"",Qty*VLOOKUP(Item,Food,Database!I$1,FALSE)) -> 0 | O14: =IF(OR(Item="",Qty=""),"",Qty*VLOOKUP(Item,Food,Database!J$1,FALSE)) -> 0 | P14: =IF(OR(Item="",Qty=""),"",Qty*VLOOKUP(Item,Food,Database!K$1,FALSE)) -> 55 | Q14: =IF(OR(Item="",Qty=""),"",Qty*VLOOKUP(Item,Food,Database!L$1,FALSE)) -> 220 | R14: =IF(OR(Item="",Qty=""),"",Qty*VLOOKUP(Item,Food,Database!M$1,FALSE)) -> 170 | S14: =IF(OR(Item="",Qty=""),"",Qty*VLOOKUP(Item,Food,Database!N$1,FALSE)) -> 15 | T14: =IF(OR(Item="",Qty=""),"",Qty*VLOOKUP(Item,Food,Database!O$1,FALSE)) -> 5 | U14: =IF(OR(Item="",Qty=""),"",Qty*VLOOKUP(Item,Food,Database!P$1,FALSE)) -> 0 | V14: =IF(OR(Item="",Qty=""),"",Qty*VLOOKUP(Item,Food,Database!Q$1,FALSE)) -> 0 | W14: =IF(OR(Item="",Qty=""),"",Qty*VLOOKUP(Item,Food,Database!R$1,FALSE)) -> 2 | X14: =IF(OR(Item="",Qty=""),"",Qty*VLOOKUP(Item,Food,Database!S$1,FALSE)) -> 22
E15: Dairy | F15: Milk, Non-Fat | G15: 2 | H15: =IF(Item="","",VLOOKUP(Item,Food,Database!C$1,FALSE)) -> 1 cup (8 oz) | I15: =IF(OR(Item="",Qty=""),"",Qty*VLOOKUP(Item,Food,Database!D$1,FALSE)) -> 180 | J15: =IF(OR(Item="",Qty=""),"",Qty*VLOOKUP(Item,Food,Database!E$1,FALSE)) -> 0 | K15: =IF(OR(Item="",Qty=""),"",Qty*VLOOKUP(Item,Food,Database!F$1,FALSE)) -> 0 | L15: =IF(OR(Item="",Qty=""),"",Qty*VLOOKUP(Item,Food,Database!G$1,FALSE)) -> 0 | M15: =IF(OR(Item="",Qty=""),"",Qty*VLOOKUP(Item,Food,Database!H$1,FALSE)) -> 0 | N15: =IF(OR(Item="",Qty=""),"",Qty*VLOOKUP(Item,Food,Database!I$1,FALSE)) -> 0 | O15: =IF(OR(Item="",Qty=""),"",Qty*VLOOKUP(Item,Food,Database!J$1,FALSE)) -> 0 | P15: =IF(OR(Item="",Qty=""),"",Qty*VLOOKUP(Item,Food,Database!K$1,FALSE)) -> 9.8 | Q15: =IF(OR(Item="",Qty=""),"",Qty*VLOOKUP(Item,Food,Database!L$1,FALSE)) -> 250 | R15: =IF(OR(Item="",Qty=""),"",Qty*VLOOKUP(Item,Food,Database!M$1,FALSE)) -> 0 | S15: =IF(OR(Item="",Qty=""),"",Qty*VLOOKUP(Item,Food,Database!N$1,FALSE)) -> 26 | T15: =IF(OR(Item="",Qty=""),"",Qty*VLOOKUP(Item,Food,Database!O$1,FALSE)) -> 0 | U15: =IF(OR(Item="",Qty=""),"",Qty*VLOOKUP(Item,Food,Database!P$1,FALSE)) -> 0 | V15: =IF(OR(Item="",Qty=""),"",Qty*VLOOKUP(Item,Food,Database!Q$1,FALSE)) -> 0 | W15: =IF(OR(Item="",Qty=""),"",Qty*VLOOKUP(Item,Food,Database!R$1,FALSE)) -> 24 | X15: =IF(OR(Item="",Qty=""),"",Qty*VLOOKUP(Item,Food,Database!S$1,FALSE)) -> 16
H16: =IF(Item="","",VLOOKUP(Item,Food,Database!C$1,FALSE)) ->  | I16: =IF(OR(Item="",Qty=""),"",Qty*VLOOKUP(Item,Food,Database!D$1,FALSE)) ->  | J16: =IF(OR(Item="",Qty=""),"",Qty*VLOOKUP(Item,Food,Database!E$1,FALSE)) ->  | K16: =IF(OR(Item="",Qty=""),"",Qty*VLOOKUP(Item,Food,Database!F$1,FALSE)) ->  | L16: =IF(OR(Item="",Qty=""),"",Qty*VLOOKUP(Item,Food,Database!G$1,FALSE)) ->  | M16: =IF(OR(Item="",Qty=""),"",Qty*VLOOKUP(Item,Food,Database!H$1,FALSE)) ->  | N16: =IF(OR(Item="",Qty=""),"",Qty*VLOOKUP(Item,Food,Database!I$1,FALSE)) ->  | O16: =IF(OR(Item="",Qty=""),"",Qty*VLOOKUP(Item,Food,Database!J$1,FALSE)) ->  | P16: =IF(OR(Item="",Qty=""),"",Qty*VLOOKUP(Item,Food,Database!K$1,FALSE)) ->  | Q16: =IF(OR(Item="",Qty=""),"",Qty*VLOOKUP(Item,Food,Database!L$1,FALSE)) ->  | R16: =IF(OR(Item="",Qty=""),"",Qty*VLOOKUP(Item,Food,Database!M$1,FALSE)) ->  | S16: =IF(OR(Item="",Qty=""),"",Qty*VLOOKUP(Item,Food,Database!N$1,FALSE)) ->  | T16: =IF(OR(Item="",Qty=""),"",Qty*VLOOKUP(Item,Food,Database!O$1,FALSE)) ->  | U16: =IF(OR(Item="",Qty=""),"",Qty*VLOOKUP(Item,Food,Database!P$1,FALSE)) ->  | V16: =IF(OR(Item="",Qty=""),"",Qty*VLOOKUP(Item,Food,Database!Q$1,FALSE)) ->  | W16: =IF(OR(Item="",Qty=""),"",Qty*VLOOKUP(Item,Food,Database!R$1,FALSE)) ->  | X16: =IF(OR(Item="",Qty=""),"",Qty*VLOOKUP(Item,Food,Database!S$1,FALSE)) -> 
D17: 15:30:00 | E17: Starch | F17: Arnold Bread - Health Nut | G17: 1 | H17: =IF(Item="","",VLOOKUP(Item,Food,Database!C$1,FALSE)) -> 1 Slice | I17: =IF(OR(Item="",Qty=""),"",Qty*VLOOKUP(Item,Food,Database!D$1,FALSE)) -> 120 | J17: =IF(OR(Item="",Qty=""),"",Qty*VLOOKUP(Item,Food,Database!E$1,FALSE)) -> 20 | K17: =IF(OR(Item="",Qty=""),"",Qty*VLOOKUP(Item,Food,Database!F$1,FALSE)) -> 2 | L17: =IF(OR(Item="",Qty=""),"",Qty*VLOOKUP(Item,Food,Database!G$1,FALSE)) -> 0 | M17: =IF(OR(Item="",Qty=""),"",Qty*VLOOKUP(Item,Food,Database!H$1,FALSE)) -> 1 | N17: =IF(OR(Item="",Qty=""),"",Qty*VLOOKUP(Item,Food,Database!I$1,FALSE)) -> 0 | O17: =IF(OR(Item="",Qty=""),"",Qty*VLOOKUP(Item,Food,Database!J$1,FALSE)) -> 0 | P17: =IF(OR(Item="",Qty=""),"",Qty*VLOOKUP(Item,Food,Database!K$1,FALSE)) -> 0 | Q17: =IF(OR(Item="",Qty=""),"",Qty*VLOOKUP(Item,Food,Database!L$1,FALSE)) -> 170 | R17: =IF(OR(Item="",Qty=""),"",Qty*VLOOKUP(Item,Food,Database!M$1,FALSE)) -> 0 | S17: =IF(OR(Item="",Qty=""),"",Qty*VLOOKUP(Item,Food,Database!N$1,FALSE)) -> 21 | T17: =IF(OR(Item="",Qty=""),"",Qty*VLOOKUP(Item,Food,Database!O$1,FALSE)) -> 2 | U17: =IF(OR(Item="",Qty=""),"",Qty*VLOOKUP(Item,Food,Database!P$1,FALSE)) -> 0 | V17: =IF(OR(Item="",Qty=""),"",Qty*VLOOKUP(Item,Food,Database!Q$1,FALSE)) -> 0 | W17: =IF(OR(Item="",Qty=""),"",Qty*VLOOKUP(Item,Food,Database!R$1,FALSE)) -> 3 | X17: =IF(OR(Item="",Qty=""),"",Qty*VLOOKUP(Item,Food,Database!S$1,FALSE)) -> 5
E18: Protein | F18: Oscar Mayer Smoked White Turkey | G18: 2 | H18: =IF(Item="","",VLOOKUP(Item,Food,Database!C$1,FALSE)) -> 1 slice (1 oz) | I18: =IF(OR(Item="",Qty=""),"",Qty*VLOOKUP(Item,Food,Database!D$1,FALSE)) -> 60 | J18: =IF(OR(Item="",Qty=""),"",Qty*VLOOKUP(Item,Food,Database!E$1,FALSE)) -> 18 | K18: =IF(OR(Item="",Qty=""),"",Qty*VLOOKUP(Item,Food,Database!F$1,FALSE)) -> 2 | L18: =IF(OR(Item="",Qty=""),"",Qty*VLOOKUP(Item,Food,Database!G$1,FALSE)) -> 0 | M18: =IF(OR(Item="",Qty=""),"",Qty*VLOOKUP(Item,Food,Database!H$1,FALSE)) -> 0 | N18: =IF(OR(Item="",Qty=""),"",Qty*VLOOKUP(Item,Food,Database!I$1,FALSE)) -> 0 | O18: =IF(OR(Item="",Qty=""),"",Qty*VLOOKUP(Item,Food,Database!J$1,FALSE)) -> 0 | P18: =IF(OR(Item="",Qty=""),"",Qty*VLOOKUP(Item,Food,Database!K$1,FALSE)) -> 20 | Q18: =IF(OR(Item="",Qty=""),"",Qty*VLOOKUP(Item,Food,Database!L$1,FALSE)) -> 600 | R18: =IF(OR(Item="",Qty=""),"",Qty*VLOOKUP(Item,Food,Database!M$1,FALSE)) -> 0 | S18: =IF(OR(Item="",Qty=""),"",Qty*VLOOKUP(Item,Food,Database!N$1,FALSE)) -> 2 | T18: =IF(OR(Item="",Qty=""),"",Qty*VLOOKUP(Item,Food,Database!O$1,FALSE)) -> 0 | U18: =IF(OR(Item="",Qty=""),"",Qty*VLOOKUP(Item,Food,Database!P$1,FALSE)) -> 0 | V18: =IF(OR(Item="",Qty=""),"",Qty*VLOOKUP(Item,Food,Database!Q$1,FALSE)) -> 0 | W18: =IF(OR(Item="",Qty=""),"",Qty*VLOOKUP(Item,Food,Database!R$1,FALSE)) -> 0 | X18: =IF(OR(Item="",Qty=""),"",Qty*VLOOKUP(Item,Food,Database!S$1,FALSE)) -> 28
E19: Vegetable | F19: Carrot | G19: 0.5 | H19: =IF(Item="","",VLOOKUP(Item,Food,Database!C$1,FALSE)) -> 1 cup | I19: =IF(OR(Item="",Qty=""),"",Qty*VLOOKUP(Item,Food,Database!D$1,FALSE)) -> 25 | J19: =IF(OR(Item="",Qty=""),"",Qty*VLOOKUP(Item,Food,Database!E$1,FALSE)) -> 1.5 | K19: =IF(OR(Item="",Qty=""),"",Qty*VLOOKUP(Item,Food,Database!F$1,FALSE)) -> 0.15 | L19: =IF(OR(Item="",Qty=""),"",Qty*VLOOKUP(Item,Food,Database!G$1,FALSE)) -> 0 | M19: =IF(OR(Item="",Qty=""),"",Qty*VLOOKUP(Item,Food,Database!H$1,FALSE)) -> 0.05 | N19: =IF(OR(Item="",Qty=""),"",Qty*VLOOKUP(Item,Food,Database!I$1,FALSE)) -> 0 | O19: =IF(OR(Item="",Qty=""),"",Qty*VLOOKUP(Item,Food,Database!J$1,FALSE)) -> 0 | P19: =IF(OR(Item="",Qty=""),"",Qty*VLOOKUP(Item,Food,Database!K$1,FALSE)) -> 0 | Q19: =IF(OR(Item="",Qty=""),"",Qty*VLOOKUP(Item,Food,Database!L$1,FALSE)) -> 42.1 | R19: =IF(OR(Item="",Qty=""),"",Qty*VLOOKUP(Item,Food,Database!M$1,FALSE)) -> 195.2 | S19: =IF(OR(Item="",Qty=""),"",Qty*VLOOKUP(Item,Food,Database!N$1,FALSE)) -> 5.85 | T19: =IF(OR(Item="",Qty=""),"",Qty*VLOOKUP(Item,Food,Database!O$1,FALSE)) -> 1.85 | U19: =IF(OR(Item="",Qty=""),"",Qty*VLOOKUP(Item,Food,Database!P$1,FALSE)) -> 0 | V19: =IF(OR(Item="",Qty=""),"",Qty*VLOOKUP(Item,Food,Database!Q$1,FALSE)) -> 0 | W19: =IF(OR(Item="",Qty=""),"",Qty*VLOOKUP(Item,Food,Database!R$1,FALSE)) -> 2.75 | X19: =IF(OR(Item="",Qty=""),"",Qty*VLOOKUP(Item,Food,Database!S$1,FALSE)) -> 0.55
H20: =IF(Item="","",VLOOKUP(Item,Food,Database!C$1,FALSE)) ->  | I20: =IF(OR(Item="",Qty=""),"",Qty*VLOOKUP(Item,Food,Database!D$1,FALSE)) ->  | J20: =IF(OR(Item="",Qty=""),"",Qty*VLOOKUP(Item,Food,Database!E$1,FALSE)) ->  | K20: =IF(OR(Item="",Qty=""),"",Qty*VLOOKUP(Item,Food,Database!F$1,FALSE)) ->  | L20: =IF(OR(Item="",Qty=""),"",Qty*VLOOKUP(Item,Food,Database!G$1,FALSE)) ->  | M20: =IF(OR(Item="",Qty=""),"",Qty*VLOOKUP(Item,Food,Database!H$1,FALSE)) ->  | N20: =IF(OR(Item="",Qty=""),"",Qty*VLOOKUP(Item,Food,Database!I$1,FALSE)) ->  | O20: =IF(OR(Item="",Qty=""),"",Qty*VLOOKUP(Item,Food,Database!J$1,FALSE)) ->  | P20: =IF(OR(Item="",Qty=""),"",Qty*VLOOKUP(Item,Food,Database!K$1,FALSE)) ->  | Q20: =IF(OR(Item="",Qty=""),"",Qty*VLOOKUP(Item,Food,Database!L$1,FALSE)) ->  | R20: =IF(OR(Item="",Qty=""),"",Qty*VLOOKUP(Item,Food,Database!M$1,FALSE)) ->  | S20: =IF(OR(Item="",Qty=""),"",Qty*VLOOKUP(Item,Food,Database!N$1,FALSE)) ->  | T20: =IF(OR(Item="",Qty=""),"",Qty*VLOOKUP(Item,Food,Database!O$1,FALSE)) ->  | U20: =IF(OR(Item="",Qty=""),"",Qty*VLOOKUP(Item,Food,Database!P$1,FALSE)) ->  | V20: =IF(OR(Item="",Qty=""),"",Qty*VLOOKUP(Item,Food,Database!Q$1,FALSE)) ->  | W20: =IF(OR(Item="",Qty=""),"",Qty*VLOOKUP(Item,Food,Database!R$1,FALSE)) ->  | X20: =IF(OR(Item="",Qty=""),"",Qty*VLOOKUP(Item,Food,Database!S$1,FALSE)) -> 
D21: 18:00:00 | E21: Fruit | F21: Apple | G21: 1 | H21: =IF(Item="","",VLOOKUP(Item,Food,Database!C$1,FALSE)) -> 1 | I21: =IF(OR(Item="",Qty=""),"",Qty*VLOOKUP(Item,Food,Database!D$1,FALSE)) -> 55 | J21: =IF(OR(Item="",Qty=""),"",Qty*VLOOKUP(Item,Food,Database!E$1,FALSE)) -> 2 | K21: =IF(OR(Item="",Qty=""),"",Qty*VLOOKUP(Item,Food,Database!F$1,FALSE)) -> 0.2 | L21: =IF(OR(Item="",Qty=""),"",Qty*VLOOKUP(Item,Food,Database!G$1,FALSE)) -> 0 | M21: =IF(OR(Item="",Qty=""),"",Qty*VLOOKUP(Item,Food,Database!H$1,FALSE)) -> 0.1 | N21: =IF(OR(Item="",Qty=""),"",Qty*VLOOKUP(Item,Food,Database!I$1,FALSE)) -> 0 | O21: =IF(OR(Item="",Qty=""),"",Qty*VLOOKUP(Item,Food,Database!J$1,FALSE)) -> 0 | P21: =IF(OR(Item="",Qty=""),"",Qty*VLOOKUP(Item,Food,Database!K$1,FALSE)) -> 0 | Q21: =IF(OR(Item="",Qty=""),"",Qty*VLOOKUP(Item,Food,Database!L$1,FALSE)) -> 1.1 | R21: =IF(OR(Item="",Qty=""),"",Qty*VLOOKUP(Item,Food,Database!M$1,FALSE)) -> 113.4 | S21: =IF(OR(Item="",Qty=""),"",Qty*VLOOKUP(Item,Food,Database!N$1,FALSE)) -> 14.6 | T21: =IF(OR(Item="",Qty=""),"",Qty*VLOOKUP(Item,Food,Database!O$1,FALSE)) -> 2.5 | U21: =IF(OR(Item="",Qty=""),"",Qty*VLOOKUP(Item,Food,Database!P$1,FALSE)) -> 0 | V21: =IF(OR(Item="",Qty=""),"",Qty*VLOOKUP(Item,Food,Database!Q$1,FALSE)) -> 0 | W21: =IF(OR(Item="",Qty=""),"",Qty*VLOOKUP(Item,Food,Database!R$1,FALSE)) -> 11 | X21: =IF(OR(Item="",Qty=""),"",Qty*VLOOKUP(Item,Food,Database!S$1,FALSE)) -> 0.3
E22: Starch | F22: Arnold Bread - Health Nut | G22: 1 | H22: =IF(Item="","",VLOOKUP(Item,Food,Database!C$1,FALSE)) -> 1 Slice | I22: =IF(OR(Item="",Qty=""),"",Qty*VLOOKUP(Item,Food,Database!D$1,FALSE)) -> 120 | J22: =IF(OR(Item="",Qty=""),"",Qty*VLOOKUP(Item,Food,Database!E$1,FALSE)) -> 20 | K22: =IF(OR(Item="",Qty=""),"",Qty*VLOOKUP(Item,Food,Database!F$1,FALSE)) -> 2 | L22: =IF(OR(Item="",Qty=""),"",Qty*VLOOKUP(Item,Food,Database!G$1,FALSE)) -> 0 | M22: =IF(OR(Item="",Qty=""),"",Qty*VLOOKUP(Item,Food,Database!H$1,FALSE)) -> 1 | N22: =IF(OR(Item="",Qty=""),"",Qty*VLOOKUP(Item,Food,Database!I$1,FALSE)) -> 0 | O22: =IF(OR(Item="",Qty=""),"",Qty*VLOOKUP(Item,Food,Database!J$1,FALSE)) -> 0 | P22: =IF(OR(Item="",Qty=""),"",Qty*VLOOKUP(Item,Food,Database!K$1,FALSE)) -> 0 | Q22: =IF(OR(Item="",Qty=""),"",Qty*VLOOKUP(Item,Food,Database!L$1,FALSE)) -> 170 | R22: =IF(OR(Item="",Qty=""),"",Qty*VLOOKUP(Item,Food,Database!M$1,FALSE)) -> 0 | S22: =IF(OR(Item="",Qty=""),"",Qty*VLOOKUP(Item,Food,Database!N$1,FALSE)) -> 21 | T22: =IF(OR(Item="",Qty=""),"",Qty*VLOOKUP(Item,Food,Database!O$1,FALSE)) -> 2 | U22: =IF(OR(Item="",Qty=""),"",Qty*VLOOKUP(Item,Food,Database!P$1,FALSE)) -> 0 | V22: =IF(OR(Item="",Qty=""),"",Qty*VLOOKUP(Item,Food,Database!Q$1,FALSE)) -> 0 | W22: =IF(OR(Item="",Qty=""),"",Qty*VLOOKUP(Item,Food,Database!R$1,FALSE)) -> 3 | X22: =IF(OR(Item="",Qty=""),"",Qty*VLOOKUP(Item,Food,Database!S$1,FALSE)) -> 5
E23: Protein | F23: Oscar Mayer Smoked White Turkey | G23: 2 | H23: =IF(Item="","",VLOOKUP(Item,Food,Database!C$1,FALSE)) -> 1 slice (1 oz) | I23: =IF(OR(Item="",Qty=""),"",Qty*VLOOKUP(Item,Food,Database!D$1,FALSE)) -> 60 | J23: =IF(OR(Item="",Qty=""),"",Qty*VLOOKUP(Item,Food,Database!E$1,FALSE)) -> 18 | K23: =IF(OR(Item="",Qty=""),"",Qty*VLOOKUP(Item,Food,Database!F$1,FALSE)) -> 2 | L23: =IF(OR(Item="",Qty=""),"",Qty*VLOOKUP(Item,Food,Database!G$1,FALSE)) -> 0 | M23: =IF(OR(Item="",Qty=""),"",Qty*VLOOKUP(Item,Food,Database!H$1,FALSE)) -> 0 | N23: =IF(OR(Item="",Qty=""),"",Qty*VLOOKUP(Item,Food,Database!I$1,FALSE)) -> 0 | O23: =IF(OR(Item="",Qty=""),"",Qty*VLOOKUP(Item,Food,Database!J$1,FALSE)) -> 0 | P23: =IF(OR(Item="",Qty=""),"",Qty*VLOOKUP(Item,Food,Database!K$1,FALSE)) -> 20 | Q23: =IF(OR(Item="",Qty=""),"",Qty*VLOOKUP(Item,Food,Database!L$1,FALSE)) -> 600 | R23: =IF(OR(Item="",Qty=""),"",Qty*VLOOKUP(Item,Food,Database!M$1,FALSE)) -> 0 | S23: =IF(OR(Item="",Qty=""),"",Qty*VLOOKUP(Item,Food,Database!N$1,FALSE)) -> 2 | T23: =IF(OR(Item="",Qty=""),"",Qty*VLOOKUP(Item,Food,Database!O$1,FALSE)) -> 0 | U23: =IF(OR(Item="",Qty=""),"",Qty*VLOOKUP(Item,Food,Database!P$1,FALSE)) -> 0 | V23: =IF(OR(Item="",Qty=""),"",Qty*VLOOKUP(Item,Food,Database!Q$1,FALSE)) -> 0 | W23: =IF(OR(Item="",Qty=""),"",Qty*VLOOKUP(Item,Food,Database!R$1,FALSE)) -> 0 | X23: =IF(OR(Item="",Qty=""),"",Qty*VLOOKUP(Item,Food,Database!S$1,FALSE)) -> 28
H24: =IF(Item="","",VLOOKUP(Item,Food,Database!C$1,FALSE)) ->  | I24: =IF(OR(Item="",Qty=""),"",Qty*VLOOKUP(Item,Food,Database!D$1,FALSE)) ->  | J24: =IF(OR(Item="",Qty=""),"",Qty*VLOOKUP(Item,Food,Database!E$1,FALSE)) ->  | K24: =IF(OR(Item="",Qty=""),"",Qty*VLOOKUP(Item,Food,Database!F$1,FALSE)) ->  | L24: =IF(OR(Item="",Qty=""),"",Qty*VLOOKUP(Item,Food,Database!G$1,FALSE)) ->  | M24: =IF(OR(Item="",Qty=""),"",Qty*VLOOKUP(Item,Food,Database!H$1,FALSE)) ->  | N24: =IF(OR(Item="",Qty=""),"",Qty*VLOOKUP(Item,Food,Database!I$1,FALSE)) ->  | O24: =IF(OR(Item="",Qty=""),"",Qty*VLOOKUP(Item,Food,Database!J$1,FALSE)) ->  | P24: =IF(OR(Item="",Qty=""),"",Qty*VLOOKUP(Item,Food,Database!K$1,FALSE)) ->  | Q24: =IF(OR(Item="",Qty=""),"",Qty*VLOOKUP(Item,Food,Database!L$1,FALSE)) ->  | R24: =IF(OR(Item="",Qty=""),"",Qty*VLOOKUP(Item,Food,Database!M$1,FALSE)) ->  | S24: =IF(OR(Item="",Qty=""),"",Qty*VLOOKUP(Item,Food,Database!N$1,FALSE)) ->  | T24: =IF(OR(Item="",Qty=""),"",Qty*VLOOKUP(Item,Food,Database!O$1,FALSE)) ->  | U24: =IF(OR(Item="",Qty=""),"",Qty*VLOOKUP(Item,Food,Database!P$1,FALSE)) ->  | V24: =IF(OR(Item="",Qty=""),"",Qty*VLOOKUP(Item,Food,Database!Q$1,FALSE)) ->  | W24: =IF(OR(Item="",Qty=""),"",Qty*VLOOKUP(Item,Food,Database!R$1,FALSE)) ->  | X24: =IF(OR(Item="",Qty=""),"",Qty*VLOOKUP(Item,Food,Database!S$1,FALSE)) -> 
D25: 20:30:00 | E25: Protein | F25: Chicken Breast | G25: 1 | H25: =IF(Item="","",VLOOKUP(Item,Food,Database!C$1,FALSE)) -> 3 oz | I25: =IF(OR(Item="",Qty=""),"",Qty*VLOOKUP(Item,Food,Database!D$1,FALSE)) -> 130 | J25: =IF(OR(Item="",Qty=""),"",Qty*VLOOKUP(Item,Food,Database!E$1,FALSE)) -> 15 | K25: =IF(OR(Item="",Qty=""),"",Qty*VLOOKUP(Item,Food,Database!F$1,FALSE)) -> 1.5 | L25: =IF(OR(Item="",Qty=""),"",Qty*VLOOKUP(Item,Food,Database!G$1,FALSE)) -> 0.5 | M25: =IF(OR(Item="",Qty=""),"",Qty*VLOOKUP(Item,Food,Database!H$1,FALSE)) -> 0 | N25: =IF(OR(Item="",Qty=""),"",Qty*VLOOKUP(Item,Food,Database!I$1,FALSE)) -> 0 | O25: =IF(OR(Item="",Qty=""),"",Qty*VLOOKUP(Item,Food,Database!J$1,FALSE)) -> 0 | P25: =IF(OR(Item="",Qty=""),"",Qty*VLOOKUP(Item,Food,Database!K$1,FALSE)) -> 75 | Q25: =IF(OR(Item="",Qty=""),"",Qty*VLOOKUP(Item,Food,Database!L$1,FALSE)) -> 25 | R25: =IF(OR(Item="",Qty=""),"",Qty*VLOOKUP(Item,Food,Database!M$1,FALSE)) -> 0 | S25: =IF(OR(Item="",Qty=""),"",Qty*VLOOKUP(Item,Food,Database!N$1,FALSE)) -> 0 | T25: =IF(OR(Item="",Qty=""),"",Qty*VLOOKUP(Item,Food,Database!O$1,FALSE)) -> 0 | U25: =IF(OR(Item="",Qty=""),"",Qty*VLOOKUP(Item,Food,Database!P$1,FALSE)) -> 0 | V25: =IF(OR(Item="",Qty=""),"",Qty*VLOOKUP(Item,Food,Database!Q$1,FALSE)) -> 0 | W25: =IF(OR(Item="",Qty=""),"",Qty*VLOOKUP(Item,Food,Database!R$1,FALSE)) -> 0 | X25: =IF(OR(Item="",Qty=""),"",Qty*VLOOKUP(Item,Food,Database!S$1,FALSE)) -> 28
E26: Starch | F26: Rice, Brown | G26: 1 | H26: =IF(Item="","",VLOOKUP(Item,Food,Database!C$1,FALSE)) -> 1 cup | I26: =IF(OR(Item="",Qty=""),"",Qty*VLOOKUP(Item,Food,Database!D$1,FALSE)) -> 218 | J26: =IF(OR(Item="",Qty=""),"",Qty*VLOOKUP(Item,Food,Database!E$1,FALSE)) -> 15 | K26: =IF(OR(Item="",Qty=""),"",Qty*VLOOKUP(Item,Food,Database!F$1,FALSE)) -> 1.6 | L26: =IF(OR(Item="",Qty=""),"",Qty*VLOOKUP(Item,Food,Database!G$1,FALSE)) -> 0.3 | M26: =IF(OR(Item="",Qty=""),"",Qty*VLOOKUP(Item,Food,Database!H$1,FALSE)) -> 0.6 | N26: =IF(OR(Item="",Qty=""),"",Qty*VLOOKUP(Item,Food,Database!I$1,FALSE)) -> 0.6 | O26: =IF(OR(Item="",Qty=""),"",Qty*VLOOKUP(Item,Food,Database!J$1,FALSE)) -> 0 | P26: =IF(OR(Item="",Qty=""),"",Qty*VLOOKUP(Item,Food,Database!K$1,FALSE)) -> 0 | Q26: =IF(OR(Item="",Qty=""),"",Qty*VLOOKUP(Item,Food,Database!L$1,FALSE)) -> 2 | R26: =IF(OR(Item="",Qty=""),"",Qty*VLOOKUP(Item,Food,Database!M$1,FALSE)) -> 154.1 | S26: =IF(OR(Item="",Qty=""),"",Qty*VLOOKUP(Item,Food,Database!N$1,FALSE)) -> 45.8 | T26: =IF(OR(Item="",Qty=""),"",Qty*VLOOKUP(Item,Food,Database!O$1,FALSE)) -> 3.5 | U26: =IF(OR(Item="",Qty=""),"",Qty*VLOOKUP(Item,Food,Database!P$1,FALSE)) -> 0 | V26: =IF(OR(Item="",Qty=""),"",Qty*VLOOKUP(Item,Food,Database!Q$1,FALSE)) -> 0 | W26: =IF(OR(Item="",Qty=""),"",Qty*VLOOKUP(Item,Food,Database!R$1,FALSE)) -> 0 | X26: =IF(OR(Item="",Qty=""),"",Qty*VLOOKUP(Item,Food,Database!S$1,FALSE)) -> 4.5
H27: =IF(Item="","",VLOOKUP(Item,Food,Database!C$1,FALSE)) ->  | I27: =IF(OR(Item="",Qty=""),"",Qty*VLOOKUP(Item,Food,Database!D$1,FALSE)) ->  | J27: =IF(OR(Item="",Qty=""),"",Qty*VLOOKUP(Item,Food,Database!E$1,FALSE)) ->  | K27: =IF(OR(Item="",Qty=""),"",Qty*VLOOKUP(Item,Food,Database!F$1,FALSE)) ->  | L27: =IF(OR(Item="",Qty=""),"",Qty*VLOOKUP(Item,Food,Database!G$1,FALSE)) ->  | M27: =IF(OR(Item="",Qty=""),"",Qty*VLOOKUP(Item,Food,Database!H$1,FALSE)) ->  | N27: =IF(OR(Item="",Qty=""),"",Qty*VLOOKUP(Item,Food,Database!I$1,FALSE)) ->  | O27: =IF(OR(Item="",Qty=""),"",Qty*VLOOKUP(Item,Food,Database!J$1,FALSE)) ->  | P27: =IF(OR(Item="",Qty=""),"",Qty*VLOOKUP(Item,Food,Database!K$1,FALSE)) ->  | Q27: =IF(OR(Item="",Qty=""),"",Qty*VLOOKUP(Item,Food,Database!L$1,FALSE)) ->  | R27: =IF(OR(Item="",Qty=""),"",Qty*VLOOKUP(Item,Food,Database!M$1,FALSE)) ->  | S27: =IF(OR(Item="",Qty=""),"",Qty*VLOOKUP(Item,Food,Database!N$1,FALSE)) ->  | T27: =IF(OR(Item="",Qty=""),"",Qty*VLOOKUP(Item,Food,Database!O$1,FALSE)) ->  | U27: =IF(OR(Item="",Qty=""),"",Qty*VLOOKUP(Item,Food,Database!P$1,FALSE)) ->  | V27: =IF(OR(Item="",Qty=""),"",Qty*VLOOKUP(Item,Food,Database!Q$1,FALSE)) ->  | W27: =IF(OR(Item="",Qty=""),"",Qty*VLOOKUP(Item,Food,Database!R$1,FALSE)) ->  | X27: =IF(OR(Item="",Qty=""),"",Qty*VLOOKUP(Item,Food,Database!S$1,FALSE)) -> 
D28: TOTAL | I28: =SUM(I6:I27) -> 1913 | J28: 251.5 | K28: 26.95 | L28: 5.7 | M28: 3.45 | N28: 1.2 | O28: 0 | P28: 314.7 | Q28: 2453.4 | R28: 1379.2 | S28: 254.05 | T28: 28.45 | U28: 0 | V28: 0 | W28: 74.15 | X28: 201.15
D29: Percentage (in Calories) | K29: =(K28*9)/(K28*9+(S28-T28)*4+X28*4) -> 0.1244133262 | S29: =(S28-T28)*4/(K28*9+(S28-T28)*4+X28*4) -> 0.4628760483 | X29: =X28*4/(K28*9+(S28-T28)*4+X28*4) -> 0.4127106255
B31: 1
B32: 2011-02-07 | C32: =VLOOKUP(WEEKDAY(B32,2),WkDay,2,FALSE) -> Mon | H32: =IF(Item="","",VLOOKUP(Item,Food,Database!C$1,FALSE)) ->  | I32: =IF(OR(Item="",Qty=""),"",Qty*VLOOKUP(Item,Food,Database!D$1,FALSE)) ->  | J32: =IF(OR(Item="",Qty=""),"",Qty*VLOOKUP(Item,Food,Database!E$1,FALSE)) ->  | K32: =IF(OR(Item="",Qty=""),"",Qty*VLOOKUP(Item,Food,Database!F$1,FALSE)) ->  | L32: =IF(OR(Item="",Qty=""),"",Qty*VLOOKUP(Item,Food,Database!G$1,FALSE)) ->  | M32: =IF(OR(Item="",Qty=""),"",Qty*VLOOKUP(Item,Food,Database!H$1,FALSE)) ->  | N32: =IF(OR(Item="",Qty=""),"",Qty*VLOOKUP(Item,Food,Database!I$1,FALSE)) ->  | O32: =IF(OR(Item="",Qty=""),"",Qty*VLOOKUP(Item,Food,Database!J$1,FALSE)) ->  | P32: =IF(OR(Item="",Qty=""),"",Qty*VLOOKUP(Item,Food,Database!K$1,FALSE)) ->  | Q32: =IF(OR(Item="",Qty=""),"",Qty*VLOOKUP(Item,Food,Database!L$1,FALSE)) ->  | R32: =IF(OR(Item="",Qty=""),"",Qty*VLOOKUP(Item,Food,Database!M$1,FALSE)) ->  | S32: =IF(OR(Item="",Qty=""),"",Qty*VLOOKUP(Item,Food,Database!N$1,FALSE)) ->  | T32: =IF(OR(Item="",Qty=""),"",Qty*VLOOKUP(Item,Food,Database!O$1,FALSE)) ->  | U32: =IF(OR(Item="",Qty=""),"",Qty*VLOOKUP(Item,Food,Database!P$1,FALSE)) ->  | V32: =IF(OR(Item="",Qty=""),"",Qty*VLOOKUP(Item,Food,Database!Q$1,FALSE)) ->  | W32: =IF(OR(Item="",Qty=""),"",Qty*VLOOKUP(Item,Food,Database!R$1,FALSE)) ->  | X32: =IF(OR(Item="",Qty=""),"",Qty*VLOOKUP(Item,Food,Database!S$1,FALSE)) -> 
H33: =IF(Item="","",VLOOKUP(Item,Food,Database!C$1,FALSE)) ->  | I33: =IF(OR(Item="",Qty=""),"",Qty*VLOOKUP(Item,Food,Database!D$1,FALSE)) ->  | J33: =IF(OR(Item="",Qty=""),"",Qty*VLOOKUP(Item,Food,Database!E$1,FALSE)) ->  | K33: =IF(OR(Item="",Qty=""),"",Qty*VLOOKUP(Item,Food,Database!F$1,FALSE)) ->  | L33: =IF(OR(Item="",Qty=""),"",Qty*VLOOKUP(Item,Food,Database!G$1,FALSE)) ->  | M33: =IF(OR(Item="",Qty=""),"",Qty*VLOOKUP(Item,Food,Database!H$1,FALSE)) ->  | N33: =IF(OR(Item="",Qty=""),"",Qty*VLOOKUP(Item,Food,Database!I$1,FALSE)) ->  | O33: =IF(OR(Item="",Qty=""),"",Qty*VLOOKUP(Item,Food,Database!J$1,FALSE)) ->  | P33: =IF(OR(Item="",Qty=""),"",Qty*VLOOKUP(Item,Food,Database!K$1,FALSE)) ->  | Q33: =IF(OR(Item="",Qty=""),"",Qty*VLOOKUP(Item,Food,Database!L$1,FALSE)) ->  | R33: =IF(OR(Item="",Qty=""),"",Qty*VLOOKUP(Item,Food,Database!M$1,FALSE)) ->  | S33: =IF(OR(Item="",Qty=""),"",Qty*VLOOKUP(Item,Food,Database!N$1,FALSE)) ->  | T33: =IF(OR(Item="",Qty=""),"",Qty*VLOOKUP(Item,Food,Database!O$1,FALSE)) ->  | U33: =IF(OR(Item="",Qty=""),"",Qty*VLOOKUP(Item,Food,Database!P$1,FALSE)) ->  | V33: =IF(OR(Item="",Qty=""),"",Qty*VLOOKUP(Item,Food,Database!Q$1,FALSE)) ->  | W33: =IF(OR(Item="",Qty=""),"",Qty*VLOOKUP(Item,Food,Database!R$1,FALSE)) ->  | X33: =IF(OR(Item="",Qty=""),"",Qty*VLOOKUP(Item,Food,Database!S$1,FALSE)) -> 
H34: =IF(Item="","",VLOOKUP(Item,Food,Database!C$1,FALSE)) ->  | I34: =IF(OR(Item="",Qty=""),"",Qty*VLOOKUP(Item,Food,Database!D$1,FALSE)) ->  | J34: =IF(OR(Item="",Qty=""),"",Qty*VLOOKUP(Item,Food,Database!E$1,FALSE)) ->  | K34: =IF(OR(Item="",Qty=""),"",Qty*VLOOKUP(Item,Food,Database!F$1,FALSE)) ->  | L34: =IF(OR(Item="",Qty=""),"",Qty*VLOOKUP(Item,Food,Database!G$1,FALSE)) ->  | M34: =IF(OR(Item="",Qty=""),"",Qty*VLOOKUP(Item,Food,Database!H$1,FALSE)) ->  | N34: =IF(OR(Item="",Qty=""),"",Qty*VLOOKUP(Item,Food,Database!I$1,FALSE)) ->  | O34: =IF(OR(Item="",Qty=""),"",Qty*VLOOKUP(Item,Food,Database!J$1,FALSE)) ->  | P34: =IF(OR(Item="",Qty=""),"",Qty*VLOOKUP(Item,Food,Database!K$1,FALSE)) ->  | Q34: =IF(OR(Item="",Qty=""),"",Qty*VLOOKUP(Item,Food,Database!L$1,FALSE)) ->  | R34: =IF(OR(Item="",Qty=""),"",Qty*VLOOKUP(Item,Food,Database!M$1,FALSE)) ->  | S34: =IF(OR(Item="",Qty=""),"",Qty*VLOOKUP(Item,Food,Database!N$1,FALSE)) ->  | T34: =IF(OR(Item="",Qty=""),"",Qty*VLOOKUP(Item,Food,Database!O$1,FALSE)) ->  | U34: =IF(OR(Item="",Qty=""),"",Qty*VLOOKUP(Item,Food,Database!P$1,FALSE)) ->  | V34: =IF(OR(Item="",Qty=""),"",Qty*VLOOKUP(Item,Food,Database!Q$1,FALSE)) ->  | W34: =IF(OR(Item="",Qty=""),"",Qty*VLOOKUP(Item,Food,Database!R$1,FALSE)) ->  | X34: =IF(OR(Item="",Qty=""),"",Qty*VLOOKUP(Item,Food,Database!S$1,FALSE)) -> 
H35: =IF(Item="","",VLOOKUP(Item,Food,Database!C$1,FALSE)) ->  | I35: =IF(OR(Item="",Qty=""),"",Qty*VLOOKUP(Item,Food,Database!D$1,FALSE)) ->  | J35: =IF(OR(Item="",Qty=""),"",Qty*VLOOKUP(Item,Food,Database!E$1,FALSE)) ->  | K35: =IF(OR(Item="",Qty=""),"",Qty*VLOOKUP(Item,Food,Database!F$1,FALSE)) ->  | L35: =IF(OR(Item="",Qty=""),"",Qty*VLOOKUP(Item,Food,Database!G$1,FALSE)) ->  | M35: =IF(OR(Item="",Qty=""),"",Qty*VLOOKUP(Item,Food,Database!H$1,FALSE)) ->  | N35: =IF(OR(Item="",Qty=""),"",Qty*VLOOKUP(Item,Food,Database!I$1,FALSE)) ->  | O35: =IF(OR(Item="",Qty=""),"",Qty*VLOOKUP(Item,Food,Database!J$1,FALSE)) ->  | P35: =IF(OR(Item="",Qty=""),"",Qty*VLOOKUP(Item,Food,Database!K$1,FALSE)) ->  | Q35: =IF(OR(Item="",Qty=""),"",Qty*VLOOKUP(Item,Food,Database!L$1,FALSE)) ->  | R35: =IF(OR(Item="",Qty=""),"",Qty*VLOOKUP(Item,Food,Database!M$1,FALSE)) ->  | S35: =IF(OR(Item="",Qty=""),"",Qty*VLOOKUP(Item,Food,Database!N$1,FALSE)) ->  | T35: =IF(OR(Item="",Qty=""),"",Qty*VLOOKUP(Item,Food,Database!O$1,FALSE)) ->  | U35: =IF(OR(Item="",Qty=""),"",Qty*VLOOKUP(Item,Food,Database!P$1,FALSE)) ->  | V35: =IF(OR(Item="",Qty=""),"",Qty*VLOOKUP(Item,Food,Database!Q$1,FALSE)) ->  | W35: =IF(OR(Item="",Qty=""),"",Qty*VLOOKUP(Item,Food,Database!R$1,FALSE)) ->  | X35: =IF(OR(Item="",Qty=""),"",Qty*VLOOKUP(Item,Food,Database!S$1,FALSE)) -> 
H36: =IF(Item="","",VLOOKUP(Item,Food,Database!C$1,FALSE)) ->  | I36: =IF(OR(Item="",Qty=""),"",Qty*VLOOKUP(Item,Food,Database!D$1,FALSE)) ->  | J36: =IF(OR(Item="",Qty=""),"",Qty*VLOOKUP(Item,Food,Database!E$1,FALSE)) ->  | K36: =IF(OR(Item="",Qty=""),"",Qty*VLOOKUP(Item,Food,Database!F$1,FALSE)) ->  | L36: =IF(OR(Item="",Qty=""),"",Qty*VLOOKUP(Item,Food,Database!G$1,FALSE)) ->  | M36: =IF(OR(Item="",Qty=""),"",Qty*VLOOKUP(Item,Food,Database!H$1,FALSE)) ->  | N36: =IF(OR(Item="",Qty=""),"",Qty*VLOOKUP(Item,Food,Database!I$1,FALSE)) ->  | O36: =IF(OR(Item="",Qty=""),"",Qty*VLOOKUP(Item,Food,Database!J$1,FALSE)) ->  | P36: =IF(OR(Item="",Qty=""),"",Qty*VLOOKUP(Item,Food,Database!K$1,FALSE)) ->  | Q36: =IF(OR(Item="",Qty=""),"",Qty*VLOOKUP(Item,Food,Database!L$1,FALSE)) ->  | R36: =IF(OR(Item="",Qty=""),"",Qty*VLOOKUP(Item,Food,Database!M$1,FALSE)) ->  | S36: =IF(OR(Item="",Qty=""),"",Qty*VLOOKUP(Item,Food,Database!N$1,FALSE)) ->  | T36: =IF(OR(Item="",Qty=""),"",Qty*VLOOKUP(Item,Food,Database!O$1,FALSE)) ->  | U36: =IF(OR(Item="",Qty=""),"",Qty*VLOOKUP(Item,Food,Database!P$1,FALSE)) ->  | V36: =IF(OR(Item="",Qty=""),"",Qty*VLOOKUP(Item,Food,Database!Q$1,FALSE)) ->  | W36: =IF(OR(Item="",Qty=""),"",Qty*VLOOKUP(Item,Food,Database!R$1,FALSE)) ->  | X36: =IF(OR(Item="",Qty=""),"",Qty*VLOOKUP(Item,Food,Database!S$1,FALSE)) -> 
D37: TOTAL | I37: =IF(SUM(I32:I36)=0,"",SUM(I32:I36)) -> 
D38: Percentage (in Calories) | K38: =IF(K37="","",(K37*9)/(K37*9+(S37-T37)*4+X37*4)) ->  | S38: =IF(S37="","",(S37-T37)*4/(K37*9+(S37-T37)*4+X37*4)) ->  | X38: =IF(X37="","",X37*4/(K37*9+(S37-T37)*4+X37*4)) -> 
B39: =B32+1 -> 2011-02-08 | C39: =VLOOKUP(WEEKDAY(B39,2),WkDay,2,FALSE) -> Tue | H39: =IF(Item="","",VLOOKUP(Item,Food,Database!C$1,FALSE)) ->  | I39: =IF(OR(Item="",Qty=""),"",Qty*VLOOKUP(Item,Food,Database!D$1,FALSE)) ->  | J39: =IF(OR(Item="",Qty=""),"",Qty*VLOOKUP(Item,Food,Database!E$1,FALSE)) ->  | K39: =IF(OR(Item="",Qty=""),"",Qty*VLOOKUP(Item,Food,Database!F$1,FALSE)) ->  | L39: =IF(OR(Item="",Qty=""),"",Qty*VLOOKUP(Item,Food,Database!G$1,FALSE)) ->  | M39: =IF(OR(Item="",Qty=""),"",Qty*VLOOKUP(Item,Food,Database!H$1,FALSE)) ->  | N39: =IF(OR(Item="",Qty=""),"",Qty*VLOOKUP(Item,Food,Database!I$1,FALSE)) ->  | O39: =IF(OR(Item="",Qty=""),"",Qty*VLOOKUP(Item,Food,Database!J$1,FALSE)) ->  | P39: =IF(OR(Item="",Qty=""),"",Qty*VLOOKUP(Item,Food,Database!K$1,FALSE)) ->  | Q39: =IF(OR(Item="",Qty=""),"",Qty*VLOOKUP(Item,Food,Database!L$1,FALSE)) ->  | R39: =IF(OR(Item="",Qty=""),"",Qty*VLOOKUP(Item,Food,Database!M$1,FALSE)) ->  | S39: =IF(OR(Item="",Qty=""),"",Qty*VLOOKUP(Item,Food,Database!N$1,FALSE)) ->  | T39: =IF(OR(Item="",Qty=""),"",Qty*VLOOKUP(Item,Food,Database!O$1,FALSE)) ->  | U39: =IF(OR(Item="",Qty=""),"",Qty*VLOOKUP(Item,Food,Database!P$1,FALSE)) ->  | V39: =IF(OR(Item="",Qty=""),"",Qty*VLOOKUP(Item,Food,Database!Q$1,FALSE)) ->  | W39: =IF(OR(Item="",Qty=""),"",Qty*VLOOKUP(Item,Food,Database!R$1,FALSE)) ->  | X39: =IF(OR(Item="",Qty=""),"",Qty*VLOOKUP(Item,Food,Database!S$1,FALSE)) -> 
H40: =IF(Item="","",VLOOKUP(Item,Food,Database!C$1,FALSE)) ->  | I40: =IF(OR(Item="",Qty=""),"",Qty*VLOOKUP(Item,Food,Database!D$1,FALSE)) ->  | J40: =IF(OR(Item="",Qty=""),"",Qty*VLOOKUP(Item,Food,Database!E$1,FALSE)) ->  | K40: =IF(OR(Item="",Qty=""),"",Qty*VLOOKUP(Item,Food,Database!F$1,FALSE)) ->  | L40: =IF(OR(Item="",Qty=""),"",Qty*VLOOKUP(Item,Food,Database!G$1,FALSE)) ->  | M40: =IF(OR(Item="",Qty=""),"",Qty*VLOOKUP(Item,Food,Database!H$1,FALSE)) ->  | N40: =IF(OR(Item="",Qty=""),"",Qty*VLOOKUP(Item,Food,Database!I$1,FALSE)) ->  | O40: =IF(OR(Item="",Qty=""),"",Qty*VLOOKUP(Item,Food,Database!J$1,FALSE)) ->  | P40: =IF(OR(Item="",Qty=""),"",Qty*VLOOKUP(Item,Food,Database!K$1,FALSE)) ->  | Q40: =IF(OR(Item="",Qty=""),"",Qty*VLOOKUP(Item,Food,Database!L$1,FALSE)) ->  | R40: =IF(OR(Item="",Qty=""),"",Qty*VLOOKUP(Item,Food,Database!M$1,FALSE)) ->  | S40: =IF(OR(Item="",Qty=""),"",Qty*VLOOKUP(Item,Food,Database!N$1,FALSE)) ->  | T40: =IF(OR(Item="",Qty=""),"",Qty*VLOOKUP(Item,Food,Database!O$1,FALSE)) ->  | U40: =IF(OR(Item="",Qty=""),"",Qty*VLOOKUP(Item,Food,Database!P$1,FALSE)) ->  | V40: =IF(OR(Item="",Qty=""),"",Qty*VLOOKUP(Item,Food,Database!Q$1,FALSE)) ->  | W40: =IF(OR(Item="",Qty=""),"",Qty*VLOOKUP(Item,Food,Database!R$1,FALSE)) ->  | X40: =IF(OR(Item="",Qty=""),"",Qty*VLOOKUP(Item,Food,Database!S$1,FALSE)) -> 
H41: =IF(Item="","",VLOOKUP(Item,Food,Database!C$1,FALSE)) ->  | I41: =IF(OR(Item="",Qty=""),"",Qty*VLOOKUP(Item,Food,Database!D$1,FALSE)) ->  | J41: =IF(OR(Item="",Qty=""),"",Qty*VLOOKUP(Item,Food,Database!E$1,FALSE)) ->  | K41: =IF(OR(Item="",Qty=""),"",Qty*VLOOKUP(Item,Food,Database!F$1,FALSE)) ->  | L41: =IF(OR(Item="",Qty=""),"",Qty*VLOOKUP(Item,Food,Database!G$1,FALSE)) ->  | M41: =IF(OR(Item="",Qty=""),"",Qty*VLOOKUP(Item,Food,Database!H$1,FALSE)) ->  | N41: =IF(OR(Item="",Qty=""),"",Qty*VLOOKUP(Item,Food,Database!I$1,FALSE)) ->  | O41: =IF(OR(Item="",Qty=""),"",Qty*VLOOKUP(Item,Food,Database!J$1,FALSE)) ->  | P41: =IF(OR(Item="",Qty=""),"",Qty*VLOOKUP(Item,Food,Database!K$1,FALSE)) ->  | Q41: =IF(OR(Item="",Qty=""),"",Qty*VLOOKUP(Item,Food,Database!L$1,FALSE)) ->  | R41: =IF(OR(Item="",Qty=""),"",Qty*VLOOKUP(Item,Food,Database!M$1,FALSE)) ->  | S41: =IF(OR(Item="",Qty=""),"",Qty*VLOOKUP(Item,Food,Database!N$1,FALSE)) ->  | T41: =IF(OR(Item="",Qty=""),"",Qty*VLOOKUP(Item,Food,Database!O$1,FALSE)) ->  | U41: =IF(OR(Item="",Qty=""),"",Qty*VLOOKUP(Item,Food,Database!P$1,FALSE)) ->  | V41: =IF(OR(Item="",Qty=""),"",Qty*VLOOKUP(Item,Food,Database!Q$1,FALSE)) ->  | W41: =IF(OR(Item="",Qty=""),"",Qty*VLOOKUP(Item,Food,Database!R$1,FALSE)) ->  | X41: =IF(OR(Item="",Qty=""),"",Qty*VLOOKUP(Item,Food,Database!S$1,FALSE)) -> 
H42: =IF(Item="","",VLOOKUP(Item,Food,Database!C$1,FALSE)) ->  | I42: =IF(OR(Item="",Qty=""),"",Qty*VLOOKUP(Item,Food,Database!D$1,FALSE)) ->  | J42: =IF(OR(Item="",Qty=""),"",Qty*VLOOKUP(Item,Food,Database!E$1,FALSE)) ->  | K42: =IF(OR(Item="",Qty=""),"",Qty*VLOOKUP(Item,Food,Database!F$1,FALSE)) ->  | L42: =IF(OR(Item="",Qty=""),"",Qty*VLOOKUP(Item,Food,Database!G$1,FALSE)) ->  | M42: =IF(OR(Item="",Qty=""),"",Qty*VLOOKUP(Item,Food,Database!H$1,FALSE)) ->  | N42: =IF(OR(Item="",Qty=""),"",Qty*VLOOKUP(Item,Food,Database!I$1,FALSE)) ->  | O42: =IF(OR(Item="",Qty=""),"",Qty*VLOOKUP(Item,Food,Database!J$1,FALSE)) ->  | P42: =IF(OR(Item="",Qty=""),"",Qty*VLOOKUP(Item,Food,Database!K$1,FALSE)) ->  | Q42: =IF(OR(Item="",Qty=""),"",Qty*VLOOKUP(Item,Food,Database!L$1,FALSE)) ->  | R42: =IF(OR(Item="",Qty=""),"",Qty*VLOOKUP(Item,Food,Database!M$1,FALSE)) ->  | S42: =IF(OR(Item="",Qty=""),"",Qty*VLOOKUP(Item,Food,Database!N$1,FALSE)) ->  | T42: =IF(OR(Item="",Qty=""),"",Qty*VLOOKUP(Item,Food,Database!O$1,FALSE)) ->  | U42: =IF(OR(Item="",Qty=""),"",Qty*VLOOKUP(Item,Food,Database!P$1,FALSE)) ->  | V42: =IF(OR(Item="",Qty=""),"",Qty*VLOOKUP(Item,Food,Database!Q$1,FALSE)) ->  | W42: =IF(OR(Item="",Qty=""),"",Qty*VLOOKUP(Item,Food,Database!R$1,FALSE)) ->  | X42: =IF(OR(Item="",Qty=""),"",Qty*VLOOKUP(Item,Food,Database!S$1,FALSE)) -> 
H43: =IF(Item="","",VLOOKUP(Item,Food,Database!C$1,FALSE)) ->  | I43: =IF(OR(Item="",Qty=""),"",Qty*VLOOKUP(Item,Food,Database!D$1,FALSE)) ->  | J43: =IF(OR(Item="",Qty=""),"",Qty*VLOOKUP(Item,Food,Database!E$1,FALSE)) ->  | K43: =IF(OR(Item="",Qty=""),"",Qty*VLOOKUP(Item,Food,Database!F$1,FALSE)) ->  | L43: =IF(OR(Item="",Qty=""),"",Qty*VLOOKUP(Item,Food,Database!G$1,FALSE)) ->  | M43: =IF(OR(Item="",Qty=""),"",Qty*VLOOKUP(Item,Food,Database!H$1,FALSE)) ->  | N43: =IF(OR(Item="",Qty=""),"",Qty*VLOOKUP(Item,Food,Database!I$1,FALSE)) ->  | O43: =IF(OR(Item="",Qty=""),"",Qty*VLOOKUP(Item,Food,Database!J$1,FALSE)) ->  | P43: =IF(OR(Item="",Qty=""),"",Qty*VLOOKUP(Item,Food,Database!K$1,FALSE)) ->  | Q43: =IF(OR(Item="",Qty=""),"",Qty*VLOOKUP(Item,Food,Database!L$1,FALSE)) ->  | R43: =IF(OR(Item="",Qty=""),"",Qty*VLOOKUP(Item,Food,Database!M$1,FALSE)) ->  | S43: =IF(OR(Item="",Qty=""),"",Qty*VLOOKUP(Item,Food,Database!N$1,FALSE)) ->  | T43: =IF(OR(Item="",Qty=""),"",Qty*VLOOKUP(Item,Food,Database!O$1,FALSE)) ->  | U43: =IF(OR(Item="",Qty=""),"",Qty*VLOOKUP(Item,Food,Database!P$1,FALSE)) ->  | V43: =IF(OR(Item="",Qty=""),"",Qty*VLOOKUP(Item,Food,Database!Q$1,FALSE)) ->  | W43: =IF(OR(Item="",Qty=""),"",Qty*VLOOKUP(Item,Food,Database!R$1,FALSE)) ->  | X43: =IF(OR(Item="",Qty=""),"",Qty*VLOOKUP(Item,Food,Database!S$1,FALSE)) -> 
D44: TOTAL | I44: =IF(SUM(I39:I43)=0,"",SUM(I39:I43)) -> 
D45: Percentage (in Calories) | K45: =IF(K44="","",(K44*9)/(K44*9+(S44-T44)*4+X44*4)) ->  | S45: =IF(S44="","",(S44-T44)*4/(K44*9+(S44-T44)*4+X44*4)) ->  | X45: =IF(X44="","",X44*4/(K44*9+(S44-T44)*4+X44*4)) -> 
B46: =B39+1 -> 2011-02-09 | C46: =VLOOKUP(WEEKDAY(B46,2),WkDay,2,FALSE) -> Wed | H46: =IF(Item="","",VLOOKUP(Item,Food,Database!C$1,FALSE)) ->  | I46: =IF(OR(Item="",Qty=""),"",Qty*VLOOKUP(Item,Food,Database!D$1,FALSE)) ->  | J46: =IF(OR(Item="",Qty=""),"",Qty*VLOOKUP(Item,Food,Database!E$1,FALSE)) ->  | K46: =IF(OR(Item="",Qty=""),"",Qty*VLOOKUP(Item,Food,Database!F$1,FALSE)) ->  | L46: =IF(OR(Item="",Qty=""),"",Qty*VLOOKUP(Item,Food,Database!G$1,FALSE)) ->  | M46: =IF(OR(Item="",Qty=""),"",Qty*VLOOKUP(Item,Food,Database!H$1,FALSE)) ->  | N46: =IF(OR(Item="",Qty=""),"",Qty*VLOOKUP(Item,Food,Database!I$1,FALSE)) ->  | O46: =IF(OR(Item="",Qty=""),"",Qty*VLOOKUP(Item,Food,Database!J$1,FALSE)) ->  | P46: =IF(OR(Item="",Qty=""),"",Qty*VLOOKUP(Item,Food,Database!K$1,FALSE)) ->  | Q46: =IF(OR(Item="",Qty=""),"",Qty*VLOOKUP(Item,Food,Database!L$1,FALSE)) ->  | R46: =IF(OR(Item="",Qty=""),"",Qty*VLOOKUP(Item,Food,Database!M$1,FALSE)) ->  | S46: =IF(OR(Item="",Qty=""),"",Qty*VLOOKUP(Item,Food,Database!N$1,FALSE)) ->  | T46: =IF(OR(Item="",Qty=""),"",Qty*VLOOKUP(Item,Food,Database!O$1,FALSE)) ->  | U46: =IF(OR(Item="",Qty=""),"",Qty*VLOOKUP(Item,Food,Database!P$1,FALSE)) ->  | V46: =IF(OR(Item="",Qty=""),"",Qty*VLOOKUP(Item,Food,Database!Q$1,FALSE)) ->  | W46: =IF(OR(Item="",Qty=""),"",Qty*VLOOKUP(Item,Food,Database!R$1,FALSE)) ->  | X46: =IF(OR(Item="",Qty=""),"",Qty*VLOOKUP(Item,Food,Database!S$1,FALSE)) -> 
H47: =IF(Item="","",VLOOKUP(Item,Food,Database!C$1,FALSE)) ->  | I47: =IF(OR(Item="",Qty=""),"",Qty*VLOOKUP(Item,Food,Database!D$1,FALSE)) ->  | J47: =IF(OR(Item="",Qty=""),"",Qty*VLOOKUP(Item,Food,Database!E$1,FALSE)) ->  | K47: =IF(OR(Item="",Qty=""),"",Qty*VLOOKUP(Item,Food,Database!F$1,FALSE)) ->  | L47: =IF(OR(Item="",Qty=""),"",Qty*VLOOKUP(Item,Food,Database!G$1,FALSE)) ->  | M47: =IF(OR(Item="",Qty=""),"",Qty*VLOOKUP(Item,Food,Database!H$1,FALSE)) ->  | N47: =IF(OR(Item="",Qty=""),"",Qty*VLOOKUP(Item,Food,Database!I$1,FALSE)) ->  | O47: =IF(OR(Item="",Qty=""),"",Qty*VLOOKUP(Item,Food,Database!J$1,FALSE)) ->  | P47: =IF(OR(Item="",Qty=""),"",Qty*VLOOKUP(Item,Food,Database!K$1,FALSE)) ->  | Q47: =IF(OR(Item="",Qty=""),"",Qty*VLOOKUP(Item,Food,Database!L$1,FALSE)) ->  | R47: =IF(OR(Item="",Qty=""),"",Qty*VLOOKUP(Item,Food,Database!M$1,FALSE)) ->  | S47: =IF(OR(Item="",Qty=""),"",Qty*VLOOKUP(Item,Food,Database!N$1,FALSE)) ->  | T47: =IF(OR(Item="",Qty=""),"",Qty*VLOOKUP(Item,Food,Database!O$1,FALSE)) ->  | U47: =IF(OR(Item="",Qty=""),"",Qty*VLOOKUP(Item,Food,Database!P$1,FALSE)) ->  | V47: =IF(OR(Item="",Qty=""),"",Qty*VLOOKUP(Item,Food,Database!Q$1,FALSE)) ->  | W47: =IF(OR(Item="",Qty=""),"",Qty*VLOOKUP(Item,Food,Database!R$1,FALSE)) ->  | X47: =IF(OR(Item="",Qty=""),"",Qty*VLOOKUP(Item,Food,Database!S$1,FALSE)) -> 
H48: =IF(Item="","",VLOOKUP(Item,Food,Database!C$1,FALSE)) ->  | I48: =IF(OR(Item="",Qty=""),"",Qty*VLOOKUP(Item,Food,Database!D$1,FALSE)) ->  | J48: =IF(OR(Item="",Qty=""),"",Qty*VLOOKUP(Item,Food,Database!E$1,FALSE)) ->  | K48: =IF(OR(Item="",Qty=""),"",Qty*VLOOKUP(Item,Food,Database!F$1,FALSE)) ->  | L48: =IF(OR(Item="",Qty=""),"",Qty*VLOOKUP(Item,Food,Database!G$1,FALSE)) ->  | M48: =IF(OR(Item="",Qty=""),"",Qty*VLOOKUP(Item,Food,Database!H$1,FALSE)) ->  | N48: =IF(OR(Item="",Qty=""),"",Qty*VLOOKUP(Item,Food,Database!I$1,FALSE)) ->  | O48: =IF(OR(Item="",Qty=""),"",Qty*VLOOKUP(Item,Food,Database!J$1,FALSE)) ->  | P48: =IF(OR(Item="",Qty=""),"",Qty*VLOOKUP(Item,Food,Database!K$1,FALSE)) ->  | Q48: =IF(OR(Item="",Qty=""),"",Qty*VLOOKUP(Item,Food,Database!L$1,FALSE)) ->  | R48: =IF(OR(Item="",Qty=""),"",Qty*VLOOKUP(Item,Food,Database!M$1,FALSE)) ->  | S48: =IF(OR(Item="",Qty=""),"",Qty*VLOOKUP(Item,Food,Database!N$1,FALSE)) ->  | T48: =IF(OR(Item="",Qty=""),"",Qty*VLOOKUP(Item,Food,Database!O$1,FALSE)) ->  | U48: =IF(OR(Item="",Qty=""),"",Qty*VLOOKUP(Item,Food,Database!P$1,FALSE)) ->  | V48: =IF(OR(Item="",Qty=""),"",Qty*VLOOKUP(Item,Food,Database!Q$1,FALSE)) ->  | W48: =IF(OR(Item="",Qty=""),"",Qty*VLOOKUP(Item,Food,Database!R$1,FALSE)) ->  | X48: =IF(OR(Item="",Qty=""),"",Qty*VLOOKUP(Item,Food,Database!S$1,FALSE)) -> 
H49: =IF(Item="","",VLOOKUP(Item,Food,Database!C$1,FALSE)) ->  | I49: =IF(OR(Item="",Qty=""),"",Qty*VLOOKUP(Item,Food,Database!D$1,FALSE)) ->  | J49: =IF(OR(Item="",Qty=""),"",Qty*VLOOKUP(Item,Food,Database!E$1,FALSE)) ->  | K49: =IF(OR(Item="",Qty=""),"",Qty*VLOOKUP(Item,Food,Database!F$1,FALSE)) ->  | L49: =IF(OR(Item="",Qty=""),"",Qty*VLOOKUP(Item,Food,Database!G$1,FALSE)) ->  | M49: =IF(OR(Item="",Qty=""),"",Qty*VLOOKUP(Item,Food,Database!H$1,FALSE)) ->  | N49: =IF(OR(Item="",Qty=""),"",Qty*VLOOKUP(Item,Food,Database!I$1,FALSE)) ->  | O49: =IF(OR(Item="",Qty=""),"",Qty*VLOOKUP(Item,Food,Database!J$1,FALSE)) ->  | P49: =IF(OR(Item="",Qty=""),"",Qty*VLOOKUP(Item,Food,Database!K$1,FALSE)) ->  | Q49: =IF(OR(Item="",Qty=""),"",Qty*VLOOKUP(Item,Food,Database!L$1,FALSE)) ->  | R49: =IF(OR(Item="",Qty=""),"",Qty*VLOOKUP(Item,Food,Database!M$1,FALSE)) ->  | S49: =IF(OR(Item="",Qty=""),"",Qty*VLOOKUP(Item,Food,Database!N$1,FALSE)) ->  | T49: =IF(OR(Item="",Qty=""),"",Qty*VLOOKUP(Item,Food,Database!O$1,FALSE)) ->  | U49: =IF(OR(Item="",Qty=""),"",Qty*VLOOKUP(Item,Food,Database!P$1,FALSE)) ->  | V49: =IF(OR(Item="",Qty=""),"",Qty*VLOOKUP(Item,Food,Database!Q$1,FALSE)) ->  | W49: =IF(OR(Item="",Qty=""),"",Qty*VLOOKUP(Item,Food,Database!R$1,FALSE)) ->  | X49: =IF(OR(Item="",Qty=""),"",Qty*VLOOKUP(Item,Food,Database!S$1,FALSE)) -> 
D50: TOTAL | I50: =IF(SUM(I46:I49)=0,"",SUM(I46:I49)) -> 
D51: Percentage (in Calories) | K51: =IF(K50="","",(K50*9)/(K50*9+(S50-T50)*4+X50*4)) ->  | S51: =IF(S50="","",(S50-T50)*4/(K50*9+(S50-T50)*4+X50*4)) ->  | X51: =IF(X50="","",X50*4/(K50*9+(S50-T50)*4+X50*4)) -> 
B52: =B46+1 -> 2011-02-10 | C52: =VLOOKUP(WEEKDAY(B52,2),WkDay,2,FALSE) -> Thu | H52: =IF(Item="","",VLOOKUP(Item,Food,Database!C$1,FALSE)) ->  | I52: =IF(OR(Item="",Qty=""),"",Qty*VLOOKUP(Item,Food,Database!D$1,FALSE)) ->  | J52: =IF(OR(Item="",Qty=""),"",Qty*VLOOKUP(Item,Food,Database!E$1,FALSE)) ->  | K52: =IF(OR(Item="",Qty=""),"",Qty*VLOOKUP(Item,Food,Database!F$1,FALSE)) ->  | L52: =IF(OR(Item="",Qty=""),"",Qty*VLOOKUP(Item,Food,Database!G$1,FALSE)) ->  | M52: =IF(OR(Item="",Qty=""),"",Qty*VLOOKUP(Item,Food,Database!H$1,FALSE)) ->  | N52: =IF(OR(Item="",Qty=""),"",Qty*VLOOKUP(Item,Food,Database!I$1,FALSE)) ->  | O52: =IF(OR(Item="",Qty=""),"",Qty*VLOOKUP(Item,Food,Database!J$1,FALSE)) ->  | P52: =IF(OR(Item="",Qty=""),"",Qty*VLOOKUP(Item,Food,Database!K$1,FALSE)) ->  | Q52: =IF(OR(Item="",Qty=""),"",Qty*VLOOKUP(Item,Food,Database!L$1,FALSE)) ->  | R52: =IF(OR(Item="",Qty=""),"",Qty*VLOOKUP(Item,Food,Database!M$1,FALSE)) ->  | S52: =IF(OR(Item="",Qty=""),"",Qty*VLOOKUP(Item,Food,Database!N$1,FALSE)) ->  | T52: =IF(OR(Item="",Qty=""),"",Qty*VLOOKUP(Item,Food,Database!O$1,FALSE)) ->  | U52: =IF(OR(Item="",Qty=""),"",Qty*VLOOKUP(Item,Food,Database!P$1,FALSE)) ->  | V52: =IF(OR(Item="",Qty=""),"",Qty*VLOOKUP(Item,Food,Database!Q$1,FALSE)) ->  | W52: =IF(OR(Item="",Qty=""),"",Qty*VLOOKUP(Item,Food,Database!R$1,FALSE)) ->  | X52: =IF(OR(Item="",Qty=""),"",Qty*VLOOKUP(Item,Food,Database!S$1,FALSE)) -> 
H53: =IF(Item="","",VLOOKUP(Item,Food,Database!C$1,FALSE)) ->  | I53: =IF(OR(Item="",Qty=""),"",Qty*VLOOKUP(Item,Food,Database!D$1,FALSE)) ->  | J53: =IF(OR(Item="",Qty=""),"",Qty*VLOOKUP(Item,Food,Database!E$1,FALSE)) ->  | K53: =IF(OR(Item="",Qty=""),"",Qty*VLOOKUP(Item,Food,Database!F$1,FALSE)) ->  | L53: =IF(OR(Item="",Qty=""),"",Qty*VLOOKUP(Item,Food,Database!G$1,FALSE)) ->  | M53: =IF(OR(Item="",Qty=""),"",Qty*VLOOKUP(Item,Food,Database!H$1,FALSE)) ->  | N53: =IF(OR(Item="",Qty=""),"",Qty*VLOOKUP(Item,Food,Database!I$1,FALSE)) ->  | O53: =IF(OR(Item="",Qty=""),"",Qty*VLOOKUP(Item,Food,Database!J$1,FALSE)) ->  | P53: =IF(OR(Item="",Qty=""),"",Qty*VLOOKUP(Item,Food,Database!K$1,FALSE)) ->  | Q53: =IF(OR(Item="",Qty=""),"",Qty*VLOOKUP(Item,Food,Database!L$1,FALSE)) ->  | R53: =IF(OR(Item="",Qty=""),"",Qty*VLOOKUP(Item,Food,Database!M$1,FALSE)) ->  | S53: =IF(OR(Item="",Qty=""),"",Qty*VLOOKUP(Item,Food,Database!N$1,FALSE)) ->  | T53: =IF(OR(Item="",Qty=""),"",Qty*VLOOKUP(Item,Food,Database!O$1,FALSE)) ->  | U53: =IF(OR(Item="",Qty=""),"",Qty*VLOOKUP(Item,Food,Database!P$1,FALSE)) ->  | V53: =IF(OR(Item="",Qty=""),"",Qty*VLOOKUP(Item,Food,Database!Q$1,FALSE)) ->  | W53: =IF(OR(Item="",Qty=""),"",Qty*VLOOKUP(Item,Food,Database!R$1,FALSE)) ->  | X53: =IF(OR(Item="",Qty=""),"",Qty*VLOOKUP(Item,Food,Database!S$1,FALSE)) -> 
H54: =IF(Item="","",VLOOKUP(Item,Food,Database!C$1,FALSE)) ->  | I54: =IF(OR(Item="",Qty=""),"",Qty*VLOOKUP(Item,Food,Database!D$1,FALSE)) ->  | J54: =IF(OR(Item="",Qty=""),"",Qty*VLOOKUP(Item,Food,Database!E$1,FALSE)) ->  | K54: =IF(OR(Item="",Qty=""),"",Qty*VLOOKUP(Item,Food,Database!F$1,FALSE)) ->  | L54: =IF(OR(Item="",Qty=""),"",Qty*VLOOKUP(Item,Food,Database!G$1,FALSE)) ->  | M54: =IF(OR(Item="",Qty=""),"",Qty*VLOOKUP(Item,Food,Database!H$1,FALSE)) ->  | N54: =IF(OR(Item="",Qty=""),"",Qty*VLOOKUP(Item,Food,Database!I$1,FALSE)) ->  | O54: =IF(OR(Item="",Qty=""),"",Qty*VLOOKUP(Item,Food,Database!J$1,FALSE)) ->  | P54: =IF(OR(Item="",Qty=""),"",Qty*VLOOKUP(Item,Food,Database!K$1,FALSE)) ->  | Q54: =IF(OR(Item="",Qty=""),"",Qty*VLOOKUP(Item,Food,Database!L$1,FALSE)) ->  | R54: =IF(OR(Item="",Qty=""),"",Qty*VLOOKUP(Item,Food,Database!M$1,FALSE)) ->  | S54: =IF(OR(Item="",Qty=""),"",Qty*VLOOKUP(Item,Food,Database!N$1,FALSE)) ->  | T54: =IF(OR(Item="",Qty=""),"",Qty*VLOOKUP(Item,Food,Database!O$1,FALSE)) ->  | U54: =IF(OR(Item="",Qty=""),"",Qty*VLOOKUP(Item,Food,Database!P$1,FALSE)) ->  | V54: =IF(OR(Item="",Qty=""),"",Qty*VLOOKUP(Item,Food,Database!Q$1,FALSE)) ->  | W54: =IF(OR(Item="",Qty=""),"",Qty*VLOOKUP(Item,Food,Database!R$1,FALSE)) ->  | X54: =IF(OR(Item="",Qty=""),"",Qty*VLOOKUP(Item,Food,Database!S$1,FALSE)) -> 
H55: =IF(Item="","",VLOOKUP(Item,Food,Database!C$1,FALSE)) ->  | I55: =IF(OR(Item="",Qty=""),"",Qty*VLOOKUP(Item,Food,Database!D$1,FALSE)) ->  | J55: =IF(OR(Item="",Qty=""),"",Qty*VLOOKUP(Item,Food,Database!E$1,FALSE)) ->  | K55: =IF(OR(Item="",Qty=""),"",Qty*VLOOKUP(Item,Food,Database!F$1,FALSE)) ->  | L55: =IF(OR(Item="",Qty=""),"",Qty*VLOOKUP(Item,Food,Database!G$1,FALSE)) ->  | M55: =IF(OR(Item="",Qty=""),"",Qty*VLOOKUP(Item,Food,Database!H$1,FALSE)) ->  | N55: =IF(OR(Item="",Qty=""),"",Qty*VLOOKUP(Item,Food,Database!I$1,FALSE)) ->  | O55: =IF(OR(Item="",Qty=""),"",Qty*VLOOKUP(Item,Food,Database!J$1,FALSE)) ->  | P55: =IF(OR(Item="",Qty=""),"",Qty*VLOOKUP(Item,Food,Database!K$1,FALSE)) ->  | Q55: =IF(OR(Item="",Qty=""),"",Qty*VLOOKUP(Item,Food,Database!L$1,FALSE)) ->  | R55: =IF(OR(Item="",Qty=""),"",Qty*VLOOKUP(Item,Food,Database!M$1,FALSE)) ->  | S55: =IF(OR(Item="",Qty=""),"",Qty*VLOOKUP(Item,Food,Database!N$1,FALSE)) ->  | T55: =IF(OR(Item="",Qty=""),"",Qty*VLOOKUP(Item,Food,Database!O$1,FALSE)) ->  | U55: =IF(OR(Item="",Qty=""),"",Qty*VLOOKUP(Item,Food,Database!P$1,FALSE)) ->  | V55: =IF(OR(Item="",Qty=""),"",Qty*VLOOKUP(Item,Food,Database!Q$1,FALSE)) ->  | W55: =IF(OR(Item="",Qty=""),"",Qty*VLOOKUP(Item,Food,Database!R$1,FALSE)) ->  | X55: =IF(OR(Item="",Qty=""),"",Qty*VLOOKUP(Item,Food,Database!S$1,FALSE)) -> 
D56: TOTAL | I56: =IF(SUM(I52:I55)=0,"",SUM(I52:I55)) -> 
D57: Percentage (in Calories) | K57: =IF(K56="","",(K56*9)/(K56*9+(S56-T56)*4+X56*4)) ->  | S57: =IF(S56="","",(S56-T56)*4/(K56*9+(S56-T56)*4+X56*4)) ->  | X57: =IF(X56="","",X56*4/(K56*9+(S56-T56)*4+X56*4)) -> 
B58: =B52+1 -> 2011-02-11 | C58: =VLOOKUP(WEEKDAY(B58,2),WkDay,2,FALSE) -> Fri | H58: =IF(Item="","",VLOOKUP(Item,Food,Database!C$1,FALSE)) ->  | I58: =IF(OR(Item="",Qty=""),"",Qty*VLOOKUP(Item,Food,Database!D$1,FALSE)) ->  | J58: =IF(OR(Item="",Qty=""),"",Qty*VLOOKUP(Item,Food,Database!E$1,FALSE)) ->  | K58: =IF(OR(Item="",Qty=""),"",Qty*VLOOKUP(Item,Food,Database!F$1,FALSE)) ->  | L58: =IF(OR(Item="",Qty=""),"",Qty*VLOOKUP(Item,Food,Database!G$1,FALSE)) ->  | M58: =IF(OR(Item="",Qty=""),"",Qty*VLOOKUP(Item,Food,Database!H$1,FALSE)) ->  | N58: =IF(OR(Item="",Qty=""),"",Qty*VLOOKUP(Item,Food,Database!I$1,FALSE)) ->  | O58: =IF(OR(Item="",Qty=""),"",Qty*VLOOKUP(Item,Food,Database!J$1,FALSE)) ->  | P58: =IF(OR(Item="",Qty=""),"",Qty*VLOOKUP(Item,Food,Database!K$1,FALSE)) ->  | Q58: =IF(OR(Item="",Qty=""),"",Qty*VLOOKUP(Item,Food,Database!L$1,FALSE)) ->  | R58: =IF(OR(Item="",Qty=""),"",Qty*VLOOKUP(Item,Food,Database!M$1,FALSE)) ->  | S58: =IF(OR(Item="",Qty=""),"",Qty*VLOOKUP(Item,Food,Database!N$1,FALSE)) ->  | T58: =IF(OR(Item="",Qty=""),"",Qty*VLOOKUP(Item,Food,Database!O$1,FALSE)) ->  | U58: =IF(OR(Item="",Qty=""),"",Qty*VLOOKUP(Item,Food,Database!P$1,FALSE)) ->  | V58: =IF(OR(Item="",Qty=""),"",Qty*VLOOKUP(Item,Food,Database!Q$1,FALSE)) ->  | W58: =IF(OR(Item="",Qty=""),"",Qty*VLOOKUP(Item,Food,Database!R$1,FALSE)) ->  | X58: =IF(OR(Item="",Qty=""),"",Qty*VLOOKUP(Item,Food,Database!S$1,FALSE)) -> 
H59: =IF(Item="","",VLOOKUP(Item,Food,Database!C$1,FALSE)) ->  | I59: =IF(OR(Item="",Qty=""),"",Qty*VLOOKUP(Item,Food,Database!D$1,FALSE)) ->  | J59: =IF(OR(Item="",Qty=""),"",Qty*VLOOKUP(Item,Food,Database!E$1,FALSE)) ->  | K59: =IF(OR(Item="",Qty=""),"",Qty*VLOOKUP(Item,Food,Database!F$1,FALSE)) ->  | L59: =IF(OR(Item="",Qty=""),"",Qty*VLOOKUP(Item,Food,Database!G$1,FALSE)) ->  | M59: =IF(OR(Item="",Qty=""),"",Qty*VLOOKUP(Item,Food,Database!H$1,FALSE)) ->  | N59: =IF(OR(Item="",Qty=""),"",Qty*VLOOKUP(Item,Food,Database!I$1,FALSE)) ->  | O59: =IF(OR(Item="",Qty=""),"",Qty*VLOOKUP(Item,Food,Database!J$1,FALSE)) ->  | P59: =IF(OR(Item="",Qty=""),"",Qty*VLOOKUP(Item,Food,Database!K$1,FALSE)) ->  | Q59: =IF(OR(Item="",Qty=""),"",Qty*VLOOKUP(Item,Food,Database!L$1,FALSE)) ->  | R59: =IF(OR(Item="",Qty=""),"",Qty*VLOOKUP(Item,Food,Database!M$1,FALSE)) ->  | S59: =IF(OR(Item="",Qty=""),"",Qty*VLOOKUP(Item,Food,Database!N$1,FALSE)) ->  | T59: =IF(OR(Item="",Qty=""),"",Qty*VLOOKUP(Item,Food,Database!O$1,FALSE)) ->  | U59: =IF(OR(Item="",Qty=""),"",Qty*VLOOKUP(Item,Food,Database!P$1,FALSE)) ->  | V59: =IF(OR(Item="",Qty=""),"",Qty*VLOOKUP(Item,Food,Database!Q$1,FALSE)) ->  | W59: =IF(OR(Item="",Qty=""),"",Qty*VLOOKUP(Item,Food,Database!R$1,FALSE)) ->  | X59: =IF(OR(Item="",Qty=""),"",Qty*VLOOKUP(Item,Food,Database!S$1,FALSE)) -> 
H60: =IF(Item="","",VLOOKUP(Item,Food,Database!C$1,FALSE)) ->  | I60: =IF(OR(Item="",Qty=""),"",Qty*VLOOKUP(Item,Food,Database!D$1,FALSE)) ->  | J60: =IF(OR(Item="",Qty=""),"",Qty*VLOOKUP(Item,Food,Database!E$1,FALSE)) ->  | K60: =IF(OR(Item="",Qty=""),"",Qty*VLOOKUP(Item,Food,Database!F$1,FALSE)) ->  | L60: =IF(OR(Item="",Qty=""),"",Qty*VLOOKUP(Item,Food,Database!G$1,FALSE)) ->  | M60: =IF(OR(Item="",Qty=""),"",Qty*VLOOKUP(Item,Food,Database!H$1,FALSE)) ->  | N60: =IF(OR(Item="",Qty=""),"",Qty*VLOOKUP(Item,Food,Database!I$1,FALSE)) ->  | O60: =IF(OR(Item="",Qty=""),"",Qty*VLOOKUP(Item,Food,Database!J$1,FALSE)) ->  | P60: =IF(OR(Item="",Qty=""),"",Qty*VLOOKUP(Item,Food,Database!K$1,FALSE)) ->  | Q60: =IF(OR(Item="",Qty=""),"",Qty*VLOOKUP(Item,Food,Database!L$1,FALSE)) ->  | R60: =IF(OR(Item="",Qty=""),"",Qty*VLOOKUP(Item,Food,Database!M$1,FALSE)) ->  | S60: =IF(OR(Item="",Qty=""),"",Qty*VLOOKUP(Item,Food,Database!N$1,FALSE)) ->  | T60: =IF(OR(Item="",Qty=""),"",Qty*VLOOKUP(Item,Food,Database!O$1,FALSE)) ->  | U60: =IF(OR(Item="",Qty=""),"",Qty*VLOOKUP(Item,Food,Database!P$1,FALSE)) ->  | V60: =IF(OR(Item="",Qty=""),"",Qty*VLOOKUP(Item,Food,Database!Q$1,FALSE)) ->  | W60: =IF(OR(Item="",Qty=""),"",Qty*VLOOKUP(Item,Food,Database!R$1,FALSE)) ->  | X60: =IF(OR(Item="",Qty=""),"",Qty*VLOOKUP(Item,Food,Database!S$1,FALSE)) -> 
H61: =IF(Item="","",VLOOKUP(Item,Food,Database!C$1,FALSE)) ->  | I61: =IF(OR(Item="",Qty=""),"",Qty*VLOOKUP(Item,Food,Database!D$1,FALSE)) ->  | J61: =IF(OR(Item="",Qty=""),"",Qty*VLOOKUP(Item,Food,Database!E$1,FALSE)) ->  | K61: =IF(OR(Item="",Qty=""),"",Qty*VLOOKUP(Item,Food,Database!F$1,FALSE)) ->  | L61: =IF(OR(Item="",Qty=""),"",Qty*VLOOKUP(Item,Food,Database!G$1,FALSE)) ->  | M61: =IF(OR(Item="",Qty=""),"",Qty*VLOOKUP(Item,Food,Database!H$1,FALSE)) ->  | N61: =IF(OR(Item="",Qty=""),"",Qty*VLOOKUP(Item,Food,Database!I$1,FALSE)) ->  | O61: =IF(OR(Item="",Qty=""),"",Qty*VLOOKUP(Item,Food,Database!J$1,FALSE)) ->  | P61: =IF(OR(Item="",Qty=""),"",Qty*VLOOKUP(Item,Food,Database!K$1,FALSE)) ->  | Q61: =IF(OR(Item="",Qty=""),"",Qty*VLOOKUP(Item,Food,Database!L$1,FALSE)) ->  | R61: =IF(OR(Item="",Qty=""),"",Qty*VLOOKUP(Item,Food,Database!M$1,FALSE)) ->  | S61: =IF(OR(Item="",Qty=""),"",Qty*VLOOKUP(Item,Food,Database!N$1,FALSE)) ->  | T61: =IF(OR(Item="",Qty=""),"",Qty*VLOOKUP(Item,Food,Database!O$1,FALSE)) ->  | U61: =IF(OR(Item="",Qty=""),"",Qty*VLOOKUP(Item,Food,Database!P$1,FALSE)) ->  | V61: =IF(OR(Item="",Qty=""),"",Qty*VLOOKUP(Item,Food,Database!Q$1,FALSE)) ->  | W61: =IF(OR(Item="",Qty=""),"",Qty*VLOOKUP(Item,Food,Database!R$1,FALSE)) ->  | X61: =IF(OR(Item="",Qty=""),"",Qty*VLOOKUP(Item,Food,Database!S$1,FALSE)) -> 
D62: TOTAL | I62: =IF(SUM(I58:I61)=0,"",SUM(I58:I61)) -> 
D63: Percentage (in Calories) | K63: =IF(K62="","",(K62*9)/(K62*9+(S62-T62)*4+X62*4)) ->  | S63: =IF(S62="","",(S62-T62)*4/(K62*9+(S62-T62)*4+X62*4)) ->  | X63: =IF(X62="","",X62*4/(K62*9+(S62-T62)*4+X62*4)) -> 
B64: =B58+1 -> 2011-02-12 | C64: =VLOOKUP(WEEKDAY(B64,2),WkDay,2,FALSE) -> Sat | H64: =IF(Item="","",VLOOKUP(Item,Food,Database!C$1,FALSE)) ->  | I64: =IF(OR(Item="",Qty=""),"",Qty*VLOOKUP(Item,Food,Database!D$1,FALSE)) ->  | J64: =IF(OR(Item="",Qty=""),"",Qty*VLOOKUP(Item,Food,Database!E$1,FALSE)) ->  | K64: =IF(OR(Item="",Qty=""),"",Qty*VLOOKUP(Item,Food,Database!F$1,FALSE)) ->  | L64: =IF(OR(Item="",Qty=""),"",Qty*VLOOKUP(Item,Food,Database!G$1,FALSE)) ->  | M64: =IF(OR(Item="",Qty=""),"",Qty*VLOOKUP(Item,Food,Database!H$1,FALSE)) ->  | N64: =IF(OR(Item="",Qty=""),"",Qty*VLOOKUP(Item,Food,Database!I$1,FALSE)) ->  | O64: =IF(OR(Item="",Qty=""),"",Qty*VLOOKUP(Item,Food,Database!J$1,FALSE)) ->  | P64: =IF(OR(Item="",Qty=""),"",Qty*VLOOKUP(Item,Food,Database!K$1,FALSE)) ->  | Q64: =IF(OR(Item="",Qty=""),"",Qty*VLOOKUP(Item,Food,Database!L$1,FALSE)) ->  | R64: =IF(OR(Item="",Qty=""),"",Qty*VLOOKUP(Item,Food,Database!M$1,FALSE)) ->  | S64: =IF(OR(Item="",Qty=""),"",Qty*VLOOKUP(Item,Food,Database!N$1,FALSE)) ->  | T64: =IF(OR(Item="",Qty=""),"",Qty*VLOOKUP(Item,Food,Database!O$1,FALSE)) ->  | U64: =IF(OR(Item="",Qty=""),"",Qty*VLOOKUP(Item,Food,Database!P$1,FALSE)) ->  | V64: =IF(OR(Item="",Qty=""),"",Qty*VLOOKUP(Item,Food,Database!Q$1,FALSE)) ->  | W64: =IF(OR(Item="",Qty=""),"",Qty*VLOOKUP(Item,Food,Database!R$1,FALSE)) ->  | X64: =IF(OR(Item="",Qty=""),"",Qty*VLOOKUP(Item,Food,Database!S$1,FALSE)) -> 
H65: =IF(Item="","",VLOOKUP(Item,Food,Database!C$1,FALSE)) ->  | I65: =IF(OR(Item="",Qty=""),"",Qty*VLOOKUP(Item,Food,Database!D$1,FALSE)) ->  | J65: =IF(OR(Item="",Qty=""),"",Qty*VLOOKUP(Item,Food,Database!E$1,FALSE)) ->  | K65: =IF(OR(Item="",Qty=""),"",Qty*VLOOKUP(Item,Food,Database!F$1,FALSE)) ->  | L65: =IF(OR(Item="",Qty=""),"",Qty*VLOOKUP(Item,Food,Database!G$1,FALSE)) ->  | M65: =IF(OR(Item="",Qty=""),"",Qty*VLOOKUP(Item,Food,Database!H$1,FALSE)) ->  | N65: =IF(OR(Item="",Qty=""),"",Qty*VLOOKUP(Item,Food,Database!I$1,FALSE)) ->  | O65: =IF(OR(Item="",Qty=""),"",Qty*VLOOKUP(Item,Food,Database!J$1,FALSE)) ->  | P65: =IF(OR(Item="",Qty=""),"",Qty*VLOOKUP(Item,Food,Database!K$1,FALSE)) ->  | Q65: =IF(OR(Item="",Qty=""),"",Qty*VLOOKUP(Item,Food,Database!L$1,FALSE)) ->  | R65: =IF(OR(Item="",Qty=""),"",Qty*VLOOKUP(Item,Food,Database!M$1,FALSE)) ->  | S65: =IF(OR(Item="",Qty=""),"",Qty*VLOOKUP(Item,Food,Database!N$1,FALSE)) ->  | T65: =IF(OR(Item="",Qty=""),"",Qty*VLOOKUP(Item,Food,Database!O$1,FALSE)) ->  | U65: =IF(OR(Item="",Qty=""),"",Qty*VLOOKUP(Item,Food,Database!P$1,FALSE)) ->  | V65: =IF(OR(Item="",Qty=""),"",Qty*VLOOKUP(Item,Food,Database!Q$1,FALSE)) ->  | W65: =IF(OR(Item="",Qty=""),"",Qty*VLOOKUP(Item,Food,Database!R$1,FALSE)) ->  | X65: =IF(OR(Item="",Qty=""),"",Qty*VLOOKUP(Item,Food,Database!S$1,FALSE)) -> 
H66: =IF(Item="","",VLOOKUP(Item,Food,Database!C$1,FALSE)) ->  | I66: =IF(OR(Item="",Qty=""),"",Qty*VLOOKUP(Item,Food,Database!D$1,FALSE)) ->  | J66: =IF(OR(Item="",Qty=""),"",Qty*VLOOKUP(Item,Food,Database!E$1,FALSE)) ->  | K66: =IF(OR(Item="",Qty=""),"",Qty*VLOOKUP(Item,Food,Database!F$1,FALSE)) ->  | L66: =IF(OR(Item="",Qty=""),"",Qty*VLOOKUP(Item,Food,Database!G$1,FALSE)) ->  | M66: =IF(OR(Item="",Qty=""),"",Qty*VLOOKUP(Item,Food,Database!H$1,FALSE)) ->  | N66: =IF(OR(Item="",Qty=""),"",Qty*VLOOKUP(Item,Food,Database!I$1,FALSE)) ->  | O66: =IF(OR(Item="",Qty=""),"",Qty*VLOOKUP(Item,Food,Database!J$1,FALSE)) ->  | P66: =IF(OR(Item="",Qty=""),"",Qty*VLOOKUP(Item,Food,Database!K$1,FALSE)) ->  | Q66: =IF(OR(Item="",Qty=""),"",Qty*VLOOKUP(Item,Food,Database!L$1,FALSE)) ->  | R66: =IF(OR(Item="",Qty=""),"",Qty*VLOOKUP(Item,Food,Database!M$1,FALSE)) ->  | S66: =IF(OR(Item="",Qty=""),"",Qty*VLOOKUP(Item,Food,Database!N$1,FALSE)) ->  | T66: =IF(OR(Item="",Qty=""),"",Qty*VLOOKUP(Item,Food,Database!O$1,FALSE)) ->  | U66: =IF(OR(Item="",Qty=""),"",Qty*VLOOKUP(Item,Food,Database!P$1,FALSE)) ->  | V66: =IF(OR(Item="",Qty=""),"",Qty*VLOOKUP(Item,Food,Database!Q$1,FALSE)) ->  | W66: =IF(OR(Item="",Qty=""),"",Qty*VLOOKUP(Item,Food,Database!R$1,FALSE)) ->  | X66: =IF(OR(Item="",Qty=""),"",Qty*VLOOKUP(Item,Food,Database!S$1,FALSE)) -> 
D67: TOTAL | I67: =IF(SUM(I64:I66)=0,"",SUM(I64:I66)) -> 
D68: Percentage (in Calories) | K68: =IF(K67="","",(K67*9)/(K67*9+(S67-T67)*4+X67*4)) ->  | S68: =IF(S67="","",(S67-T67)*4/(K67*9+(S67-T67)*4+X67*4)) ->  | X68: =IF(X67="","",X67*4/(K67*9+(S67-T67)*4+X67*4)) -> 
B69: =B64+1 -> 2011-02-13 | C69: =VLOOKUP(WEEKDAY(B69,2),WkDay,2,FALSE) -> Sun | H69: =IF(Item="","",VLOOKUP(Item,Food,Database!C$1,FALSE)) ->  | I69: =IF(OR(Item="",Qty=""),"",Qty*VLOOKUP(Item,Food,Database!D$1,FALSE)) ->  | J69: =IF(OR(Item="",Qty=""),"",Qty*VLOOKUP(Item,Food,Database!E$1,FALSE)) ->  | K69: =IF(OR(Item="",Qty=""),"",Qty*VLOOKUP(Item,Food,Database!F$1,FALSE)) ->  | L69: =IF(OR(Item="",Qty=""),"",Qty*VLOOKUP(Item,Food,Database!G$1,FALSE)) ->  | M69: =IF(OR(Item="",Qty=""),"",Qty*VLOOKUP(Item,Food,Database!H$1,FALSE)) ->  | N69: =IF(OR(Item="",Qty=""),"",Qty*VLOOKUP(Item,Food,Database!I$1,FALSE)) ->  | O69: =IF(OR(Item="",Qty=""),"",Qty*VLOOKUP(Item,Food,Database!J$1,FALSE)) ->  | P69: =IF(OR(Item="",Qty=""),"",Qty*VLOOKUP(Item,Food,Database!K$1,FALSE)) ->  | Q69: =IF(OR(Item="",Qty=""),"",Qty*VLOOKUP(Item,Food,Database!L$1,FALSE)) ->  | R69: =IF(OR(Item="",Qty=""),"",Qty*VLOOKUP(Item,Food,Database!M$1,FALSE)) ->  | S69: =IF(OR(Item="",Qty=""),"",Qty*VLOOKUP(Item,Food,Database!N$1,FALSE)) ->  | T69: =IF(OR(Item="",Qty=""),"",Qty*VLOOKUP(Item,Food,Database!O$1,FALSE)) ->  | U69: =IF(OR(Item="",Qty=""),"",Qty*VLOOKUP(Item,Food,Database!P$1,FALSE)) ->  | V69: =IF(OR(Item="",Qty=""),"",Qty*VLOOKUP(Item,Food,Database!Q$1,FALSE)) ->  | W69: =IF(OR(Item="",Qty=""),"",Qty*VLOOKUP(Item,Food,Database!R$1,FALSE)) ->  | X69: =IF(OR(Item="",Qty=""),"",Qty*VLOOKUP(Item,Food,Database!S$1,FALSE)) -> 
H70: =IF(Item="","",VLOOKUP(Item,Food,Database!C$1,FALSE)) ->  | I70: =IF(OR(Item="",Qty=""),"",Qty*VLOOKUP(Item,Food,Database!D$1,FALSE)) ->  | J70: =IF(OR(Item="",Qty=""),"",Qty*VLOOKUP(Item,Food,Database!E$1,FALSE)) ->  | K70: =IF(OR(Item="",Qty=""),"",Qty*VLOOKUP(Item,Food,Database!F$1,FALSE)) ->  | L70: =IF(OR(Item="",Qty=""),"",Qty*VLOOKUP(Item,Food,Database!G$1,FALSE)) ->  | M70: =IF(OR(Item="",Qty=""),"",Qty*VLOOKUP(Item,Food,Database!H$1,FALSE)) ->  | N70: =IF(OR(Item="",Qty=""),"",Qty*VLOOKUP(Item,Food,Database!I$1,FALSE)) ->  | O70: =IF(OR(Item="",Qty=""),"",Qty*VLOOKUP(Item,Food,Database!J$1,FALSE)) ->  | P70: =IF(OR(Item="",Qty=""),"",Qty*VLOOKUP(Item,Food,Database!K$1,FALSE)) ->  | Q70: =IF(OR(Item="",Qty=""),"",Qty*VLOOKUP(Item,Food,Database!L$1,FALSE)) ->  | R70: =IF(OR(Item="",Qty=""),"",Qty*VLOOKUP(Item,Food,Database!M$1,FALSE)) ->  | S70: =IF(OR(Item="",Qty=""),"",Qty*VLOOKUP(Item,Food,Database!N$1,FALSE)) ->  | T70: =IF(OR(Item="",Qty=""),"",Qty*VLOOKUP(Item,Food,Database!O$1,FALSE)) ->  | U70: =IF(OR(Item="",Qty=""),"",Qty*VLOOKUP(Item,Food,Database!P$1,FALSE)) ->  | V70: =IF(OR(Item="",Qty=""),"",Qty*VLOOKUP(Item,Food,Database!Q$1,FALSE)) ->  | W70: =IF(OR(Item="",Qty=""),"",Qty*VLOOKUP(Item,Food,Database!R$1,FALSE)) ->  | X70: =IF(OR(Item="",Qty=""),"",Qty*VLOOKUP(Item,Food,Database!S$1,FALSE)) -> 
H71: =IF(Item="","",VLOOKUP(Item,Food,Database!C$1,FALSE)) ->  | I71: =IF(OR(Item="",Qty=""),"",Qty*VLOOKUP(Item,Food,Database!D$1,FALSE)) ->  | J71: =IF(OR(Item="",Qty=""),"",Qty*VLOOKUP(Item,Food,Database!E$1,FALSE)) ->  | K71: =IF(OR(Item="",Qty=""),"",Qty*VLOOKUP(Item,Food,Database!F$1,FALSE)) ->  | L71: =IF(OR(Item="",Qty=""),"",Qty*VLOOKUP(Item,Food,Database!G$1,FALSE)) ->  | M71: =IF(OR(Item="",Qty=""),"",Qty*VLOOKUP(Item,Food,Database!H$1,FALSE)) ->  | N71: =IF(OR(Item="",Qty=""),"",Qty*VLOOKUP(Item,Food,Database!I$1,FALSE)) ->  | O71: =IF(OR(Item="",Qty=""),"",Qty*VLOOKUP(Item,Food,Database!J$1,FALSE)) ->  | P71: =IF(OR(Item="",Qty=""),"",Qty*VLOOKUP(Item,Food,Database!K$1,FALSE)) ->  | Q71: =IF(OR(Item="",Qty=""),"",Qty*VLOOKUP(Item,Food,Database!L$1,FALSE)) ->  | R71: =IF(OR(Item="",Qty=""),"",Qty*VLOOKUP(Item,Food,Database!M$1,FALSE)) ->  | S71: =IF(OR(Item="",Qty=""),"",Qty*VLOOKUP(Item,Food,Database!N$1,FALSE)) ->  | T71: =IF(OR(Item="",Qty=""),"",Qty*VLOOKUP(Item,Food,Database!O$1,FALSE)) ->  | U71: =IF(OR(Item="",Qty=""),"",Qty*VLOOKUP(Item,Food,Database!P$1,FALSE)) ->  | V71: =IF(OR(Item="",Qty=""),"",Qty*VLOOKUP(Item,Food,Database!Q$1,FALSE)) ->  | W71: =IF(OR(Item="",Qty=""),"",Qty*VLOOKUP(Item,Food,Database!R$1,FALSE)) ->  | X71: =IF(OR(Item="",Qty=""),"",Qty*VLOOKUP(Item,Food,Database!S$1,FALSE)) -> 
D72: TOTAL | I72: =IF(SUM(I69:I71)=0,"",SUM(I69:I71)) -> 
D73: Percentage (in Calories) | K73: =IF(K72="","",(K72*9)/(K72*9+(S72-T72)*4+X72*4)) ->  | S73: =IF(S72="","",(S72-T72)*4/(K72*9+(S72-T72)*4+X72*4)) ->  | X73: =IF(X72="","",X72*4/(K72*9+(S72-T72)*4+X72*4)) -> 
B74: =B31 -> 1 | F74: WEEKLY AVERAGE | I74: =IF(ISERROR(AVERAGE(I72,I67,I62,I56,I50,I44,#REF!))=TRUE,"",IF(AVERAGE(I72,I67,I62,I56,I50,I44,#REF!)=0,"",AVERAGE(I72,I67,I62,I56,I50,I44,#REF!))) ->  | J74: =IF(ISERROR(AVERAGE(J72,J67,J62,J56,J50,J44,#REF!))=TRUE,"",IF(AVERAGE(J72,J67,J62,J56,J50,J44,#REF!)=0,"",AVERAGE(J72,J67,J62,J56,J50,J44,#REF!))) ->  | K74: =IF(ISERROR(AVERAGE(K72,K67,K62,K56,K50,K44,#REF!))=TRUE,"",IF(AVERAGE(K72,K67,K62,K56,K50,K44,#REF!)=0,"",AVERAGE(K72,K67,K62,K56,K50,K44,#REF!))) ->  | L74: =IF(ISERROR(AVERAGE(L72,L67,L62,L56,L50,L44,#REF!))=TRUE,"",IF(AVERAGE(L72,L67,L62,L56,L50,L44,#REF!)=0,"",AVERAGE(L72,L67,L62,L56,L50,L44,#REF!))) ->  | M74: =IF(ISERROR(AVERAGE(M72,M67,M62,M56,M50,M44,#REF!))=TRUE,"",IF(AVERAGE(M72,M67,M62,M56,M50,M44,#REF!)=0,"",AVERAGE(M72,M67,M62,M56,M50,M44,#REF!))) ->  | N74: =IF(ISERROR(AVERAGE(N72,N67,N62,N56,N50,N44,#REF!))=TRUE,"",IF(AVERAGE(N72,N67,N62,N56,N50,N44,#REF!)=0,"",AVERAGE(N72,N67,N62,N56,N50,N44,#REF!))) ->  | O74: =IF(ISERROR(AVERAGE(O72,O67,O62,O56,O50,O44,#REF!))=TRUE,"",IF(AVERAGE(O72,O67,O62,O56,O50,O44,#REF!)=0,"",AVERAGE(O72,O67,O62,O56,O50,O44,#REF!))) ->  | P74: =IF(ISERROR(AVERAGE(P72,P67,P62,P56,P50,P44,#REF!))=TRUE,"",IF(AVERAGE(P72,P67,P62,P56,P50,P44,#REF!)=0,"",AVERAGE(P72,P67,P62,P56,P50,P44,#REF!))) ->  | Q74: =IF(ISERROR(AVERAGE(Q72,Q67,Q62,Q56,Q50,Q44,#REF!))=TRUE,"",IF(AVERAGE(Q72,Q67,Q62,Q56,Q50,Q44,#REF!)=0,"",AVERAGE(Q72,Q67,Q62,Q56,Q50,Q44,#REF!))) ->  | R74: =IF(ISERROR(AVERAGE(R72,R67,R62,R56,R50,R44,#REF!))=TRUE,"",IF(AVERAGE(R72,R67,R62,R56,R50,R44,#REF!)=0,"",AVERAGE(R72,R67,R62,R56,R50,R44,#REF!))) ->  | S74: =IF(ISERROR(AVERAGE(S72,S67,S62,S56,S50,S44,#REF!))=TRUE,"",IF(AVERAGE(S72,S67,S62,S56,S50,S44,#REF!)=0,"",AVERAGE(S72,S67,S62,S56,S50,S44,#REF!))) ->  | T74: =IF(ISERROR(AVERAGE(T72,T67,T62,T56,T50,T44,#REF!))=TRUE,"",IF(AVERAGE(T72,T67,T62,T56,T50,T44,#REF!)=0,"",AVERAGE(T72,T67,T62,T56,T50,T44,#REF!))) ->  | U74: =IF(ISERROR(AVERAGE(U72,U67,U62,U56,U50,U44,#REF!))=TRUE,"",IF(AVERAGE(U72,U67,U62,U56,U50,U44,#REF!)=0,"",AVERAGE(U72,U67,U62,U56,U50,U44,#REF!))) ->  | V74: =IF(ISERROR(AVERAGE(V72,V67,V62,V56,V50,V44,#REF!))=TRUE,"",IF(AVERAGE(V72,V67,V62,V56,V50,V44,#REF!)=0,"",AVERAGE(V72,V67,V62,V56,V50,V44,#REF!))) ->  | W74: =IF(ISERROR(AVERAGE(W72,W67,W62,W56,W50,W44,#REF!))=TRUE,"",IF(AVERAGE(W72,W67,W62,W56,W50,W44,#REF!)=0,"",AVERAGE(W72,W67,W62,W56,W50,W44,#REF!))) ->  | X74: =IF(ISERROR(AVERAGE(X72,X67,X62,X56,X50,X44,#REF!))=TRUE,"",IF(AVERAGE(X72,X67,X62,X56,X50,X44,#REF!)=0,"",AVERAGE(X72,X67,X62,X56,X50,X44,#REF!))) -> 
F75: Percentage (in Calories) | K75: =IF(K74="","",(K74*9)/(K74*9+(S74-T74)*4+X74*4)) ->  | S75: =IF(S74="","",(S74-T74)*4/(K74*9+(S74-T74)*4+X74*4)) ->  | X75: =IF(X74="","",X74*4/(K74*9+(S74-T74)*4+X74*4)) -> 

Sheet Plot
A1: Date | B1: Calories | C1: Fat (g) | D1: Carbs (g) | E1: Protein (g) | F1: Fiber (g) | G1: Fat % | H1: Carbs % | I1: Protein %
A2: 2011-02-07
A3: 2011-02-08
A4: 2011-02-09
A5: 2011-02-10
A6: 2011-02-11
A7: 2011-02-12
A8: 2011-02-13

Sheet Database
B1: 1 | C1: 2 | D1: 3 | E1: 4 | F1: 5 | G1: 6 | H1: 7 | I1: 8 | J1: 9 | K1: 10 | L1: 11 | M1: 12 | N1: 13 | O1: 14 | P1: 15 | Q1: 16 | R1: 17 | S1: 18
B3: Fruit | C3: 1 | D3: Mon
B4: Vegetable | C4: 2 | D4: Tue
B5: Starch | C5: 3 | D5: Wed
B6: Protein | C6: 4 | D6: Thu
B7: Dairy | C7: 5 | D7: Fri
B8: Nut | C8: 6 | D8: Sat
B9: Ingredient | C9: 7 | D9: Sun
B10: Beverage
B11: Prepared
B12: Supplement
B13: Alcohol
B15: FOOD NUTRITION DATABASE | I15: Click "ADD NEW ITEM" for a new entry. Click "SORT" to arrange alphabetically. Look up Nutrition info from Food Lables or from Online sources, such as www.thecaloriecounter.com
B17: FRUIT
B18: Item | C18: Base Unit | D18: Total Calories | E18: Fat Calories | F18: Fat | K18: Cholesterol (mg) | L18: Sodium (mg) | M18: Potassium (mg) | N18: Carbs | S18: Protein (g)
F19: Total (g) | G19: Sat. (g) | H19: P.Unsat. (g) | I19: M.Unsat. (g) | J19: Trans (g) | N19: Total (g) | O19: Fiber (g) | P19: Sol. (g) | Q19: Insol. (g) | R19: Sugar (g)
B20: Apple | C20: 1 | D20: 55 | E20: 2 | F20: 0.2 | G20: 0 | H20: 0.1 | I20: 0 | K20: 0 | L20: 1.1 | M20: 113.4 | N20: 14.6 | O20: 2.5 | R20: 11 | S20: 0.3
B21: Avacodo | C21: 1 | D21: 289 | E21: 240 | F21: 26.7 | G21: 3.7 | H21: 3.5 | I21: 17 | L21: 13.8 | M21: 877.1 | N21: 14.9 | O21: 11.8 | R21: 0.5 | S21: 3.4
B22: Banana | C22: 1 (med) | D22: 105 | E22: 4 | F22: 0.4 | G22: 0.1 | H22: 0.1 | L22: 1.2 | M22: 422.4 | N22: 27 | O22: 3.1 | R22: 14.4 | S22: 1.3
B23: Blueberries | C23: 1 cup (145 g) | D23: 83 | E23: 4 | F23: 0.5 | H23: 0.2 | I23: 0.1 | L23: 1.5 | M23: 111.7 | N23: 21 | O23: 0.5 | R23: 14.4 | S23: 1.1
B24: Cranberries, Dried | C24: 1/3 cup | D24: 123 | E24: 5 | F24: 0.5 | H24: 0.3 | I24: 0.1 | L24: 1.2 | M24: 16 | N24: 32.9 | O24: 2.3 | R24: 26
B25: Grapefruit (Pink) | C25: 1 (196 g) | D25: 76 | E25: 0.2 | L25: 2 | M25: 317.5 | N25: 18 | O25: 0.2 | R25: 17.8 | S25: 1
B26: Grapes | C26: 1 cup | D26: 110 | E26: 2 | F26: 0.3 | G26: 0.1 | H26: 0.1 | K26: 0 | L26: 3.2 | M26: 305.6 | N26: 29 | O26: 1.4 | R26: 24.8 | S26: 1.2
B27: Nectarine | C27: 1 | D27: 60 | E27: 4 | F27: 0.4 | H27: 0.2 | I27: 0.1 | K27: 0 | L27: 0 | M27: 273.4 | N27: 14.3 | O27: 2.3 | R27: 10.7 | S27: 1.4
B28: Orange, Navel (2-7/8") | C28: 1 | D28: 69 | E28: 2 | F28: 0.2 | L28: 1.4 | M28: 232.4 | N28: 17.6 | O28: 3.1 | R28: 11.9 | S28: 1.3
B29: Peach | C29: 1 | D29: 31 | E29: 2 | F29: 0.2 | G29: 0 | H29: 0.1 | I29: 0.1 | J29: 0 | K29: 0 | L29: 0 | M29: 150.1 | N29: 7.5 | O29: 1.2 | R29: 6.6 | S29: 0.7
B30: Plum | C30: 1 | D30: 30 | E30: 2 | F30: 0.18 | G30: 0.011 | H30: 0.029 | I30: 0.088 | M30: 104 | N30: 7.54 | O30: 0.9 | S30: 0.46
B31: Raisins | C31: 1/4 cup | D31: 130 | L31: 10 | M31: 310 | N31: 31 | O31: 2 | R31: 29 | S31: 1
B32: Raisins, Golden | C32: 1/4 cup | D32: 130 | L32: 10 | M32: 310 | N32: 31 | O32: 2 | R32: 29 | S32: 1
B33: Rasberries | C33: 1 cup (123 g) | D33: 64 | E33: 7 | F33: 0.8 | H33: 0.5 | I33: 0.1 | L33: 1 | N33: 14.7 | O33: 8 | R33: 5.4 | S33: 1.5
B34: Strawberries | C34: 1 cup (whole-144g) | D34: 46 | E34: 4 | F34: 0.4 | H34: 0.2 | I34: 0.1 | L34: 1.4 | M34: 220.3 | N34: 11.1 | O34: 2.9 | R34: 6.7 | S34: 1
B36: VEGETABLE
B37: Item | C37: Base Unit | D37: Total Calories | E37: Fat Calories | F37: Fat | K37: Cholesterol (mg) | L37: Sodium (mg) | M37: Potassium (mg) | N37: Carbs | S37: Protein (g)
F38: Total (g) | G38: Sat. (g) | H38: P.Unsat. (g) | I38: M.Unsat. (g) | J38: Trans (g) | N38: Total (g) | O38: Fiber (g) | P38: Sol. (g) | Q38: Insol. (g) | R38: Sugar (g)
B39: Asparagus | C39: 1 cup | D39: 27 | E39: 1 | F39: 0.2 | G39: 0.1 | H39: 0.1 | L39: 2.7 | M39: 270.7 | N39: 5.2 | O39: 2.8 | R39: 2.5 | S39: 2.9
B40: Bok Choy | C40: 1 cup (70 g) | D40: 9 | E40: 1.26 | F40: 0.14 | N40: 1.53 | O40: 0.7 | R40: 0.83 | S40: 1.05
B41: Broccoli | C41: I cup (88 g) | D41: 30 | E41: 0 | L41: 29 | M41: 278.1 | N41: 5.8 | O41: 2.3 | R41: 1.5 | S41: 2.5
B42: Carrot | C42: 1 cup | D42: 50 | E42: 3 | F42: 0.3 | G42: 0 | H42: 0.1 | I42: 0 | J42: 0 | K42: 0 | L42: 84.2 | M42: 390.4 | N42: 11.7 | O42: 3.7 | R42: 5.5 | S42: 1.1
B43: Celery | C43: 1 cup | D43: 17 | E43: 2 | F43: 0.2 | G43: 0.1 | H43: 0.1 | K43: 0 | L43: 96 | M43: 312 | N43: 3.6 | O43: 1.9 | R43: 2.2 | S43: 0.8
B44: Corn | C44: 2/3 cup | D44: 100 | E44: 10 | F44: 1 | N44: 20 | O44: 1 | R44: 5 | S44: 3
B45: Cucumber | C45: 1/2 cup | D45: 8 | E45: 1 | F45: 0.1 | G45: 0 | H45: 0 | I45: 0 | J45: 0 | K45: 0 | L45: 1 | M45: 76.4 | N45: 1.9 | O45: 0.3 | R45: 0.9 | S45: 0.3
B46: Fennel | C46: 1 cup (87 g) | D46: 27 | E46: 2 | F46: 0.2 | L46: 45.2 | M46: 360.2 | N46: 6.3 | O46: 2.7 | S46: 1.1
B47: Green Pepper | C47: 1 cup | D47: 30 | E47: 2 | F47: 0.3 | G47: 0.1 | H47: 0.1 | K47: 0 | L47: 4.5 | M47: 260.8 | N47: 6.9 | O47: 2.5 | R47: 3.6 | S47: 1.3
B48: Leeks | C48: 1 cup | D48: 54 | E48: 2 | F48: 0.3 | H48: 0.1 | L48: 17.8 | M48: 160.2 | N48: 12.6 | O48: 1.6 | R48: 3.5 | S48: 1.3
B49: Lettuce | C49: 2 cups | D49: 16 | E49: 0 | F49: 0 | G49: 0 | H49: 0 | I49: 0 | J49: 0 | K49: 0 | L49: 31.2 | M49: 217.2 | N49: 3.2 | O49: 1.6 | R49: 0.8 | S49: 1.6
B50: Mushroom | C50: 1 cup (2.5 oz) | D50: 15 | E50: 2 | F50: 0.2 | L50: 4 | M50: 222.6 | N50: 2.3 | O50: 0.7 | R50: 1.2 | S50: 2.2
B51: Onion | C51: 1 cup | D51: 67 | E51: 1 | F51: 0.1 | G51: 0 | H51: 0.1 | I51: 0 | J51: 0 | K51: 0 | L51: 4.8 | M51: 230.4 | N51: 16.2 | O51: 2.2 | R51: 6.8 | S51: 1.5
B52: Peas | C52: 2/3 cup | D52: 70 | E52: 0 | L52: 200 | N52: 12 | O52: 4 | R52: 4 | S52: 4
B53: Pizza Sauce (Boboli, Mini Pack) | C53: 1 pack | D53: 50 | L53: 360 | N53: 10 | O53: 1 | R53: 4 | S53: 2
B54: Spaghetti Sauce (Frescorti, Tomato, Garlic, Onion) | C54: 1/2 cup | D54: 70 | E54: 20 | F54: 2.5 | L54: 640 | N54: 13 | O54: 1 | R54: 11 | S54: 2
B55: Spinach | C55: 1 cup (30 g) | D55: 7 | E55: 1 | F55: 0.1 | L55: 23.7 | M55: 167.4 | N55: 1.1 | O55: 0.7 | R55: 0.1 | S55: 0.9
B56: Tomato | C56: 1 cup | D56: 32 | E56: 3 | F56: 0.4 | G56: 0.1 | H56: 0.2 | I56: 0.1 | K56: 0 | L56: 9 | M56: 426.6 | N56: 7.1 | O56: 2.2 | R56: 4.7 | S56: 1.6
B57: Zucchini | C57: 1 cup | D57: 18 | E57: 2 | F57: 0.2 | H57: 0.1 | K57: 0 | L57: 11.3 | M57: 296.1 | N57: 3.8 | O57: 1.2 | R57: 2 | S57: 1.4
B59: STARCH
B60: Item | C60: Base Unit | D60: Total Calories | E60: Fat Calories | F60: Fat | K60: Cholesterol (mg) | L60: Sodium (mg) | M60: Potassium (mg) | N60: Carbs | S60: Protein (g)
F61: Total (g) | G61: Sat. (g) | H61: P.Unsat. (g) | I61: M.Unsat. (g) | J61: Trans (g) | N61: Total (g) | O61: Fiber (g) | P61: Sol. (g) | Q61: Insol. (g) | R61: Sugar (g)
B62: Arnold Bread - Health Nut | C62: 1 Slice | D62: 120 | E62: 20 | F62: 2 | H62: 1 | L62: 170 | N62: 21 | O62: 2 | R62: 3 | S62: 5
B63: Cheerios | C63: 1 cup (28 g) | D63: 100 | E63: 15 | F63: 2 | H63: 0.5 | I63: 0.5 | K63: 0 | L63: 190 | M63: 170 | N63: 20 | O63: 3 | P63: 1 | Q63: 2 | R63: 1 | S63: 3
B64: Cheerios, Chocolate | C64: 3/4 Cup | D64: 100 | E64: 10 | F64: 1 | H64: 0.5 | L64: 170 | M64: 60 | N64: 23 | O64: 1 | R64: 9 | S64: 1
B65: Croutons | C65: 2 g | D65: 10 | E65: 4 | F65: 0.4 | G65: 0.2 | H65: 0 | I65: 0.2 | J65: 0 | K65: 0.2 | L65: 24.8 | M65: 3.6 | N65: 1.2 | O65: 0.2 | R65: 0.4 | S65: 0.2
B66: Frosted Mini-Wheats | C66: 1 cup (55 g) | D66: 210 | E66: 10 | F66: 1 | G66: 0 | H66: 0.5 | I66: 0.5 | J66: 0 | K66: 0 | L66: 0 | M66: 180 | N66: 45 | O66: 6 | P66: 1 | Q66: 5 | R66: 11 | S66: 5
B67: Kashi Go Lean | C67: 1 cup | D67: 140 | E67: 10 | F67: 1 | L67: 85 | M67: 480 | N67: 30 | O67: 10 | P67: 1 | Q67: 9 | R67: 6 | S67: 13
B68: Kashi Go Lean Crunch | C68: 1 cup (53 g) | D68: 190 | E68: 25 | F68: 3 | L68: 95 | M68: 300 | N68: 36 | O68: 8 | P68: 3 | Q68: 5 | R68: 13 | S68: 9
B69: Kashi Heart to Heart | C69: 3/4 cup (33 g) | D69: 110 | E69: 15 | F69: 1.5 | L69: 90 | M69: 100 | N69: 25 | O69: 5 | P69: 1 | Q69: 4 | R69: 5 | S69: 4
B70: Kix | C70: 1-1/4 Cup | D70: 110 | E70: 5 | F70: 1 | L70: 190 | M70: 60 | N70: 25 | O70: 3 | R70: 3 | S70: 2
B71: MultiGrain Cheerios | C71: 1 cup (29 g) | D71: 110 | E71: 10 | F71: 1 | L71: 200 | M71: 85 | N71: 23 | O71: 3 | R71: 6 | S71: 2
B72: Oat Bran, Organic Cereal (Bob's Red Mill) | C72: 1/3 cup (39 g) | D72: 150 | E72: 25 | F72: 2.5 | G72: 0.5 | N72: 26 | O72: 6 | R72: 1 | S72: 7
B73: Oats, Minute | C73: 1/2 cup (dry) | D73: 140 | E73: 25 | F73: 2.5 | G73: 0.5 | H73: 1 | I73: 1 | N73: 26 | O73: 4 | P73: 2 | Q73: 2 | S73: 5
B74: Oats, Steel Cut | C74: 1/4 (cup dry) | D74: 160 | E74: 30 | F74: 3 | G74: 0.5 | H74: 1.5 | I74: 1 | J74: 0 | L74: 3.1 | M74: 130 | N74: 27 | O74: 8 | S74: 6
B75: Organic Whole Grain, High Fiber Hot Cereal w/ Flaxseed (Bob's Red Mill) | C75: 1/3 cup (45 g) | D75: 150 | E75: 45 | F75: 5 | M75: 330 | N75: 27 | O75: 10 | P75: 2 | Q75: 8 | S75: 8
B76: Pizza Crust (Boboli, 8") | C76: 1 shell | D76: 400 | E76: 90 | F76: 10 | G76: 4 | L76: 410 | N76: 64 | O76: 2 | R76: 2 | S76: 14
B77: Pizza Crust (Boboli, Whole Wheat, 8") | C77: 1 shell | D77: =190*2 -> 380 | E77: 70 | F77: 8 | G77: 3 | H77: 1 | I77: 3 | L77: 700 | N77: 66 | O77: 12 | R77: 4 | S77: 16
B78: Popcorn, OR SmartPop | C78: 1/2 bag | D78: 120 | E78: 20 | F78: 2 | G78: 0.5 | H78: 0.5 | I78: 0.5 | L78: 240 | N78: 25 | O78: 4 | S78: 4
B79: Quaker Oat Squares, Cinnamon | C79: 1 cup | D79: 230 | E79: 25 | F79: 2.5 | G79: 0.5 | H79: 1 | I79: 1 | L79: 260 | N79: 47 | O79: 5 | P79: 2 | R79: 13 | S79: 6
B80: Rice, Brown | C80: 1 cup | D80: 218 | E80: 15 | F80: 1.6 | G80: 0.3 | H80: 0.6 | I80: 0.6 | J80: 0 | K80: 0 | L80: 2 | M80: 154.1 | N80: 45.8 | O80: 3.5 | R80: 0 | S80: 4.5
B81: Rice, U.Ben's R.R. Cajun Style | C81: 1 cup | D81: 210 | E81: 20 | F81: 2 | L81: 980 | M81: 180 | N81: 42 | O81: 3 | R81: 1 | S81: 6
B82: Rice, U.Ben's R.R. Chicken Whole Grain | C82: 1 cup | D82: 230 | E82: 45 | F82: 4.5 | G82: 0.5 | L82: 800 | M82: 120 | N82: 41 | O82: 2 | R82: 1 | S82: 6
B83: Rice, U.Ben's R.R. Garden Vegetable | C83: 1 cup | D83: 200 | E83: 25 | F83: 2.5 | L83: 830 | M83: 125 | N83: 41 | O83: 1 | R83: 1 | S83: 4
B84: Rice, U.Ben's R.R. Long Grain & Wild | C84: 1 cup | D84: 220 | E84: 25 | F84: 3 | L84: 900 | M84: 180 | N84: 43 | O84: 2 | R84: 1 | S84: 5
B85: Rice, U.Ben's R.R. Original | C85: 1 cup | D85: 200 | E85: 25 | F85: 2.5 | L85: 10 | M85: 75 | N85: 40 | O85: 1 | S85: 4
B86: Rice, U.Ben's R.R. Spanish Style | C86: 1 cup | D86: 200 | E86: 20 | F86: 2.5 | L86: 680 | M86: 200 | N86: 41 | O86: 3 | R86: 3 | S86: 4
B87: Rice, U.Ben's R.R. W.G.M. Brown & Wild | C87: 1 cup | D87: 200 | E87: 30 | F87: 3.5 | L87: 730 | M87: 260 | N87: 42 | O87: 3 | S87: 6
B88: Rice, U.Ben's R.R. W.G.M. Vegatable Harvest | C88: 1 cup | D88: 220 | E88: 25 | F88: 3 | L88: 780 | M88: 260 | N88: 44 | O88: 5 | R88: 2 | S88: 5
B89: Spaghetti (Dry) | C89: 2 oz | D89: 211 | E89: 8 | F89: 0.9 | G89: 0.1 | H89: 0.4 | I89: 0.1 | L89: 4 | M89: 92.3 | N89: 42.6 | O89: 1.4 | R89: 1 | S89: 7.3
B90: Spaghetti (Smart Taste) | C90: 2 oz | D90: 180 | E90: 5 | F90: 1 | L90: 5 | N90: 43 | O90: 6 | R90: 1 | S90: 6
B91: Wheat Bran | C91: 1/3 cup (17 g) | D91: 35 | E91: 5 | F91: 0.5 | H91: 0.5 | M91: 250 | N91: 11 | O91: 8 | P91: 1 | Q91: 7 | R91: 1 | S91: 3
B92: Wheat Bread | C92: 1 slice | D92: 69 | E92: 11 | F92: 1.18 | G92: 0.257 | H92: 0.281 | I92: 0.47 | L92: 148 | M92: 71 | N92: 12.91 | O92: 1.9 | S92: 2.72
B93: Whole Grain Tortilla (8" Mayan) | C93: 1 | D93: 90 | E93: 35 | F93: 3.5 | G93: 1 | L93: 400 | N93: 16 | O93: 10 | S93: 7
B94: Whole Wheat Tortilla (10") | C94: 1 | D94: 190 | E94: 35 | F94: 4 | L94: 460 | N94: 33 | O94: 4 | S94: 7
B95: Whole Wheat Tortilla (6", Mission) | C95: 1 | D95: 80 | E95: 15 | F95: 2 | H95: 0.6 | N95: 12 | O95: 8 | S95: 3
B96: Wrap (Best Life, Italian Herb Flat-Out) | C96: 1 | D96: 90 | E96: 25 | F96: 2.5 | L96: 410 | N96: 16 | O96: 9 | S96: 9
B97: Wrap (OLE, Xtreme Wellness) Spinache & Herbs | C97: 1 | D97: 71 | E97: 22 | F97: 2 | G97: 1 | L97: 234 | N97: 5 | O97: 12 | S97: 8
B99: PROTEIN
B100: Item | C100: Base Unit | D100: Total Calories | E100: Fat Calories | F100: Fat | K100: Cholesterol (mg) | L100: Sodium (mg) | M100: Potassium (mg) | N100: Carbs | S100: Protein (g)
F101: Total (g) | G101: Sat. (g) | H101: P.Unsat. (g) | I101: M.Unsat. (g) | J101: Trans (g) | N101: Total (g) | O101: Fiber (g) | P101: Sol. (g) | Q101: Insol. (g) | R101: Sugar (g)
B102: Alaskan Halibut | C102: 6 oz | D102: 180 | E102: 35 | F102: 4 | G102: 0.5 | K102: 55 | L102: 95 | S102: 35
B103: Calamari | C103: 4 oz | D103: 110 | E103: 15 | F103: 2 | K103: 260 | L103: 50 | N103: 3 | S103: 17
B104: Chicken Breast | C104: 3 oz | D104: 130 | E104: 15 | F104: 1.5 | G104: 0.5 | J104: 0 | K104: 75 | L104: 25 | N104: 0 | O104: 0 | R104: 0 | S104: 28
B105: Chilean Sea Bass | C105: 6 oz | D105: 270 | E105: 190 | F105: 21 | G105: 4.5 | K105: 75 | L105: 80 | S105: 20
B106: Egg (whole, raw) | C106: 1 large (50 g) | D106: 74 | E106: 45 | F106: 5 | G106: 1.5 | H106: 0.7 | I106: 1.9 | K106: 211.5 | L106: 70 | M106: 67 | N106: 0.4 | R106: 0.4 | S106: 6.3
B107: Egg (whole, Raw) Eggland's best | C107: 1 large (50 g) | D107: 70 | E107: 35 | F107: 4 | G107: 1 | K107: 175 | L107: 65 | S107: 6
B108: Egg Whites | C108: 1/4 cup | D108: 33.33 | E108: 0 | F108: 0 | K108: 0 | L108: 100 | N108: 1.33 | S108: 6.67
B109: Egg, Hard Boiled | C109: 1 | D109: 78 | E109: 48 | F109: 5.3 | G109: 1.6 | H109: 0.7 | I109: 2 | J109: 0 | K109: 212 | L109: 62 | M109: 63 | N109: 0.6 | O109: 0 | R109: 0.6 | S109: 6.3
B110: Ground Beef (85% Lean) Raw | C110: 3.5 oz (100 g) | D110: 215 | E110: 135 | F110: 15 | G110: 5.9 | H110: 0.4 | I110: 6.6 | K110: 68 | L110: 66 | M110: 295 | S110: 18.6
B111: Ground Beef (90% Lean) Raw | C111: 3.5 oz (100 g) | D111: 176 | E111: 90 | F111: 10 | G111: 4.1 | H111: 0.3 | I111: 4.4 | K111: 65 | L111: 66 | M111: 321 | S111: 20
B112: Ground Beef (93% Lean) Raw | C112: 4 oz | D112: 160 | F112: 8 | G112: 3 | S112: 22
B113: Ham, Lunchmeat | C113: 4.75 oz | D113: 177 | E113: 60 | F113: 6.7 | G113: 2.2 | H113: 0.6 | I113: 3.2 | K113: 63.5 | L113: 1929.2 | M113: 472.5 | N113: 1.3 | S113: 26.1
B114: Italian Sausage, Sweet | C114: 1 link (3 oz) | D114: 125 | E114: 64 | F114: 7.1 | G114: 2.7 | H114: 0.4 | I114: 3 | K114: 25.2 | L114: 478.8 | M114: 163 | N114: 1.8 | S114: 13.5
B115: Mahi-Mahi | C115: 6 oz | D115: 140 | E115: 10 | F115: 1 | K115: 125 | L115: 150 | S115: 31
B116: Orange Roughy | C116: 6 oz | D116: 140 | E116: 15 | F116: 1.5 | K116: 105 | L116: 90 | S116: 28
B117: Oscar Mayer Smoked White Turkey | C117: 1 slice (1 oz) | D117: 30 | E117: 9 | F117: 1 | K117: 10 | L117: 300 | N117: 1 | S117: 14
B118: Pacific Cod | C118: 6 oz | D118: 135 | E118: 15 | F118: 1.5 | K118: 60 | L118: 115 | S118: 30
B119: Pork Chop (Boneless) | C119: 1 (66 g) | D119: 148 | E119: 70 | F119: 7.8 | G119: 2.8 | H119: 1 | I119: 3.5 | K119: 46.2 | L119: 34.3 | M119: 299.6 | N119: 0 | S119: 18.3
B120: Salmon | C120: 6 oz | D120: 330 | E120: 190 | F120: 21 | G120: 5 | K120: 75 | L120: 80 | S120: 34
B121: Salmon (Pouch) Bumble Bee Premium Wild | C121: 1/2 pouch (3 oz) | D121: =60*1.5 -> 90 | E121: 7.5 | F121: 1.5 | K121: =25*1.5 -> 37.5 | L121: =180*1.5 -> 270 | S121: =14*1.5 -> 21
B122: Shrimp | C122: 3 oz (1/2 cup) | D122: 110 | E122: 20 | F122: 2 | K122: 160 | L122: 155 | S122: 22
B123: Smoked Salmon (Pouch, Chicken of the Sea) | C123: 1 (3 oz) | D123: 120 | E123: 30 | F123: 3.5 | G123: 0.5 | K123: 45 | L123: 490 | N123: 1 | R123: 1 | S123: 21
B124: Snapper
B125: Tenderloin (Trimmed - raw) | C125: 1 oz (28.35 g) | D125: 43 | E125: 17 | F125: 1.8 | G125: 0.1 | H125: 0.7 | K125: 19 | L125: 15.9 | M125: 98.4 | S125: 6.3
B126: Tilapia | C126: 4 oz | D126: 110 | E126: 20 | F126: 2 | G126: 0.5 | K126: 55 | L126: 60 | S126: 22
B127: Tuna (Can) Bumble Bee Chunk Light | C127: 6 oz | D127: 150 | E127: 17.5 | F127: =0.5*2.5 -> 1.25 | K127: 75 | L127: 625 | S127: =13*2.5 -> 32.5
B128: Tuna (Pouch) | C128: 1 (3 oz) | D128: 80 | E128: 10 | F128: 1 | K128: 40 | L128: 210 | S128: 18
B129: Tuna (Pouch) Bumble Bee Albacore | C129: 1 (3 oz) | D129: 90 | E129: 10 | F129: 1.5 | K129: 40 | L129: 380 | S129: 19
B130: Tuna (Pouch) Bumble Bee Light | C130: 1 (3 oz) | D130: 90 | E130: 10 | F130: 1 | K130: 45 | L130: 380 | S130: 19
B131: Tuna (Pouch) StarKist Albacore | C131: 1 (3 oz) | D131: 110 | E131: 25 | F131: 2.5 | G131: 0.5 | H131: 0.5 | I131: 0.5 | K131: 35 | L131: 360 | M131: 300 | N131: 1 | O131: 1 | S131: 21
B132: Turkey Cold Cuts | C132: 1 oz | D132: 30 | E132: 5 | F132: 0.5 | K132: 15 | L132: 350 | N132: 1 | S132: 5
B134: DAIRY
B135: Item | C135: Base Unit | D135: Total Calories | E135: Fat Calories | F135: Fat | K135: Cholesterol (mg) | L135: Sodium (mg) | M135: Potassium (mg) | N135: Carbs | S135: Protein (g)
F136: Total (g) | G136: Sat. (g) | H136: P.Unsat. (g) | I136: M.Unsat. (g) | J136: Trans (g) | N136: Total (g) | O136: Fiber (g) | P136: Sol. (g) | Q136: Insol. (g) | R136: Sugar (g)
B137: American Cheese (Single, Yellow) Land O Lakes | C137: 1 | D137: 70 | E137: 45 | F137: 5 | G137: 3 | K137: 15 | L137: 280 | N137: 2 | R137: 1 | S137: 4
B138: Cheddar Cheese | C138: 1 oz | D138: 113 | E138: 84 | F138: 9.3 | G138: 5.9 | H138: 0.3 | I138: 2.6 | J138: 0 | K138: 29.4 | L138: 173.9 | M138: 27.4 | N138: 0.4 | O138: 0 | R138: 0.1 | S138: 7
B139: Half & Half | C139: 1 tbsp | D139: 20 | E139: 16 | F139: 1.73 | G139: 1.074 | H139: 0.064 | I139: 0.498 | K139: 6 | L139: 6 | M139: 20 | N139: 0.65 | S139: 0.44
B140: Milk, 1% | C140: 1 cup (8 oz) | D140: 118 | E140: 26 | F140: 2.9 | G140: 1.8 | H140: 0.1 | I140: 0.8 | K140: 9.8 | L140: 142.7 | M140: 442.8 | N140: 13.6 | S140: 9.7
B141: Milk, 2% | C141: 1 cup (8 oz) | D141: 138 | E141: 44 | F141: 4.9 | G141: 3 | H141: 0.2 | I141: 1.4 | K141: 19.7 | L141: 145.1 | M141: 447.7 | N141: 13.5 | R141: 12.9 | S141: 9.7
B142: Milk, Non-Fat | C142: 1 cup (8 oz) | D142: 90 | E142: 0 | F142: 0 | G142: 0 | H142: 0 | I142: 0 | J142: 0 | K142: 4.9 | L142: 125 | M142: 0 | N142: 13 | O142: 0 | R142: 12 | S142: 8
B143: Mozzarella Cheese | C143: 1/4 cup | D143: 80 | E143: 50 | F143: 6 | G143: 3.5 | K143: 15 | L143: 170 | N143: 1 | S143: 8
B144: Parmigiano Cheese | C144: 1 oz | D144: 115 | E144: 80 | F144: 9 | G144: 5 | K144: 20 | L144: 190 | S144: 8
B146: NUT
B147: Item | C147: Base Unit | D147: Total Calories | E147: Fat Calories | F147: Fat | K147: Cholesterol (mg) | L147: Sodium (mg) | M147: Potassium (mg) | N147: Carbs | S147: Protein (g)
F148: Total (g) | G148: Sat. (g) | H148: P.Unsat. (g) | I148: M.Unsat. (g) | J148: Trans (g) | N148: Total (g) | O148: Fiber (g) | P148: Sol. (g) | Q148: Insol. (g) | R148: Sugar (g)
B149: Almond Butter, Natural | C149: 2 Tbsp | D149: 190 | E149: 145 | F149: 16 | G149: 1.5 | L149: 65 | N149: 8 | O149: 4 | R149: 2 | S149: 9
B150: Almonds | C150: 1 oz | D150: 164 | E150: 129 | F150: 14.4 | G150: 1.1 | H150: 3.5 | I150: 9.1 | L150: 0.3 | M150: 206.4 | N150: 5.6 | O150: 3.3 | R150: 1.4 | S150: 6
B151: Cashews | C151: 1 oz | D151: 163 | E151: 118 | F151: 13.1 | G151: 2.6 | H151: 2.2 | I151: 7.7 | J151: 0 | K151: 0 | L151: 181.4 | M151: 160.2 | N151: 9.3 | O151: 0.9 | R151: 1.4 | S151: 4.3
B152: Macadamia Nuts | C152: 1/4 cup | D152: 230 | E152: 220 | F152: 24 | G152: 4 | L152: 95 | N152: 4 | O152: 3 | R152: 1 | S152: 2
B153: Mixed Nuts (Emeralds) | C153: 1 oz (1/4 cup) | D153: 170 | E153: 140 | F153: 16 | G153: 2 | H153: 5 | I153: 8 | L153: 95 | M153: 170 | N153: 6 | O153: 2 | R153: 1 | S153: 5
B154: Peanut Butter, Natural (Naturally More) | C154: 2 Tbsp | D154: 169 | E154: 98 | F154: 11 | G154: 2 | L154: 130 | N154: 8 | O154: 4 | R154: 2 | S154: 10
B155: Peanuts | C155: 1 oz | D155: 161 | E155: 126 | F155: 14 | G155: 1.9 | H155: 4.4 | I155: 6.9 | K155: 0 | L155: 5.1 | M155: 199.9 | N155: 4.6 | O155: 2.4 | R155: 1.1 | S155: 7.3
B156: Pine Nuts | C156: 1/4 cup | D156: 190 | E156: 140 | F156: 15 | G156: 4 | N156: 9 | O156: 4 | R156: 1 | S156: 4
B157: Sesame Seeds | C157: 1 Tbsp | D157: 52 | E157: 40 | F157: 4.5 | G157: 0.6 | H157: 2 | I157: 1.7 | J157: 0 | K157: 0 | L157: 1 | M157: 42.1 | N157: 2.1 | O157: 1.1 | R157: 0 | S157: 1.6
B158: Sunflower Seeds | C158: 1 cup (144g) | D158: 821 | E158: 642 | F158: 71.4 | G158: 7.5 | H158: 47.1 | I158: 13.6 | L158: 4.3 | M158: 99.2 | N158: 27 | O158: 15.1 | R158: 3.8 | S158: 32.8
B159: Walnuts | C159: 1 oz | D159: 185 | E159: 166 | F159: 18.5 | G159: 1.7 | H159: 13.4 | I159: 2.5 | J159: 0 | K159: 0 | L159: 0.6 | M159: 125 | N159: 3.9 | O159: 1.9 | R159: 0.7 | S159: 4.3
B161: INGREDIENT
B162: Item | C162: Base Unit | D162: Total Calories | E162: Fat Calories | F162: Fat | K162: Cholesterol (mg) | L162: Sodium (mg) | M162: Potassium (mg) | N162: Carbs | S162: Protein (g)
F163: Total (g) | G163: Sat. (g) | H163: P.Unsat. (g) | I163: M.Unsat. (g) | J163: Trans (g) | N163: Total (g) | O163: Fiber (g) | P163: Sol. (g) | Q163: Insol. (g) | R163: Sugar (g)
B164: Butter | C164: .5 tbsp | D164: 31 | E164: 31 | F164: 3.4 | G164: 2.14 | H164: 0.1 | I164: 0.99 | J164: 0 | K164: 6.6 | L164: 28.1 | M164: 4.4 | N164: 0 | O164: 0 | R164: 0 | S164: 0.206
B165: Garlic | C165: 1 clove | D165: 4 | E165: 0 | F165: 0 | G165: 0 | H165: 0 | I165: 0 | J165: 0 | K165: 0 | L165: 0.5 | M165: 12 | N165: 1 | O165: 0.1 | R165: 0 | S165: 0.2
B166: Mayonaise (Hellman's) | C166: 1 Tbsp (13 g) | D166: 90 | E166: 90 | F166: 10 | G166: 1.5 | H166: 6 | I166: 2.5 | K166: 5 | L166: 90
B167: Mustard | C167: 1 tsp (5 g) | D167: 0 | L167: 55
B168: Olive Oil | C168: 1 tsp | D168: 40 | E168: 41 | F168: 4.5 | G168: 0.6 | H168: 0.5 | I168: 3.3 | J168: 0 | K168: 0.1 | L168: 0 | M168: 0 | N168: 0 | O168: 0 | R168: 0 | S168: 0
B169: Pickle (Sweet Gherkins) | C169: 1 oz (3) | D169: 5 | L169: 170 | N169: 1 | R169: 1
B171: BEVERAGE
B172: Item | C172: Base Unit | D172: Total Calories | E172: Fat Calories | F172: Fat | K172: Cholesterol (mg) | L172: Sodium (mg) | M172: Potassium (mg) | N172: Carbs | S172: Protein (g)
F173: Total (g) | G173: Sat. (g) | H173: P.Unsat. (g) | I173: M.Unsat. (g) | J173: Trans (g) | N173: Total (g) | O173: Fiber (g) | P173: Sol. (g) | Q173: Insol. (g) | R173: Sugar (g)
B174: Coffee | C174: 8 oz | D174: 2 | E174: 0 | F174: 0 | G174: 0 | H174: 0 | I174: 0 | J174: 0 | K174: 0 | L174: 0 | M174: 0 | N174: 0 | O174: 0 | P174: 0 | Q174: 0 | R174: 0 | S174: 0
B175: Iced Tea | C175: 16 oz | D175: 16 | E175: 0 | F175: 0 | G175: 0 | H175: 0 | I175: 0 | J175: 0 | K175: 0 | L175: 0 | M175: 0.1 | N175: 4.2 | O175: 0 | P175: 0 | Q175: 0 | R175: 4.2 | S175: 0
B176: Seltzer - 0.5 L | C176: 16.9 oz | D176: 0 | E176: 0 | F176: 0 | G176: 0 | H176: 0 | I176: 0 | J176: 0 | K176: 0 | L176: 0 | M176: 0 | N176: 0 | O176: 0 | P176: 0 | Q176: 0 | R176: 0 | S176: 0
B177: Seltzer - 12 oz | C177: 12 oz | D177: 0 | E177: 0 | F177: 0 | G177: 0 | H177: 0 | I177: 0 | J177: 0 | K177: 0 | L177: 0 | M177: 0 | N177: 0 | O177: 0 | P177: 0 | Q177: 0 | R177: 0 | S177: 0
B179: PREPARED
B180: Item | C180: Base Unit | D180: Total Calories | E180: Fat Calories | F180: Fat | K180: Cholesterol (mg) | L180: Sodium (mg) | M180: Potassium (mg) | N180: Carbs | S180: Protein (g)
F181: Total (g) | G181: Sat. (g) | H181: P.Unsat. (g) | I181: M.Unsat. (g) | J181: Trans (g) | N181: Total (g) | O181: Fiber (g) | P181: Sol. (g) | Q181: Insol. (g) | R181: Sugar (g)
B182: Bushes Baked Beans (cup) | C182: 1 | D182: 250 | E182: 20 | F182: 2.5 | G182: 0.5 | K182: 2 | L182: 990 | N182: 48 | O182: 11 | R182: 20 | S182: 12
B183: Carrabba's Spaghetti w/ Meatballs | C183: 1 dinner | D183: 336 | E183: 144 | F183: 16 | L183: 1000 | N183: 27.5 | S183: 20.5
B184: Chili - Homemade (Beef, Beans) | C184: 1 cup | D184: 256 | E184: 126 | F184: 14.1 | G184: 6 | H184: 0.9 | I184: 6 | K184: 44 | L184: 1336 | N184: 30.5 | O184: 11.3 | R184: 3 | S184: 14.6
B185: Macaroni & Cheese (Kraft) | C185: 1/3 box | D185: 260 | E185: 30 | F185: 3.5 | G185: 2 | K185: 15 | L185: 580 | N185: 48 | O185: 1 | R185: 6 | S185: 9
B186: Nature Valley Sweet & Salty Nut - Almond | C186: 1 | D186: 160 | E186: 60 | F186: 7 | G186: 2 | L186: 150 | N186: 22 | O186: 2 | R186: 12 | S186: 3
B187: Nature Valley Sweet & Salty Nut - Peanut | C187: 1 | D187: 170 | E187: 80 | F187: 9 | G187: 2.5 | L187: 150 | N187: 19 | O187: 2 | R187: 11 | S187: 4
B188: Pop Tart | C188: 1 | D188: 200 | E188: 45 | F188: 6.5 | G188: 5 | H188: 0 | I188: 0 | J188: 1.5 | K188: 0 | L188: 170 | M188: 0 | N188: 37 | O188: 1 | R188: 17 | S188: 2
B189: Tunafish | C189: 1 can | D189: 314 | E189: 147 | F189: 15.7 | G189: 1.7 | H189: 9.8 | I189: 2.5 | K189: 77.5 | L189: 830.4 | M189: 348.5 | N189: 8 | O189: 3.1 | R189: 3.6 | S189: 35.4
B191: SUPPLEMENT
B192: Item | C192: Base Unit | D192: Total Calories | E192: Fat Calories | F192: Fat | K192: Cholesterol (mg) | L192: Sodium (mg) | M192: Potassium (mg) | N192: Carbs | S192: Protein (g)
F193: Total (g) | G193: Sat. (g) | H193: P.Unsat. (g) | I193: M.Unsat. (g) | J193: Trans (g) | N193: Total (g) | O193: Fiber (g) | P193: Sol. (g) | Q193: Insol. (g) | R193: Sugar (g)
B194: Benefiber | C194: 3 tablets | D194: 0 | E194: 0 | F194: 0 | N194: 4 | O194: 3 | P194: 3 | S194: 0
B195: Centrum MultiVitamin | C195: 1 tablet | D195: 0 | E195: 0 | F195: 0 | G195: 0 | H195: 0 | I195: 0 | J195: 0 | K195: 0 | L195: 0 | M195: 0 | N195: 0 | O195: 0 | P195: 0 | Q195: 0 | R195: 0 | S195: 0
B196: EGCg (Green Tea Extract) | C196: 1 caplet (200 mg)
B197: Fish Oil | C197: 1 SoftGel | D197: 10 | E197: 10 | F197: 1 | K197: 5
B198: Flex-a-min (Glucosamine+Chondroitin+MSM) | C198: 2 tablets | D198: 10 | L198: 115 | N198: 2 | O198: 1
B199: Glucosamine & Chondroitin + MSM (NOW) | C199: 3 caps | D199: 15 | L199: 125 | M199: 270 | N199: 3 | S199: 0.5
B200: Psyllium Husk Powder (NOW) | C200: 1 Tbsp | D200: 34 | N200: 8 | O200: 6.7
B201: Syntha-6 | C201: 1 scoop (44 g) | D201: 200 | E201: 54 | F201: 6 | G201: 2 | K201: 55 | L201: 220 | M201: 170 | N201: 15 | O201: 5 | R201: 2 | S201: 22
B202: Tahitian Noni Juice | C202: 1 oz (30 ml) | D202: 10 | E202: 0 | N202: 3 | O202: 1 | R202: 2
B203: Vitamin D | C203: 1 SoftGel (2000 IU)
B205: ALCOHOL
B206: Item | C206: Base Unit | D206: Total Calories | E206: Fat Calories | F206: Fat | K206: Cholesterol (mg) | L206: Sodium (mg) | M206: Potassium (mg) | N206: Carbs | S206: Protein (g)
F207: Total (g) | G207: Sat. (g) | H207: P.Unsat. (g) | I207: M.Unsat. (g) | J207: Trans (g) | N207: Total (g) | O207: Fiber (g) | P207: Sol. (g) | Q207: Insol. (g) | R207: Sugar (g)
B208: Martini | C208: 1 | D208: 135 | E208: 0 | F208: 0 | G208: 0 | H208: 0 | I208: 0 | J208: 0 | K208: 0 | L208: 1 | N208: 0.3 | S208: 0
B209: Red Wine | C209: 1 glass (3.5 oz) | D209: 74 | E209: 0 | L209: 5.2 | M209: 115.4 | N209: 1.8 | S209: 0.2
B210: Vodka | C210: 1 jigger (1.5 oz) | D210: 97 | E210: 0 | L210: 0.4 | M210: 0.4 | N210: 0 | S210: 0
B211: White Wine | C211: 1 glass (3.5 oz) | D211: 70 | E211: 0 | L211: 5.2 | M211: 82.4 | N211: 0.8 | S211: 0.1

Sheet Week (hidden)
B2: 9
B3: 2008-09-29 | C3: =VLOOKUP(WEEKDAY(B3,2),WkDay,2,FALSE) -> Mon | H3: =IF(Item="","",VLOOKUP(Item,Food,Database!C$1,FALSE)) ->  | I3: =IF(OR(Item="",Qty=""),"",Qty*VLOOKUP(Item,Food,Database!D$1,FALSE)) ->  | J3: =IF(OR(Item="",Qty=""),"",Qty*VLOOKUP(Item,Food,Database!E$1,FALSE)) ->  | K3: =IF(OR(Item="",Qty=""),"",Qty*VLOOKUP(Item,Food,Database!F$1,FALSE)) ->  | L3: =IF(OR(Item="",Qty=""),"",Qty*VLOOKUP(Item,Food,Database!G$1,FALSE)) ->  | M3: =IF(OR(Item="",Qty=""),"",Qty*VLOOKUP(Item,Food,Database!H$1,FALSE)) ->  | N3: =IF(OR(Item="",Qty=""),"",Qty*VLOOKUP(Item,Food,Database!I$1,FALSE)) ->  | O3: =IF(OR(Item="",Qty=""),"",Qty*VLOOKUP(Item,Food,Database!J$1,FALSE)) ->  | P3: =IF(OR(Item="",Qty=""),"",Qty*VLOOKUP(Item,Food,Database!K$1,FALSE)) ->  | Q3: =IF(OR(Item="",Qty=""),"",Qty*VLOOKUP(Item,Food,Database!L$1,FALSE)) ->  | R3: =IF(OR(Item="",Qty=""),"",Qty*VLOOKUP(Item,Food,Database!M$1,FALSE)) ->  | S3: =IF(OR(Item="",Qty=""),"",Qty*VLOOKUP(Item,Food,Database!N$1,FALSE)) ->  | T3: =IF(OR(Item="",Qty=""),"",Qty*VLOOKUP(Item,Food,Database!O$1,FALSE)) ->  | U3: =IF(OR(Item="",Qty=""),"",Qty*VLOOKUP(Item,Food,Database!P$1,FALSE)) ->  | V3: =IF(OR(Item="",Qty=""),"",Qty*VLOOKUP(Item,Food,Database!Q$1,FALSE)) ->  | W3: =IF(OR(Item="",Qty=""),"",Qty*VLOOKUP(Item,Food,Database!R$1,FALSE)) ->  | X3: =IF(OR(Item="",Qty=""),"",Qty*VLOOKUP(Item,Food,Database!S$1,FALSE)) -> 
H4: =IF(Item="","",VLOOKUP(Item,Food,Database!C$1,FALSE)) -> Base Unit | I4: =IF(OR(Item="",Qty=""),"",Qty*VLOOKUP(Item,Food,Database!D$1,FALSE)) ->  | J4: =IF(OR(Item="",Qty=""),"",Qty*VLOOKUP(Item,Food,Database!E$1,FALSE)) ->  | K4: =IF(OR(Item="",Qty=""),"",Qty*VLOOKUP(Item,Food,Database!F$1,FALSE)) ->  | L4: =IF(OR(Item="",Qty=""),"",Qty*VLOOKUP(Item,Food,Database!G$1,FALSE)) ->  | M4: =IF(OR(Item="",Qty=""),"",Qty*VLOOKUP(Item,Food,Database!H$1,FALSE)) ->  | N4: =IF(OR(Item="",Qty=""),"",Qty*VLOOKUP(Item,Food,Database!I$1,FALSE)) ->  | O4: =IF(OR(Item="",Qty=""),"",Qty*VLOOKUP(Item,Food,Database!J$1,FALSE)) ->  | P4: =IF(OR(Item="",Qty=""),"",Qty*VLOOKUP(Item,Food,Database!K$1,FALSE)) ->  | Q4: =IF(OR(Item="",Qty=""),"",Qty*VLOOKUP(Item,Food,Database!L$1,FALSE)) ->  | R4: =IF(OR(Item="",Qty=""),"",Qty*VLOOKUP(Item,Food,Database!M$1,FALSE)) ->  | S4: =IF(OR(Item="",Qty=""),"",Qty*VLOOKUP(Item,Food,Database!N$1,FALSE)) ->  | T4: =IF(OR(Item="",Qty=""),"",Qty*VLOOKUP(Item,Food,Database!O$1,FALSE)) ->  | U4: =IF(OR(Item="",Qty=""),"",Qty*VLOOKUP(Item,Food,Database!P$1,FALSE)) ->  | V4: =IF(OR(Item="",Qty=""),"",Qty*VLOOKUP(Item,Food,Database!Q$1,FALSE)) ->  | W4: =IF(OR(Item="",Qty=""),"",Qty*VLOOKUP(Item,Food,Database!R$1,FALSE)) ->  | X4: =IF(OR(Item="",Qty=""),"",Qty*VLOOKUP(Item,Food,Database!S$1,FALSE)) -> 
H5: =IF(Item="","",VLOOKUP(Item,Food,Database!C$1,FALSE)) ->  | I5: =IF(OR(Item="",Qty=""),"",Qty*VLOOKUP(Item,Food,Database!D$1,FALSE)) ->  | J5: =IF(OR(Item="",Qty=""),"",Qty*VLOOKUP(Item,Food,Database!E$1,FALSE)) ->  | K5: =IF(OR(Item="",Qty=""),"",Qty*VLOOKUP(Item,Food,Database!F$1,FALSE)) ->  | L5: =IF(OR(Item="",Qty=""),"",Qty*VLOOKUP(Item,Food,Database!G$1,FALSE)) ->  | M5: =IF(OR(Item="",Qty=""),"",Qty*VLOOKUP(Item,Food,Database!H$1,FALSE)) ->  | N5: =IF(OR(Item="",Qty=""),"",Qty*VLOOKUP(Item,Food,Database!I$1,FALSE)) ->  | O5: =IF(OR(Item="",Qty=""),"",Qty*VLOOKUP(Item,Food,Database!J$1,FALSE)) ->  | P5: =IF(OR(Item="",Qty=""),"",Qty*VLOOKUP(Item,Food,Database!K$1,FALSE)) ->  | Q5: =IF(OR(Item="",Qty=""),"",Qty*VLOOKUP(Item,Food,Database!L$1,FALSE)) ->  | R5: =IF(OR(Item="",Qty=""),"",Qty*VLOOKUP(Item,Food,Database!M$1,FALSE)) ->  | S5: =IF(OR(Item="",Qty=""),"",Qty*VLOOKUP(Item,Food,Database!N$1,FALSE)) ->  | T5: =IF(OR(Item="",Qty=""),"",Qty*VLOOKUP(Item,Food,Database!O$1,FALSE)) ->  | U5: =IF(OR(Item="",Qty=""),"",Qty*VLOOKUP(Item,Food,Database!P$1,FALSE)) ->  | V5: =IF(OR(Item="",Qty=""),"",Qty*VLOOKUP(Item,Food,Database!Q$1,FALSE)) ->  | W5: =IF(OR(Item="",Qty=""),"",Qty*VLOOKUP(Item,Food,Database!R$1,FALSE)) ->  | X5: =IF(OR(Item="",Qty=""),"",Qty*VLOOKUP(Item,Food,Database!S$1,FALSE)) -> 
H6: =IF(Item="","",VLOOKUP(Item,Food,Database!C$1,FALSE)) -> 8 oz | I6: =IF(OR(Item="",Qty=""),"",Qty*VLOOKUP(Item,Food,Database!D$1,FALSE)) -> 2 | J6: =IF(OR(Item="",Qty=""),"",Qty*VLOOKUP(Item,Food,Database!E$1,FALSE)) -> 0 | K6: =IF(OR(Item="",Qty=""),"",Qty*VLOOKUP(Item,Food,Database!F$1,FALSE)) -> 0 | L6: =IF(OR(Item="",Qty=""),"",Qty*VLOOKUP(Item,Food,Database!G$1,FALSE)) -> 0 | M6: =IF(OR(Item="",Qty=""),"",Qty*VLOOKUP(Item,Food,Database!H$1,FALSE)) -> 0 | N6: =IF(OR(Item="",Qty=""),"",Qty*VLOOKUP(Item,Food,Database!I$1,FALSE)) -> 0 | O6: =IF(OR(Item="",Qty=""),"",Qty*VLOOKUP(Item,Food,Database!J$1,FALSE)) -> 0 | P6: =IF(OR(Item="",Qty=""),"",Qty*VLOOKUP(Item,Food,Database!K$1,FALSE)) -> 0 | Q6: =IF(OR(Item="",Qty=""),"",Qty*VLOOKUP(Item,Food,Database!L$1,FALSE)) -> 0 | R6: =IF(OR(Item="",Qty=""),"",Qty*VLOOKUP(Item,Food,Database!M$1,FALSE)) -> 0 | S6: =IF(OR(Item="",Qty=""),"",Qty*VLOOKUP(Item,Food,Database!N$1,FALSE)) -> 0 | T6: =IF(OR(Item="",Qty=""),"",Qty*VLOOKUP(Item,Food,Database!O$1,FALSE)) -> 0 | U6: =IF(OR(Item="",Qty=""),"",Qty*VLOOKUP(Item,Food,Database!P$1,FALSE)) -> 0 | V6: =IF(OR(Item="",Qty=""),"",Qty*VLOOKUP(Item,Food,Database!Q$1,FALSE)) -> 0 | W6: =IF(OR(Item="",Qty=""),"",Qty*VLOOKUP(Item,Food,Database!R$1,FALSE)) -> 0 | X6: =IF(OR(Item="",Qty=""),"",Qty*VLOOKUP(Item,Food,Database!S$1,FALSE)) -> 0
H7: =IF(Item="","",VLOOKUP(Item,Food,Database!C$1,FALSE)) -> 1 scoop (44 g) | I7: =IF(OR(Item="",Qty=""),"",Qty*VLOOKUP(Item,Food,Database!D$1,FALSE)) -> 200 | J7: =IF(OR(Item="",Qty=""),"",Qty*VLOOKUP(Item,Food,Database!E$1,FALSE)) -> 54 | K7: =IF(OR(Item="",Qty=""),"",Qty*VLOOKUP(Item,Food,Database!F$1,FALSE)) -> 6 | L7: =IF(OR(Item="",Qty=""),"",Qty*VLOOKUP(Item,Food,Database!G$1,FALSE)) -> 2 | M7: =IF(OR(Item="",Qty=""),"",Qty*VLOOKUP(Item,Food,Database!H$1,FALSE)) -> 0 | N7: =IF(OR(Item="",Qty=""),"",Qty*VLOOKUP(Item,Food,Database!I$1,FALSE)) -> 0 | O7: =IF(OR(Item="",Qty=""),"",Qty*VLOOKUP(Item,Food,Database!J$1,FALSE)) -> 0 | P7: =IF(OR(Item="",Qty=""),"",Qty*VLOOKUP(Item,Food,Database!K$1,FALSE)) -> 55 | Q7: =IF(OR(Item="",Qty=""),"",Qty*VLOOKUP(Item,Food,Database!L$1,FALSE)) -> 220 | R7: =IF(OR(Item="",Qty=""),"",Qty*VLOOKUP(Item,Food,Database!M$1,FALSE)) -> 170 | S7: =IF(OR(Item="",Qty=""),"",Qty*VLOOKUP(Item,Food,Database!N$1,FALSE)) -> 15 | T7: =IF(OR(Item="",Qty=""),"",Qty*VLOOKUP(Item,Food,Database!O$1,FALSE)) -> 5 | U7: =IF(OR(Item="",Qty=""),"",Qty*VLOOKUP(Item,Food,Database!P$1,FALSE)) -> 0 | V7: =IF(OR(Item="",Qty=""),"",Qty*VLOOKUP(Item,Food,Database!Q$1,FALSE)) -> 0 | W7: =IF(OR(Item="",Qty=""),"",Qty*VLOOKUP(Item,Food,Database!R$1,FALSE)) -> 2 | X7: =IF(OR(Item="",Qty=""),"",Qty*VLOOKUP(Item,Food,Database!S$1,FALSE)) -> 22
H8: =IF(Item="","",VLOOKUP(Item,Food,Database!C$1,FALSE)) -> 1 cup (8 oz) | I8: =IF(OR(Item="",Qty=""),"",Qty*VLOOKUP(Item,Food,Database!D$1,FALSE)) -> 90 | J8: =IF(OR(Item="",Qty=""),"",Qty*VLOOKUP(Item,Food,Database!E$1,FALSE)) -> 0 | K8: =IF(OR(Item="",Qty=""),"",Qty*VLOOKUP(Item,Food,Database!F$1,FALSE)) -> 0 | L8: =IF(OR(Item="",Qty=""),"",Qty*VLOOKUP(Item,Food,Database!G$1,FALSE)) -> 0 | M8: =IF(OR(Item="",Qty=""),"",Qty*VLOOKUP(Item,Food,Database!H$1,FALSE)) -> 0 | N8: =IF(OR(Item="",Qty=""),"",Qty*VLOOKUP(Item,Food,Database!I$1,FALSE)) -> 0 | O8: =IF(OR(Item="",Qty=""),"",Qty*VLOOKUP(Item,Food,Database!J$1,FALSE)) -> 0 | P8: =IF(OR(Item="",Qty=""),"",Qty*VLOOKUP(Item,Food,Database!K$1,FALSE)) -> 4.9 | Q8: =IF(OR(Item="",Qty=""),"",Qty*VLOOKUP(Item,Food,Database!L$1,FALSE)) -> 125 | R8: =IF(OR(Item="",Qty=""),"",Qty*VLOOKUP(Item,Food,Database!M$1,FALSE)) -> 0 | S8: =IF(OR(Item="",Qty=""),"",Qty*VLOOKUP(Item,Food,Database!N$1,FALSE)) -> 13 | T8: =IF(OR(Item="",Qty=""),"",Qty*VLOOKUP(Item,Food,Database!O$1,FALSE)) -> 0 | U8: =IF(OR(Item="",Qty=""),"",Qty*VLOOKUP(Item,Food,Database!P$1,FALSE)) -> 0 | V8: =IF(OR(Item="",Qty=""),"",Qty*VLOOKUP(Item,Food,Database!Q$1,FALSE)) -> 0 | W8: =IF(OR(Item="",Qty=""),"",Qty*VLOOKUP(Item,Food,Database!R$1,FALSE)) -> 12 | X8: =IF(OR(Item="",Qty=""),"",Qty*VLOOKUP(Item,Food,Database!S$1,FALSE)) -> 8
H9: =IF(Item="","",VLOOKUP(Item,Food,Database!C$1,FALSE)) ->  | I9: =IF(OR(Item="",Qty=""),"",Qty*VLOOKUP(Item,Food,Database!D$1,FALSE)) ->  | J9: =IF(OR(Item="",Qty=""),"",Qty*VLOOKUP(Item,Food,Database!E$1,FALSE)) ->  | K9: =IF(OR(Item="",Qty=""),"",Qty*VLOOKUP(Item,Food,Database!F$1,FALSE)) ->  | L9: =IF(OR(Item="",Qty=""),"",Qty*VLOOKUP(Item,Food,Database!G$1,FALSE)) ->  | M9: =IF(OR(Item="",Qty=""),"",Qty*VLOOKUP(Item,Food,Database!H$1,FALSE)) ->  | N9: =IF(OR(Item="",Qty=""),"",Qty*VLOOKUP(Item,Food,Database!I$1,FALSE)) ->  | O9: =IF(OR(Item="",Qty=""),"",Qty*VLOOKUP(Item,Food,Database!J$1,FALSE)) ->  | P9: =IF(OR(Item="",Qty=""),"",Qty*VLOOKUP(Item,Food,Database!K$1,FALSE)) ->  | Q9: =IF(OR(Item="",Qty=""),"",Qty*VLOOKUP(Item,Food,Database!L$1,FALSE)) ->  | R9: =IF(OR(Item="",Qty=""),"",Qty*VLOOKUP(Item,Food,Database!M$1,FALSE)) ->  | S9: =IF(OR(Item="",Qty=""),"",Qty*VLOOKUP(Item,Food,Database!N$1,FALSE)) ->  | T9: =IF(OR(Item="",Qty=""),"",Qty*VLOOKUP(Item,Food,Database!O$1,FALSE)) ->  | U9: =IF(OR(Item="",Qty=""),"",Qty*VLOOKUP(Item,Food,Database!P$1,FALSE)) ->  | V9: =IF(OR(Item="",Qty=""),"",Qty*VLOOKUP(Item,Food,Database!Q$1,FALSE)) ->  | W9: =IF(OR(Item="",Qty=""),"",Qty*VLOOKUP(Item,Food,Database!R$1,FALSE)) ->  | X9: =IF(OR(Item="",Qty=""),"",Qty*VLOOKUP(Item,Food,Database!S$1,FALSE)) -> 
H10: =IF(Item="","",VLOOKUP(Item,Food,Database!C$1,FALSE)) -> 1 (med) | I10: =IF(OR(Item="",Qty=""),"",Qty*VLOOKUP(Item,Food,Database!D$1,FALSE)) -> 105 | J10: =IF(OR(Item="",Qty=""),"",Qty*VLOOKUP(Item,Food,Database!E$1,FALSE)) -> 4 | K10: =IF(OR(Item="",Qty=""),"",Qty*VLOOKUP(Item,Food,Database!F$1,FALSE)) -> 0.4 | L10: =IF(OR(Item="",Qty=""),"",Qty*VLOOKUP(Item,Food,Database!G$1,FALSE)) -> 0.1 | M10: =IF(OR(Item="",Qty=""),"",Qty*VLOOKUP(Item,Food,Database!H$1,FALSE)) -> 0.1 | N10: =IF(OR(Item="",Qty=""),"",Qty*VLOOKUP(Item,Food,Database!I$1,FALSE)) -> 0 | O10: =IF(OR(Item="",Qty=""),"",Qty*VLOOKUP(Item,Food,Database!J$1,FALSE)) -> 0 | P10: =IF(OR(Item="",Qty=""),"",Qty*VLOOKUP(Item,Food,Database!K$1,FALSE)) -> 0 | Q10: =IF(OR(Item="",Qty=""),"",Qty*VLOOKUP(Item,Food,Database!L$1,FALSE)) -> 1.2 | R10: =IF(OR(Item="",Qty=""),"",Qty*VLOOKUP(Item,Food,Database!M$1,FALSE)) -> 422.4 | S10: =IF(OR(Item="",Qty=""),"",Qty*VLOOKUP(Item,Food,Database!N$1,FALSE)) -> 27 | T10: =IF(OR(Item="",Qty=""),"",Qty*VLOOKUP(Item,Food,Database!O$1,FALSE)) -> 3.1 | U10: =IF(OR(Item="",Qty=""),"",Qty*VLOOKUP(Item,Food,Database!P$1,FALSE)) -> 0 | V10: =IF(OR(Item="",Qty=""),"",Qty*VLOOKUP(Item,Food,Database!Q$1,FALSE)) -> 0 | W10: =IF(OR(Item="",Qty=""),"",Qty*VLOOKUP(Item,Food,Database!R$1,FALSE)) -> 14.4 | X10: =IF(OR(Item="",Qty=""),"",Qty*VLOOKUP(Item,Food,Database!S$1,FALSE)) -> 1.3
H11: =IF(Item="","",VLOOKUP(Item,Food,Database!C$1,FALSE)) -> 3 oz | I11: =IF(OR(Item="",Qty=""),"",Qty*VLOOKUP(Item,Food,Database!D$1,FALSE)) -> 130 | J11: =IF(OR(Item="",Qty=""),"",Qty*VLOOKUP(Item,Food,Database!E$1,FALSE)) -> 15 | K11: =IF(OR(Item="",Qty=""),"",Qty*VLOOKUP(Item,Food,Database!F$1,FALSE)) -> 1.5 | L11: =IF(OR(Item="",Qty=""),"",Qty*VLOOKUP(Item,Food,Database!G$1,FALSE)) -> 0.5 | M11: =IF(OR(Item="",Qty=""),"",Qty*VLOOKUP(Item,Food,Database!H$1,FALSE)) -> 0 | N11: =IF(OR(Item="",Qty=""),"",Qty*VLOOKUP(Item,Food,Database!I$1,FALSE)) -> 0 | O11: =IF(OR(Item="",Qty=""),"",Qty*VLOOKUP(Item,Food,Database!J$1,FALSE)) -> 0 | P11: =IF(OR(Item="",Qty=""),"",Qty*VLOOKUP(Item,Food,Database!K$1,FALSE)) -> 75 | Q11: =IF(OR(Item="",Qty=""),"",Qty*VLOOKUP(Item,Food,Database!L$1,FALSE)) -> 25 | R11: =IF(OR(Item="",Qty=""),"",Qty*VLOOKUP(Item,Food,Database!M$1,FALSE)) -> 0 | S11: =IF(OR(Item="",Qty=""),"",Qty*VLOOKUP(Item,Food,Database!N$1,FALSE)) -> 0 | T11: =IF(OR(Item="",Qty=""),"",Qty*VLOOKUP(Item,Food,Database!O$1,FALSE)) -> 0 | U11: =IF(OR(Item="",Qty=""),"",Qty*VLOOKUP(Item,Food,Database!P$1,FALSE)) -> 0 | V11: =IF(OR(Item="",Qty=""),"",Qty*VLOOKUP(Item,Food,Database!Q$1,FALSE)) -> 0 | W11: =IF(OR(Item="",Qty=""),"",Qty*VLOOKUP(Item,Food,Database!R$1,FALSE)) -> 0 | X11: =IF(OR(Item="",Qty=""),"",Qty*VLOOKUP(Item,Food,Database!S$1,FALSE)) -> 28
H12: =IF(Item="","",VLOOKUP(Item,Food,Database!C$1,FALSE)) -> 1 cup | I12: =IF(OR(Item="",Qty=""),"",Qty*VLOOKUP(Item,Food,Database!D$1,FALSE)) -> 218 | J12: =IF(OR(Item="",Qty=""),"",Qty*VLOOKUP(Item,Food,Database!E$1,FALSE)) -> 15 | K12: =IF(OR(Item="",Qty=""),"",Qty*VLOOKUP(Item,Food,Database!F$1,FALSE)) -> 1.6 | L12: =IF(OR(Item="",Qty=""),"",Qty*VLOOKUP(Item,Food,Database!G$1,FALSE)) -> 0.3 | M12: =IF(OR(Item="",Qty=""),"",Qty*VLOOKUP(Item,Food,Database!H$1,FALSE)) -> 0.6 | N12: =IF(OR(Item="",Qty=""),"",Qty*VLOOKUP(Item,Food,Database!I$1,FALSE)) -> 0.6 | O12: =IF(OR(Item="",Qty=""),"",Qty*VLOOKUP(Item,Food,Database!J$1,FALSE)) -> 0 | P12: =IF(OR(Item="",Qty=""),"",Qty*VLOOKUP(Item,Food,Database!K$1,FALSE)) -> 0 | Q12: =IF(OR(Item="",Qty=""),"",Qty*VLOOKUP(Item,Food,Database!L$1,FALSE)) -> 2 | R12: =IF(OR(Item="",Qty=""),"",Qty*VLOOKUP(Item,Food,Database!M$1,FALSE)) -> 154.1 | S12: =IF(OR(Item="",Qty=""),"",Qty*VLOOKUP(Item,Food,Database!N$1,FALSE)) -> 45.8 | T12: =IF(OR(Item="",Qty=""),"",Qty*VLOOKUP(Item,Food,Database!O$1,FALSE)) -> 3.5 | U12: =IF(OR(Item="",Qty=""),"",Qty*VLOOKUP(Item,Food,Database!P$1,FALSE)) -> 0 | V12: =IF(OR(Item="",Qty=""),"",Qty*VLOOKUP(Item,Food,Database!Q$1,FALSE)) -> 0 | W12: =IF(OR(Item="",Qty=""),"",Qty*VLOOKUP(Item,Food,Database!R$1,FALSE)) -> 0 | X12: =IF(OR(Item="",Qty=""),"",Qty*VLOOKUP(Item,Food,Database!S$1,FALSE)) -> 4.5
D13: TOTAL | I13: =IF(SUM(I3:I12)=0,"",SUM(I3:I12)) -> 
D14: Percentage (in Calories) | K14: =IF(K13="","",(K13*9)/(K13*9+(S13-T13)*4+X13*4)) ->  | S14: =IF(S13="","",(S13-T13)*4/(K13*9+(S13-T13)*4+X13*4)) ->  | X14: =IF(X13="","",X13*4/(K13*9+(S13-T13)*4+X13*4)) -> 
B15: =B3+1 -> 2008-09-30 | C15: =VLOOKUP(WEEKDAY(B15,2),WkDay,2,FALSE) -> Tue | H15: =IF(Item="","",VLOOKUP(Item,Food,Database!C$1,FALSE)) -> 1 cup (8 oz) | I15: =IF(OR(Item="",Qty=""),"",Qty*VLOOKUP(Item,Food,Database!D$1,FALSE)) -> 180 | J15: =IF(OR(Item="",Qty=""),"",Qty*VLOOKUP(Item,Food,Database!E$1,FALSE)) -> 0 | K15: =IF(OR(Item="",Qty=""),"",Qty*VLOOKUP(Item,Food,Database!F$1,FALSE)) -> 0 | L15: =IF(OR(Item="",Qty=""),"",Qty*VLOOKUP(Item,Food,Database!G$1,FALSE)) -> 0 | M15: =IF(OR(Item="",Qty=""),"",Qty*VLOOKUP(Item,Food,Database!H$1,FALSE)) -> 0 | N15: =IF(OR(Item="",Qty=""),"",Qty*VLOOKUP(Item,Food,Database!I$1,FALSE)) -> 0 | O15: =IF(OR(Item="",Qty=""),"",Qty*VLOOKUP(Item,Food,Database!J$1,FALSE)) -> 0 | P15: =IF(OR(Item="",Qty=""),"",Qty*VLOOKUP(Item,Food,Database!K$1,FALSE)) -> 9.8 | Q15: =IF(OR(Item="",Qty=""),"",Qty*VLOOKUP(Item,Food,Database!L$1,FALSE)) -> 250 | R15: =IF(OR(Item="",Qty=""),"",Qty*VLOOKUP(Item,Food,Database!M$1,FALSE)) -> 0 | S15: =IF(OR(Item="",Qty=""),"",Qty*VLOOKUP(Item,Food,Database!N$1,FALSE)) -> 26 | T15: =IF(OR(Item="",Qty=""),"",Qty*VLOOKUP(Item,Food,Database!O$1,FALSE)) -> 0 | U15: =IF(OR(Item="",Qty=""),"",Qty*VLOOKUP(Item,Food,Database!P$1,FALSE)) -> 0 | V15: =IF(OR(Item="",Qty=""),"",Qty*VLOOKUP(Item,Food,Database!Q$1,FALSE)) -> 0 | W15: =IF(OR(Item="",Qty=""),"",Qty*VLOOKUP(Item,Food,Database!R$1,FALSE)) -> 24 | X15: =IF(OR(Item="",Qty=""),"",Qty*VLOOKUP(Item,Food,Database!S$1,FALSE)) -> 16
H16: =IF(Item="","",VLOOKUP(Item,Food,Database!C$1,FALSE)) ->  | I16: =IF(OR(Item="",Qty=""),"",Qty*VLOOKUP(Item,Food,Database!D$1,FALSE)) ->  | J16: =IF(OR(Item="",Qty=""),"",Qty*VLOOKUP(Item,Food,Database!E$1,FALSE)) ->  | K16: =IF(OR(Item="",Qty=""),"",Qty*VLOOKUP(Item,Food,Database!F$1,FALSE)) ->  | L16: =IF(OR(Item="",Qty=""),"",Qty*VLOOKUP(Item,Food,Database!G$1,FALSE)) ->  | M16: =IF(OR(Item="",Qty=""),"",Qty*VLOOKUP(Item,Food,Database!H$1,FALSE)) ->  | N16: =IF(OR(Item="",Qty=""),"",Qty*VLOOKUP(Item,Food,Database!I$1,FALSE)) ->  | O16: =IF(OR(Item="",Qty=""),"",Qty*VLOOKUP(Item,Food,Database!J$1,FALSE)) ->  | P16: =IF(OR(Item="",Qty=""),"",Qty*VLOOKUP(Item,Food,Database!K$1,FALSE)) ->  | Q16: =IF(OR(Item="",Qty=""),"",Qty*VLOOKUP(Item,Food,Database!L$1,FALSE)) ->  | R16: =IF(OR(Item="",Qty=""),"",Qty*VLOOKUP(Item,Food,Database!M$1,FALSE)) ->  | S16: =IF(OR(Item="",Qty=""),"",Qty*VLOOKUP(Item,Food,Database!N$1,FALSE)) ->  | T16: =IF(OR(Item="",Qty=""),"",Qty*VLOOKUP(Item,Food,Database!O$1,FALSE)) ->  | U16: =IF(OR(Item="",Qty=""),"",Qty*VLOOKUP(Item,Food,Database!P$1,FALSE)) ->  | V16: =IF(OR(Item="",Qty=""),"",Qty*VLOOKUP(Item,Food,Database!Q$1,FALSE)) ->  | W16: =IF(OR(Item="",Qty=""),"",Qty*VLOOKUP(Item,Food,Database!R$1,FALSE)) ->  | X16: =IF(OR(Item="",Qty=""),"",Qty*VLOOKUP(Item,Food,Database!S$1,FALSE)) -> 
H17: =IF(Item="","",VLOOKUP(Item,Food,Database!C$1,FALSE)) -> 1 Slice | I17: =IF(OR(Item="",Qty=""),"",Qty*VLOOKUP(Item,Food,Database!D$1,FALSE)) -> 120 | J17: =IF(OR(Item="",Qty=""),"",Qty*VLOOKUP(Item,Food,Database!E$1,FALSE)) -> 20 | K17: =IF(OR(Item="",Qty=""),"",Qty*VLOOKUP(Item,Food,Database!F$1,FALSE)) -> 2 | L17: =IF(OR(Item="",Qty=""),"",Qty*VLOOKUP(Item,Food,Database!G$1,FALSE)) -> 0 | M17: =IF(OR(Item="",Qty=""),"",Qty*VLOOKUP(Item,Food,Database!H$1,FALSE)) -> 1 | N17: =IF(OR(Item="",Qty=""),"",Qty*VLOOKUP(Item,Food,Database!I$1,FALSE)) -> 0 | O17: =IF(OR(Item="",Qty=""),"",Qty*VLOOKUP(Item,Food,Database!J$1,FALSE)) -> 0 | P17: =IF(OR(Item="",Qty=""),"",Qty*VLOOKUP(Item,Food,Database!K$1,FALSE)) -> 0 | Q17: =IF(OR(Item="",Qty=""),"",Qty*VLOOKUP(Item,Food,Database!L$1,FALSE)) -> 170 | R17: =IF(OR(Item="",Qty=""),"",Qty*VLOOKUP(Item,Food,Database!M$1,FALSE)) -> 0 | S17: =IF(OR(Item="",Qty=""),"",Qty*VLOOKUP(Item,Food,Database!N$1,FALSE)) -> 21 | T17: =IF(OR(Item="",Qty=""),"",Qty*VLOOKUP(Item,Food,Database!O$1,FALSE)) -> 2 | U17: =IF(OR(Item="",Qty=""),"",Qty*VLOOKUP(Item,Food,Database!P$1,FALSE)) -> 0 | V17: =IF(OR(Item="",Qty=""),"",Qty*VLOOKUP(Item,Food,Database!Q$1,FALSE)) -> 0 | W17: =IF(OR(Item="",Qty=""),"",Qty*VLOOKUP(Item,Food,Database!R$1,FALSE)) -> 3 | X17: =IF(OR(Item="",Qty=""),"",Qty*VLOOKUP(Item,Food,Database!S$1,FALSE)) -> 5
H18: =IF(Item="","",VLOOKUP(Item,Food,Database!C$1,FALSE)) -> 1 slice (1 oz) | I18: =IF(OR(Item="",Qty=""),"",Qty*VLOOKUP(Item,Food,Database!D$1,FALSE)) -> 60 | J18: =IF(OR(Item="",Qty=""),"",Qty*VLOOKUP(Item,Food,Database!E$1,FALSE)) -> 18 | K18: =IF(OR(Item="",Qty=""),"",Qty*VLOOKUP(Item,Food,Database!F$1,FALSE)) -> 2 | L18: =IF(OR(Item="",Qty=""),"",Qty*VLOOKUP(Item,Food,Database!G$1,FALSE)) -> 0 | M18: =IF(OR(Item="",Qty=""),"",Qty*VLOOKUP(Item,Food,Database!H$1,FALSE)) -> 0 | N18: =IF(OR(Item="",Qty=""),"",Qty*VLOOKUP(Item,Food,Database!I$1,FALSE)) -> 0 | O18: =IF(OR(Item="",Qty=""),"",Qty*VLOOKUP(Item,Food,Database!J$1,FALSE)) -> 0 | P18: =IF(OR(Item="",Qty=""),"",Qty*VLOOKUP(Item,Food,Database!K$1,FALSE)) -> 20 | Q18: =IF(OR(Item="",Qty=""),"",Qty*VLOOKUP(Item,Food,Database!L$1,FALSE)) -> 600 | R18: =IF(OR(Item="",Qty=""),"",Qty*VLOOKUP(Item,Food,Database!M$1,FALSE)) -> 0 | S18: =IF(OR(Item="",Qty=""),"",Qty*VLOOKUP(Item,Food,Database!N$1,FALSE)) -> 2 | T18: =IF(OR(Item="",Qty=""),"",Qty*VLOOKUP(Item,Food,Database!O$1,FALSE)) -> 0 | U18: =IF(OR(Item="",Qty=""),"",Qty*VLOOKUP(Item,Food,Database!P$1,FALSE)) -> 0 | V18: =IF(OR(Item="",Qty=""),"",Qty*VLOOKUP(Item,Food,Database!Q$1,FALSE)) -> 0 | W18: =IF(OR(Item="",Qty=""),"",Qty*VLOOKUP(Item,Food,Database!R$1,FALSE)) -> 0 | X18: =IF(OR(Item="",Qty=""),"",Qty*VLOOKUP(Item,Food,Database!S$1,FALSE)) -> 28
H19: =IF(Item="","",VLOOKUP(Item,Food,Database!C$1,FALSE)) -> 1 cup | I19: =IF(OR(Item="",Qty=""),"",Qty*VLOOKUP(Item,Food,Database!D$1,FALSE)) -> 25 | J19: =IF(OR(Item="",Qty=""),"",Qty*VLOOKUP(Item,Food,Database!E$1,FALSE)) -> 1.5 | K19: =IF(OR(Item="",Qty=""),"",Qty*VLOOKUP(Item,Food,Database!F$1,FALSE)) -> 0.15 | L19: =IF(OR(Item="",Qty=""),"",Qty*VLOOKUP(Item,Food,Database!G$1,FALSE)) -> 0 | M19: =IF(OR(Item="",Qty=""),"",Qty*VLOOKUP(Item,Food,Database!H$1,FALSE)) -> 0.05 | N19: =IF(OR(Item="",Qty=""),"",Qty*VLOOKUP(Item,Food,Database!I$1,FALSE)) -> 0 | O19: =IF(OR(Item="",Qty=""),"",Qty*VLOOKUP(Item,Food,Database!J$1,FALSE)) -> 0 | P19: =IF(OR(Item="",Qty=""),"",Qty*VLOOKUP(Item,Food,Database!K$1,FALSE)) -> 0 | Q19: =IF(OR(Item="",Qty=""),"",Qty*VLOOKUP(Item,Food,Database!L$1,FALSE)) -> 42.1 | R19: =IF(OR(Item="",Qty=""),"",Qty*VLOOKUP(Item,Food,Database!M$1,FALSE)) -> 195.2 | S19: =IF(OR(Item="",Qty=""),"",Qty*VLOOKUP(Item,Food,Database!N$1,FALSE)) -> 5.85 | T19: =IF(OR(Item="",Qty=""),"",Qty*VLOOKUP(Item,Food,Database!O$1,FALSE)) -> 1.85 | U19: =IF(OR(Item="",Qty=""),"",Qty*VLOOKUP(Item,Food,Database!P$1,FALSE)) -> 0 | V19: =IF(OR(Item="",Qty=""),"",Qty*VLOOKUP(Item,Food,Database!Q$1,FALSE)) -> 0 | W19: =IF(OR(Item="",Qty=""),"",Qty*VLOOKUP(Item,Food,Database!R$1,FALSE)) -> 2.75 | X19: =IF(OR(Item="",Qty=""),"",Qty*VLOOKUP(Item,Food,Database!S$1,FALSE)) -> 0.55
H20: =IF(Item="","",VLOOKUP(Item,Food,Database!C$1,FALSE)) ->  | I20: =IF(OR(Item="",Qty=""),"",Qty*VLOOKUP(Item,Food,Database!D$1,FALSE)) ->  | J20: =IF(OR(Item="",Qty=""),"",Qty*VLOOKUP(Item,Food,Database!E$1,FALSE)) ->  | K20: =IF(OR(Item="",Qty=""),"",Qty*VLOOKUP(Item,Food,Database!F$1,FALSE)) ->  | L20: =IF(OR(Item="",Qty=""),"",Qty*VLOOKUP(Item,Food,Database!G$1,FALSE)) ->  | M20: =IF(OR(Item="",Qty=""),"",Qty*VLOOKUP(Item,Food,Database!H$1,FALSE)) ->  | N20: =IF(OR(Item="",Qty=""),"",Qty*VLOOKUP(Item,Food,Database!I$1,FALSE)) ->  | O20: =IF(OR(Item="",Qty=""),"",Qty*VLOOKUP(Item,Food,Database!J$1,FALSE)) ->  | P20: =IF(OR(Item="",Qty=""),"",Qty*VLOOKUP(Item,Food,Database!K$1,FALSE)) ->  | Q20: =IF(OR(Item="",Qty=""),"",Qty*VLOOKUP(Item,Food,Database!L$1,FALSE)) ->  | R20: =IF(OR(Item="",Qty=""),"",Qty*VLOOKUP(Item,Food,Database!M$1,FALSE)) ->  | S20: =IF(OR(Item="",Qty=""),"",Qty*VLOOKUP(Item,Food,Database!N$1,FALSE)) ->  | T20: =IF(OR(Item="",Qty=""),"",Qty*VLOOKUP(Item,Food,Database!O$1,FALSE)) ->  | U20: =IF(OR(Item="",Qty=""),"",Qty*VLOOKUP(Item,Food,Database!P$1,FALSE)) ->  | V20: =IF(OR(Item="",Qty=""),"",Qty*VLOOKUP(Item,Food,Database!Q$1,FALSE)) ->  | W20: =IF(OR(Item="",Qty=""),"",Qty*VLOOKUP(Item,Food,Database!R$1,FALSE)) ->  | X20: =IF(OR(Item="",Qty=""),"",Qty*VLOOKUP(Item,Food,Database!S$1,FALSE)) -> 
H21: =IF(Item="","",VLOOKUP(Item,Food,Database!C$1,FALSE)) -> 1 | I21: =IF(OR(Item="",Qty=""),"",Qty*VLOOKUP(Item,Food,Database!D$1,FALSE)) -> 55 | J21: =IF(OR(Item="",Qty=""),"",Qty*VLOOKUP(Item,Food,Database!E$1,FALSE)) -> 2 | K21: =IF(OR(Item="",Qty=""),"",Qty*VLOOKUP(Item,Food,Database!F$1,FALSE)) -> 0.2 | L21: =IF(OR(Item="",Qty=""),"",Qty*VLOOKUP(Item,Food,Database!G$1,FALSE)) -> 0 | M21: =IF(OR(Item="",Qty=""),"",Qty*VLOOKUP(Item,Food,Database!H$1,FALSE)) -> 0.1 | N21: =IF(OR(Item="",Qty=""),"",Qty*VLOOKUP(Item,Food,Database!I$1,FALSE)) -> 0 | O21: =IF(OR(Item="",Qty=""),"",Qty*VLOOKUP(Item,Food,Database!J$1,FALSE)) -> 0 | P21: =IF(OR(Item="",Qty=""),"",Qty*VLOOKUP(Item,Food,Database!K$1,FALSE)) -> 0 | Q21: =IF(OR(Item="",Qty=""),"",Qty*VLOOKUP(Item,Food,Database!L$1,FALSE)) -> 1.1 | R21: =IF(OR(Item="",Qty=""),"",Qty*VLOOKUP(Item,Food,Database!M$1,FALSE)) -> 113.4 | S21: =IF(OR(Item="",Qty=""),"",Qty*VLOOKUP(Item,Food,Database!N$1,FALSE)) -> 14.6 | T21: =IF(OR(Item="",Qty=""),"",Qty*VLOOKUP(Item,Food,Database!O$1,FALSE)) -> 2.5 | U21: =IF(OR(Item="",Qty=""),"",Qty*VLOOKUP(Item,Food,Database!P$1,FALSE)) -> 0 | V21: =IF(OR(Item="",Qty=""),"",Qty*VLOOKUP(Item,Food,Database!Q$1,FALSE)) -> 0 | W21: =IF(OR(Item="",Qty=""),"",Qty*VLOOKUP(Item,Food,Database!R$1,FALSE)) -> 11 | X21: =IF(OR(Item="",Qty=""),"",Qty*VLOOKUP(Item,Food,Database!S$1,FALSE)) -> 0.3
H22: =IF(Item="","",VLOOKUP(Item,Food,Database!C$1,FALSE)) -> 1 Slice | I22: =IF(OR(Item="",Qty=""),"",Qty*VLOOKUP(Item,Food,Database!D$1,FALSE)) -> 120 | J22: =IF(OR(Item="",Qty=""),"",Qty*VLOOKUP(Item,Food,Database!E$1,FALSE)) -> 20 | K22: =IF(OR(Item="",Qty=""),"",Qty*VLOOKUP(Item,Food,Database!F$1,FALSE)) -> 2 | L22: =IF(OR(Item="",Qty=""),"",Qty*VLOOKUP(Item,Food,Database!G$1,FALSE)) -> 0 | M22: =IF(OR(Item="",Qty=""),"",Qty*VLOOKUP(Item,Food,Database!H$1,FALSE)) -> 1 | N22: =IF(OR(Item="",Qty=""),"",Qty*VLOOKUP(Item,Food,Database!I$1,FALSE)) -> 0 | O22: =IF(OR(Item="",Qty=""),"",Qty*VLOOKUP(Item,Food,Database!J$1,FALSE)) -> 0 | P22: =IF(OR(Item="",Qty=""),"",Qty*VLOOKUP(Item,Food,Database!K$1,FALSE)) -> 0 | Q22: =IF(OR(Item="",Qty=""),"",Qty*VLOOKUP(Item,Food,Database!L$1,FALSE)) -> 170 | R22: =IF(OR(Item="",Qty=""),"",Qty*VLOOKUP(Item,Food,Database!M$1,FALSE)) -> 0 | S22: =IF(OR(Item="",Qty=""),"",Qty*VLOOKUP(Item,Food,Database!N$1,FALSE)) -> 21 | T22: =IF(OR(Item="",Qty=""),"",Qty*VLOOKUP(Item,Food,Database!O$1,FALSE)) -> 2 | U22: =IF(OR(Item="",Qty=""),"",Qty*VLOOKUP(Item,Food,Database!P$1,FALSE)) -> 0 | V22: =IF(OR(Item="",Qty=""),"",Qty*VLOOKUP(Item,Food,Database!Q$1,FALSE)) -> 0 | W22: =IF(OR(Item="",Qty=""),"",Qty*VLOOKUP(Item,Food,Database!R$1,FALSE)) -> 3 | X22: =IF(OR(Item="",Qty=""),"",Qty*VLOOKUP(Item,Food,Database!S$1,FALSE)) -> 5
H23: =IF(Item="","",VLOOKUP(Item,Food,Database!C$1,FALSE)) -> 1 slice (1 oz) | I23: =IF(OR(Item="",Qty=""),"",Qty*VLOOKUP(Item,Food,Database!D$1,FALSE)) -> 60 | J23: =IF(OR(Item="",Qty=""),"",Qty*VLOOKUP(Item,Food,Database!E$1,FALSE)) -> 18 | K23: =IF(OR(Item="",Qty=""),"",Qty*VLOOKUP(Item,Food,Database!F$1,FALSE)) -> 2 | L23: =IF(OR(Item="",Qty=""),"",Qty*VLOOKUP(Item,Food,Database!G$1,FALSE)) -> 0 | M23: =IF(OR(Item="",Qty=""),"",Qty*VLOOKUP(Item,Food,Database!H$1,FALSE)) -> 0 | N23: =IF(OR(Item="",Qty=""),"",Qty*VLOOKUP(Item,Food,Database!I$1,FALSE)) -> 0 | O23: =IF(OR(Item="",Qty=""),"",Qty*VLOOKUP(Item,Food,Database!J$1,FALSE)) -> 0 | P23: =IF(OR(Item="",Qty=""),"",Qty*VLOOKUP(Item,Food,Database!K$1,FALSE)) -> 20 | Q23: =IF(OR(Item="",Qty=""),"",Qty*VLOOKUP(Item,Food,Database!L$1,FALSE)) -> 600 | R23: =IF(OR(Item="",Qty=""),"",Qty*VLOOKUP(Item,Food,Database!M$1,FALSE)) -> 0 | S23: =IF(OR(Item="",Qty=""),"",Qty*VLOOKUP(Item,Food,Database!N$1,FALSE)) -> 2 | T23: =IF(OR(Item="",Qty=""),"",Qty*VLOOKUP(Item,Food,Database!O$1,FALSE)) -> 0 | U23: =IF(OR(Item="",Qty=""),"",Qty*VLOOKUP(Item,Food,Database!P$1,FALSE)) -> 0 | V23: =IF(OR(Item="",Qty=""),"",Qty*VLOOKUP(Item,Food,Database!Q$1,FALSE)) -> 0 | W23: =IF(OR(Item="",Qty=""),"",Qty*VLOOKUP(Item,Food,Database!R$1,FALSE)) -> 0 | X23: =IF(OR(Item="",Qty=""),"",Qty*VLOOKUP(Item,Food,Database!S$1,FALSE)) -> 28
H24: =IF(Item="","",VLOOKUP(Item,Food,Database!C$1,FALSE)) ->  | I24: =IF(OR(Item="",Qty=""),"",Qty*VLOOKUP(Item,Food,Database!D$1,FALSE)) ->  | J24: =IF(OR(Item="",Qty=""),"",Qty*VLOOKUP(Item,Food,Database!E$1,FALSE)) ->  | K24: =IF(OR(Item="",Qty=""),"",Qty*VLOOKUP(Item,Food,Database!F$1,FALSE)) ->  | L24: =IF(OR(Item="",Qty=""),"",Qty*VLOOKUP(Item,Food,Database!G$1,FALSE)) ->  | M24: =IF(OR(Item="",Qty=""),"",Qty*VLOOKUP(Item,Food,Database!H$1,FALSE)) ->  | N24: =IF(OR(Item="",Qty=""),"",Qty*VLOOKUP(Item,Food,Database!I$1,FALSE)) ->  | O24: =IF(OR(Item="",Qty=""),"",Qty*VLOOKUP(Item,Food,Database!J$1,FALSE)) ->  | P24: =IF(OR(Item="",Qty=""),"",Qty*VLOOKUP(Item,Food,Database!K$1,FALSE)) ->  | Q24: =IF(OR(Item="",Qty=""),"",Qty*VLOOKUP(Item,Food,Database!L$1,FALSE)) ->  | R24: =IF(OR(Item="",Qty=""),"",Qty*VLOOKUP(Item,Food,Database!M$1,FALSE)) ->  | S24: =IF(OR(Item="",Qty=""),"",Qty*VLOOKUP(Item,Food,Database!N$1,FALSE)) ->  | T24: =IF(OR(Item="",Qty=""),"",Qty*VLOOKUP(Item,Food,Database!O$1,FALSE)) ->  | U24: =IF(OR(Item="",Qty=""),"",Qty*VLOOKUP(Item,Food,Database!P$1,FALSE)) ->  | V24: =IF(OR(Item="",Qty=""),"",Qty*VLOOKUP(Item,Food,Database!Q$1,FALSE)) ->  | W24: =IF(OR(Item="",Qty=""),"",Qty*VLOOKUP(Item,Food,Database!R$1,FALSE)) ->  | X24: =IF(OR(Item="",Qty=""),"",Qty*VLOOKUP(Item,Food,Database!S$1,FALSE)) -> 
D25: TOTAL | I25: =IF(SUM(I15:I24)=0,"",SUM(I15:I24)) -> 620 | J25: =IF(SUM(J15:J24)=0,"",SUM(J15:J24)) -> 79.5 | K25: 8.35 | M25: 2.15 | P25: 49.8 | Q25: 1833.2 | R25: 308.6 | S25: 92.45 | T25: 8.35 | W25: 43.75 | X25: 82.85
D26: Percentage (in Calories) | K26: =IF(K25="","",(K25*9)/(K25*9+(S25-T25)*4+X25*4)) -> 0.1011508177 | S26: =IF(S25="","",(S25-T25)*4/(K25*9+(S25-T25)*4+X25*4)) -> 0.4527895552 | X26: =IF(X25="","",X25*4/(K25*9+(S25-T25)*4+X25*4)) -> 0.4460596272
B27: =B15+1 -> 2008-10-01 | C27: =VLOOKUP(WEEKDAY(B27,2),WkDay,2,FALSE) -> Wed | H27: =IF(Item="","",VLOOKUP(Item,Food,Database!C$1,FALSE)) ->  | I27: =IF(OR(Item="",Qty=""),"",Qty*VLOOKUP(Item,Food,Database!D$1,FALSE)) ->  | J27: =IF(OR(Item="",Qty=""),"",Qty*VLOOKUP(Item,Food,Database!E$1,FALSE)) ->  | K27: =IF(OR(Item="",Qty=""),"",Qty*VLOOKUP(Item,Food,Database!F$1,FALSE)) ->  | L27: =IF(OR(Item="",Qty=""),"",Qty*VLOOKUP(Item,Food,Database!G$1,FALSE)) ->  | M27: =IF(OR(Item="",Qty=""),"",Qty*VLOOKUP(Item,Food,Database!H$1,FALSE)) ->  | N27: =IF(OR(Item="",Qty=""),"",Qty*VLOOKUP(Item,Food,Database!I$1,FALSE)) ->  | O27: =IF(OR(Item="",Qty=""),"",Qty*VLOOKUP(Item,Food,Database!J$1,FALSE)) ->  | P27: =IF(OR(Item="",Qty=""),"",Qty*VLOOKUP(Item,Food,Database!K$1,FALSE)) ->  | Q27: =IF(OR(Item="",Qty=""),"",Qty*VLOOKUP(Item,Food,Database!L$1,FALSE)) ->  | R27: =IF(OR(Item="",Qty=""),"",Qty*VLOOKUP(Item,Food,Database!M$1,FALSE)) ->  | S27: =IF(OR(Item="",Qty=""),"",Qty*VLOOKUP(Item,Food,Database!N$1,FALSE)) ->  | T27: =IF(OR(Item="",Qty=""),"",Qty*VLOOKUP(Item,Food,Database!O$1,FALSE)) ->  | U27: =IF(OR(Item="",Qty=""),"",Qty*VLOOKUP(Item,Food,Database!P$1,FALSE)) ->  | V27: =IF(OR(Item="",Qty=""),"",Qty*VLOOKUP(Item,Food,Database!Q$1,FALSE)) ->  | W27: =IF(OR(Item="",Qty=""),"",Qty*VLOOKUP(Item,Food,Database!R$1,FALSE)) ->  | X27: =IF(OR(Item="",Qty=""),"",Qty*VLOOKUP(Item,Food,Database!S$1,FALSE)) -> 
H28: =IF(Item="","",VLOOKUP(Item,Food,Database!C$1,FALSE)) ->  | I28: =IF(OR(Item="",Qty=""),"",Qty*VLOOKUP(Item,Food,Database!D$1,FALSE)) ->  | J28: =IF(OR(Item="",Qty=""),"",Qty*VLOOKUP(Item,Food,Database!E$1,FALSE)) ->  | K28: =IF(OR(Item="",Qty=""),"",Qty*VLOOKUP(Item,Food,Database!F$1,FALSE)) ->  | L28: =IF(OR(Item="",Qty=""),"",Qty*VLOOKUP(Item,Food,Database!G$1,FALSE)) ->  | M28: =IF(OR(Item="",Qty=""),"",Qty*VLOOKUP(Item,Food,Database!H$1,FALSE)) ->  | N28: =IF(OR(Item="",Qty=""),"",Qty*VLOOKUP(Item,Food,Database!I$1,FALSE)) ->  | O28: =IF(OR(Item="",Qty=""),"",Qty*VLOOKUP(Item,Food,Database!J$1,FALSE)) ->  | P28: =IF(OR(Item="",Qty=""),"",Qty*VLOOKUP(Item,Food,Database!K$1,FALSE)) ->  | Q28: =IF(OR(Item="",Qty=""),"",Qty*VLOOKUP(Item,Food,Database!L$1,FALSE)) ->  | R28: =IF(OR(Item="",Qty=""),"",Qty*VLOOKUP(Item,Food,Database!M$1,FALSE)) ->  | S28: =IF(OR(Item="",Qty=""),"",Qty*VLOOKUP(Item,Food,Database!N$1,FALSE)) ->  | T28: =IF(OR(Item="",Qty=""),"",Qty*VLOOKUP(Item,Food,Database!O$1,FALSE)) ->  | U28: =IF(OR(Item="",Qty=""),"",Qty*VLOOKUP(Item,Food,Database!P$1,FALSE)) ->  | V28: =IF(OR(Item="",Qty=""),"",Qty*VLOOKUP(Item,Food,Database!Q$1,FALSE)) ->  | W28: =IF(OR(Item="",Qty=""),"",Qty*VLOOKUP(Item,Food,Database!R$1,FALSE)) ->  | X28: =IF(OR(Item="",Qty=""),"",Qty*VLOOKUP(Item,Food,Database!S$1,FALSE)) -> 
H29: =IF(Item="","",VLOOKUP(Item,Food,Database!C$1,FALSE)) ->  | I29: =IF(OR(Item="",Qty=""),"",Qty*VLOOKUP(Item,Food,Database!D$1,FALSE)) ->  | J29: =IF(OR(Item="",Qty=""),"",Qty*VLOOKUP(Item,Food,Database!E$1,FALSE)) ->  | K29: =IF(OR(Item="",Qty=""),"",Qty*VLOOKUP(Item,Food,Database!F$1,FALSE)) ->  | L29: =IF(OR(Item="",Qty=""),"",Qty*VLOOKUP(Item,Food,Database!G$1,FALSE)) ->  | M29: =IF(OR(Item="",Qty=""),"",Qty*VLOOKUP(Item,Food,Database!H$1,FALSE)) ->  | N29: =IF(OR(Item="",Qty=""),"",Qty*VLOOKUP(Item,Food,Database!I$1,FALSE)) ->  | O29: =IF(OR(Item="",Qty=""),"",Qty*VLOOKUP(Item,Food,Database!J$1,FALSE)) ->  | P29: =IF(OR(Item="",Qty=""),"",Qty*VLOOKUP(Item,Food,Database!K$1,FALSE)) ->  | Q29: =IF(OR(Item="",Qty=""),"",Qty*VLOOKUP(Item,Food,Database!L$1,FALSE)) ->  | R29: =IF(OR(Item="",Qty=""),"",Qty*VLOOKUP(Item,Food,Database!M$1,FALSE)) ->  | S29: =IF(OR(Item="",Qty=""),"",Qty*VLOOKUP(Item,Food,Database!N$1,FALSE)) ->  | T29: =IF(OR(Item="",Qty=""),"",Qty*VLOOKUP(Item,Food,Database!O$1,FALSE)) ->  | U29: =IF(OR(Item="",Qty=""),"",Qty*VLOOKUP(Item,Food,Database!P$1,FALSE)) ->  | V29: =IF(OR(Item="",Qty=""),"",Qty*VLOOKUP(Item,Food,Database!Q$1,FALSE)) ->  | W29: =IF(OR(Item="",Qty=""),"",Qty*VLOOKUP(Item,Food,Database!R$1,FALSE)) ->  | X29: =IF(OR(Item="",Qty=""),"",Qty*VLOOKUP(Item,Food,Database!S$1,FALSE)) -> 
H30: =IF(Item="","",VLOOKUP(Item,Food,Database!C$1,FALSE)) ->  | I30: =IF(OR(Item="",Qty=""),"",Qty*VLOOKUP(Item,Food,Database!D$1,FALSE)) ->  | J30: =IF(OR(Item="",Qty=""),"",Qty*VLOOKUP(Item,Food,Database!E$1,FALSE)) ->  | K30: =IF(OR(Item="",Qty=""),"",Qty*VLOOKUP(Item,Food,Database!F$1,FALSE)) ->  | L30: =IF(OR(Item="",Qty=""),"",Qty*VLOOKUP(Item,Food,Database!G$1,FALSE)) ->  | M30: =IF(OR(Item="",Qty=""),"",Qty*VLOOKUP(Item,Food,Database!H$1,FALSE)) ->  | N30: =IF(OR(Item="",Qty=""),"",Qty*VLOOKUP(Item,Food,Database!I$1,FALSE)) ->  | O30: =IF(OR(Item="",Qty=""),"",Qty*VLOOKUP(Item,Food,Database!J$1,FALSE)) ->  | P30: =IF(OR(Item="",Qty=""),"",Qty*VLOOKUP(Item,Food,Database!K$1,FALSE)) ->  | Q30: =IF(OR(Item="",Qty=""),"",Qty*VLOOKUP(Item,Food,Database!L$1,FALSE)) ->  | R30: =IF(OR(Item="",Qty=""),"",Qty*VLOOKUP(Item,Food,Database!M$1,FALSE)) ->  | S30: =IF(OR(Item="",Qty=""),"",Qty*VLOOKUP(Item,Food,Database!N$1,FALSE)) ->  | T30: =IF(OR(Item="",Qty=""),"",Qty*VLOOKUP(Item,Food,Database!O$1,FALSE)) ->  | U30: =IF(OR(Item="",Qty=""),"",Qty*VLOOKUP(Item,Food,Database!P$1,FALSE)) ->  | V30: =IF(OR(Item="",Qty=""),"",Qty*VLOOKUP(Item,Food,Database!Q$1,FALSE)) ->  | W30: =IF(OR(Item="",Qty=""),"",Qty*VLOOKUP(Item,Food,Database!R$1,FALSE)) ->  | X30: =IF(OR(Item="",Qty=""),"",Qty*VLOOKUP(Item,Food,Database!S$1,FALSE)) -> 
H31: =IF(Item="","",VLOOKUP(Item,Food,Database!C$1,FALSE)) ->  | I31: =IF(OR(Item="",Qty=""),"",Qty*VLOOKUP(Item,Food,Database!D$1,FALSE)) ->  | J31: =IF(OR(Item="",Qty=""),"",Qty*VLOOKUP(Item,Food,Database!E$1,FALSE)) ->  | K31: =IF(OR(Item="",Qty=""),"",Qty*VLOOKUP(Item,Food,Database!F$1,FALSE)) ->  | L31: =IF(OR(Item="",Qty=""),"",Qty*VLOOKUP(Item,Food,Database!G$1,FALSE)) ->  | M31: =IF(OR(Item="",Qty=""),"",Qty*VLOOKUP(Item,Food,Database!H$1,FALSE)) ->  | N31: =IF(OR(Item="",Qty=""),"",Qty*VLOOKUP(Item,Food,Database!I$1,FALSE)) ->  | O31: =IF(OR(Item="",Qty=""),"",Qty*VLOOKUP(Item,Food,Database!J$1,FALSE)) ->  | P31: =IF(OR(Item="",Qty=""),"",Qty*VLOOKUP(Item,Food,Database!K$1,FALSE)) ->  | Q31: =IF(OR(Item="",Qty=""),"",Qty*VLOOKUP(Item,Food,Database!L$1,FALSE)) ->  | R31: =IF(OR(Item="",Qty=""),"",Qty*VLOOKUP(Item,Food,Database!M$1,FALSE)) ->  | S31: =IF(OR(Item="",Qty=""),"",Qty*VLOOKUP(Item,Food,Database!N$1,FALSE)) ->  | T31: =IF(OR(Item="",Qty=""),"",Qty*VLOOKUP(Item,Food,Database!O$1,FALSE)) ->  | U31: =IF(OR(Item="",Qty=""),"",Qty*VLOOKUP(Item,Food,Database!P$1,FALSE)) ->  | V31: =IF(OR(Item="",Qty=""),"",Qty*VLOOKUP(Item,Food,Database!Q$1,FALSE)) ->  | W31: =IF(OR(Item="",Qty=""),"",Qty*VLOOKUP(Item,Food,Database!R$1,FALSE)) ->  | X31: =IF(OR(Item="",Qty=""),"",Qty*VLOOKUP(Item,Food,Database!S$1,FALSE)) -> 
H32: =IF(Item="","",VLOOKUP(Item,Food,Database!C$1,FALSE)) ->  | I32: =IF(OR(Item="",Qty=""),"",Qty*VLOOKUP(Item,Food,Database!D$1,FALSE)) ->  | J32: =IF(OR(Item="",Qty=""),"",Qty*VLOOKUP(Item,Food,Database!E$1,FALSE)) ->  | K32: =IF(OR(Item="",Qty=""),"",Qty*VLOOKUP(Item,Food,Database!F$1,FALSE)) ->  | L32: =IF(OR(Item="",Qty=""),"",Qty*VLOOKUP(Item,Food,Database!G$1,FALSE)) ->  | M32: =IF(OR(Item="",Qty=""),"",Qty*VLOOKUP(Item,Food,Database!H$1,FALSE)) ->  | N32: =IF(OR(Item="",Qty=""),"",Qty*VLOOKUP(Item,Food,Database!I$1,FALSE)) ->  | O32: =IF(OR(Item="",Qty=""),"",Qty*VLOOKUP(Item,Food,Database!J$1,FALSE)) ->  | P32: =IF(OR(Item="",Qty=""),"",Qty*VLOOKUP(Item,Food,Database!K$1,FALSE)) ->  | Q32: =IF(OR(Item="",Qty=""),"",Qty*VLOOKUP(Item,Food,Database!L$1,FALSE)) ->  | R32: =IF(OR(Item="",Qty=""),"",Qty*VLOOKUP(Item,Food,Database!M$1,FALSE)) ->  | S32: =IF(OR(Item="",Qty=""),"",Qty*VLOOKUP(Item,Food,Database!N$1,FALSE)) ->  | T32: =IF(OR(Item="",Qty=""),"",Qty*VLOOKUP(Item,Food,Database!O$1,FALSE)) ->  | U32: =IF(OR(Item="",Qty=""),"",Qty*VLOOKUP(Item,Food,Database!P$1,FALSE)) ->  | V32: =IF(OR(Item="",Qty=""),"",Qty*VLOOKUP(Item,Food,Database!Q$1,FALSE)) ->  | W32: =IF(OR(Item="",Qty=""),"",Qty*VLOOKUP(Item,Food,Database!R$1,FALSE)) ->  | X32: =IF(OR(Item="",Qty=""),"",Qty*VLOOKUP(Item,Food,Database!S$1,FALSE)) -> 
H33: =IF(Item="","",VLOOKUP(Item,Food,Database!C$1,FALSE)) ->  | I33: =IF(OR(Item="",Qty=""),"",Qty*VLOOKUP(Item,Food,Database!D$1,FALSE)) ->  | J33: =IF(OR(Item="",Qty=""),"",Qty*VLOOKUP(Item,Food,Database!E$1,FALSE)) ->  | K33: =IF(OR(Item="",Qty=""),"",Qty*VLOOKUP(Item,Food,Database!F$1,FALSE)) ->  | L33: =IF(OR(Item="",Qty=""),"",Qty*VLOOKUP(Item,Food,Database!G$1,FALSE)) ->  | M33: =IF(OR(Item="",Qty=""),"",Qty*VLOOKUP(Item,Food,Database!H$1,FALSE)) ->  | N33: =IF(OR(Item="",Qty=""),"",Qty*VLOOKUP(Item,Food,Database!I$1,FALSE)) ->  | O33: =IF(OR(Item="",Qty=""),"",Qty*VLOOKUP(Item,Food,Database!J$1,FALSE)) ->  | P33: =IF(OR(Item="",Qty=""),"",Qty*VLOOKUP(Item,Food,Database!K$1,FALSE)) ->  | Q33: =IF(OR(Item="",Qty=""),"",Qty*VLOOKUP(Item,Food,Database!L$1,FALSE)) ->  | R33: =IF(OR(Item="",Qty=""),"",Qty*VLOOKUP(Item,Food,Database!M$1,FALSE)) ->  | S33: =IF(OR(Item="",Qty=""),"",Qty*VLOOKUP(Item,Food,Database!N$1,FALSE)) ->  | T33: =IF(OR(Item="",Qty=""),"",Qty*VLOOKUP(Item,Food,Database!O$1,FALSE)) ->  | U33: =IF(OR(Item="",Qty=""),"",Qty*VLOOKUP(Item,Food,Database!P$1,FALSE)) ->  | V33: =IF(OR(Item="",Qty=""),"",Qty*VLOOKUP(Item,Food,Database!Q$1,FALSE)) ->  | W33: =IF(OR(Item="",Qty=""),"",Qty*VLOOKUP(Item,Food,Database!R$1,FALSE)) ->  | X33: =IF(OR(Item="",Qty=""),"",Qty*VLOOKUP(Item,Food,Database!S$1,FALSE)) -> 
H34: =IF(Item="","",VLOOKUP(Item,Food,Database!C$1,FALSE)) ->  | I34: =IF(OR(Item="",Qty=""),"",Qty*VLOOKUP(Item,Food,Database!D$1,FALSE)) ->  | J34: =IF(OR(Item="",Qty=""),"",Qty*VLOOKUP(Item,Food,Database!E$1,FALSE)) ->  | K34: =IF(OR(Item="",Qty=""),"",Qty*VLOOKUP(Item,Food,Database!F$1,FALSE)) ->  | L34: =IF(OR(Item="",Qty=""),"",Qty*VLOOKUP(Item,Food,Database!G$1,FALSE)) ->  | M34: =IF(OR(Item="",Qty=""),"",Qty*VLOOKUP(Item,Food,Database!H$1,FALSE)) ->  | N34: =IF(OR(Item="",Qty=""),"",Qty*VLOOKUP(Item,Food,Database!I$1,FALSE)) ->  | O34: =IF(OR(Item="",Qty=""),"",Qty*VLOOKUP(Item,Food,Database!J$1,FALSE)) ->  | P34: =IF(OR(Item="",Qty=""),"",Qty*VLOOKUP(Item,Food,Database!K$1,FALSE)) ->  | Q34: =IF(OR(Item="",Qty=""),"",Qty*VLOOKUP(Item,Food,Database!L$1,FALSE)) ->  | R34: =IF(OR(Item="",Qty=""),"",Qty*VLOOKUP(Item,Food,Database!M$1,FALSE)) ->  | S34: =IF(OR(Item="",Qty=""),"",Qty*VLOOKUP(Item,Food,Database!N$1,FALSE)) ->  | T34: =IF(OR(Item="",Qty=""),"",Qty*VLOOKUP(Item,Food,Database!O$1,FALSE)) ->  | U34: =IF(OR(Item="",Qty=""),"",Qty*VLOOKUP(Item,Food,Database!P$1,FALSE)) ->  | V34: =IF(OR(Item="",Qty=""),"",Qty*VLOOKUP(Item,Food,Database!Q$1,FALSE)) ->  | W34: =IF(OR(Item="",Qty=""),"",Qty*VLOOKUP(Item,Food,Database!R$1,FALSE)) ->  | X34: =IF(OR(Item="",Qty=""),"",Qty*VLOOKUP(Item,Food,Database!S$1,FALSE)) -> 
H35: =IF(Item="","",VLOOKUP(Item,Food,Database!C$1,FALSE)) ->  | I35: =IF(OR(Item="",Qty=""),"",Qty*VLOOKUP(Item,Food,Database!D$1,FALSE)) ->  | J35: =IF(OR(Item="",Qty=""),"",Qty*VLOOKUP(Item,Food,Database!E$1,FALSE)) ->  | K35: =IF(OR(Item="",Qty=""),"",Qty*VLOOKUP(Item,Food,Database!F$1,FALSE)) ->  | L35: =IF(OR(Item="",Qty=""),"",Qty*VLOOKUP(Item,Food,Database!G$1,FALSE)) ->  | M35: =IF(OR(Item="",Qty=""),"",Qty*VLOOKUP(Item,Food,Database!H$1,FALSE)) ->  | N35: =IF(OR(Item="",Qty=""),"",Qty*VLOOKUP(Item,Food,Database!I$1,FALSE)) ->  | O35: =IF(OR(Item="",Qty=""),"",Qty*VLOOKUP(Item,Food,Database!J$1,FALSE)) ->  | P35: =IF(OR(Item="",Qty=""),"",Qty*VLOOKUP(Item,Food,Database!K$1,FALSE)) ->  | Q35: =IF(OR(Item="",Qty=""),"",Qty*VLOOKUP(Item,Food,Database!L$1,FALSE)) ->  | R35: =IF(OR(Item="",Qty=""),"",Qty*VLOOKUP(Item,Food,Database!M$1,FALSE)) ->  | S35: =IF(OR(Item="",Qty=""),"",Qty*VLOOKUP(Item,Food,Database!N$1,FALSE)) ->  | T35: =IF(OR(Item="",Qty=""),"",Qty*VLOOKUP(Item,Food,Database!O$1,FALSE)) ->  | U35: =IF(OR(Item="",Qty=""),"",Qty*VLOOKUP(Item,Food,Database!P$1,FALSE)) ->  | V35: =IF(OR(Item="",Qty=""),"",Qty*VLOOKUP(Item,Food,Database!Q$1,FALSE)) ->  | W35: =IF(OR(Item="",Qty=""),"",Qty*VLOOKUP(Item,Food,Database!R$1,FALSE)) ->  | X35: =IF(OR(Item="",Qty=""),"",Qty*VLOOKUP(Item,Food,Database!S$1,FALSE)) -> 
H36: =IF(Item="","",VLOOKUP(Item,Food,Database!C$1,FALSE)) ->  | I36: =IF(OR(Item="",Qty=""),"",Qty*VLOOKUP(Item,Food,Database!D$1,FALSE)) ->  | J36: =IF(OR(Item="",Qty=""),"",Qty*VLOOKUP(Item,Food,Database!E$1,FALSE)) ->  | K36: =IF(OR(Item="",Qty=""),"",Qty*VLOOKUP(Item,Food,Database!F$1,FALSE)) ->  | L36: =IF(OR(Item="",Qty=""),"",Qty*VLOOKUP(Item,Food,Database!G$1,FALSE)) ->  | M36: =IF(OR(Item="",Qty=""),"",Qty*VLOOKUP(Item,Food,Database!H$1,FALSE)) ->  | N36: =IF(OR(Item="",Qty=""),"",Qty*VLOOKUP(Item,Food,Database!I$1,FALSE)) ->  | O36: =IF(OR(Item="",Qty=""),"",Qty*VLOOKUP(Item,Food,Database!J$1,FALSE)) ->  | P36: =IF(OR(Item="",Qty=""),"",Qty*VLOOKUP(Item,Food,Database!K$1,FALSE)) ->  | Q36: =IF(OR(Item="",Qty=""),"",Qty*VLOOKUP(Item,Food,Database!L$1,FALSE)) ->  | R36: =IF(OR(Item="",Qty=""),"",Qty*VLOOKUP(Item,Food,Database!M$1,FALSE)) ->  | S36: =IF(OR(Item="",Qty=""),"",Qty*VLOOKUP(Item,Food,Database!N$1,FALSE)) ->  | T36: =IF(OR(Item="",Qty=""),"",Qty*VLOOKUP(Item,Food,Database!O$1,FALSE)) ->  | U36: =IF(OR(Item="",Qty=""),"",Qty*VLOOKUP(Item,Food,Database!P$1,FALSE)) ->  | V36: =IF(OR(Item="",Qty=""),"",Qty*VLOOKUP(Item,Food,Database!Q$1,FALSE)) ->  | W36: =IF(OR(Item="",Qty=""),"",Qty*VLOOKUP(Item,Food,Database!R$1,FALSE)) ->  | X36: =IF(OR(Item="",Qty=""),"",Qty*VLOOKUP(Item,Food,Database!S$1,FALSE)) -> 
D37: TOTAL | I37: =IF(SUM(I27:I36)=0,"",SUM(I27:I36)) ->  | J37: =IF(SUM(J27:J36)=0,"",SUM(J27:J36)) -> 
D38: Percentage (in Calories) | K38: =IF(K37="","",(K37*9)/(K37*9+(S37-T37)*4+X37*4)) ->  | S38: =IF(S37="","",(S37-T37)*4/(K37*9+(S37-T37)*4+X37*4)) ->  | X38: =IF(X37="","",X37*4/(K37*9+(S37-T37)*4+X37*4)) -> 
B39: =B27+1 -> 2008-10-02 | C39: =VLOOKUP(WEEKDAY(B39,2),WkDay,2,FALSE) -> Thu | H39: =IF(Item="","",VLOOKUP(Item,Food,Database!C$1,FALSE)) ->  | I39: =IF(OR(Item="",Qty=""),"",Qty*VLOOKUP(Item,Food,Database!D$1,FALSE)) ->  | J39: =IF(OR(Item="",Qty=""),"",Qty*VLOOKUP(Item,Food,Database!E$1,FALSE)) ->  | K39: =IF(OR(Item="",Qty=""),"",Qty*VLOOKUP(Item,Food,Database!F$1,FALSE)) ->  | L39: =IF(OR(Item="",Qty=""),"",Qty*VLOOKUP(Item,Food,Database!G$1,FALSE)) ->  | M39: =IF(OR(Item="",Qty=""),"",Qty*VLOOKUP(Item,Food,Database!H$1,FALSE)) ->  | N39: =IF(OR(Item="",Qty=""),"",Qty*VLOOKUP(Item,Food,Database!I$1,FALSE)) ->  | O39: =IF(OR(Item="",Qty=""),"",Qty*VLOOKUP(Item,Food,Database!J$1,FALSE)) ->  | P39: =IF(OR(Item="",Qty=""),"",Qty*VLOOKUP(Item,Food,Database!K$1,FALSE)) ->  | Q39: =IF(OR(Item="",Qty=""),"",Qty*VLOOKUP(Item,Food,Database!L$1,FALSE)) ->  | R39: =IF(OR(Item="",Qty=""),"",Qty*VLOOKUP(Item,Food,Database!M$1,FALSE)) ->  | S39: =IF(OR(Item="",Qty=""),"",Qty*VLOOKUP(Item,Food,Database!N$1,FALSE)) ->  | T39: =IF(OR(Item="",Qty=""),"",Qty*VLOOKUP(Item,Food,Database!O$1,FALSE)) ->  | U39: =IF(OR(Item="",Qty=""),"",Qty*VLOOKUP(Item,Food,Database!P$1,FALSE)) ->  | V39: =IF(OR(Item="",Qty=""),"",Qty*VLOOKUP(Item,Food,Database!Q$1,FALSE)) ->  | W39: =IF(OR(Item="",Qty=""),"",Qty*VLOOKUP(Item,Food,Database!R$1,FALSE)) ->  | X39: =IF(OR(Item="",Qty=""),"",Qty*VLOOKUP(Item,Food,Database!S$1,FALSE)) -> 
H40: =IF(Item="","",VLOOKUP(Item,Food,Database!C$1,FALSE)) ->  | I40: =IF(OR(Item="",Qty=""),"",Qty*VLOOKUP(Item,Food,Database!D$1,FALSE)) ->  | J40: =IF(OR(Item="",Qty=""),"",Qty*VLOOKUP(Item,Food,Database!E$1,FALSE)) ->  | K40: =IF(OR(Item="",Qty=""),"",Qty*VLOOKUP(Item,Food,Database!F$1,FALSE)) ->  | L40: =IF(OR(Item="",Qty=""),"",Qty*VLOOKUP(Item,Food,Database!G$1,FALSE)) ->  | M40: =IF(OR(Item="",Qty=""),"",Qty*VLOOKUP(Item,Food,Database!H$1,FALSE)) ->  | N40: =IF(OR(Item="",Qty=""),"",Qty*VLOOKUP(Item,Food,Database!I$1,FALSE)) ->  | O40: =IF(OR(Item="",Qty=""),"",Qty*VLOOKUP(Item,Food,Database!J$1,FALSE)) ->  | P40: =IF(OR(Item="",Qty=""),"",Qty*VLOOKUP(Item,Food,Database!K$1,FALSE)) ->  | Q40: =IF(OR(Item="",Qty=""),"",Qty*VLOOKUP(Item,Food,Database!L$1,FALSE)) ->  | R40: =IF(OR(Item="",Qty=""),"",Qty*VLOOKUP(Item,Food,Database!M$1,FALSE)) ->  | S40: =IF(OR(Item="",Qty=""),"",Qty*VLOOKUP(Item,Food,Database!N$1,FALSE)) ->  | T40: =IF(OR(Item="",Qty=""),"",Qty*VLOOKUP(Item,Food,Database!O$1,FALSE)) ->  | U40: =IF(OR(Item="",Qty=""),"",Qty*VLOOKUP(Item,Food,Database!P$1,FALSE)) ->  | V40: =IF(OR(Item="",Qty=""),"",Qty*VLOOKUP(Item,Food,Database!Q$1,FALSE)) ->  | W40: =IF(OR(Item="",Qty=""),"",Qty*VLOOKUP(Item,Food,Database!R$1,FALSE)) ->  | X40: =IF(OR(Item="",Qty=""),"",Qty*VLOOKUP(Item,Food,Database!S$1,FALSE)) -> 
H41: =IF(Item="","",VLOOKUP(Item,Food,Database!C$1,FALSE)) ->  | I41: =IF(OR(Item="",Qty=""),"",Qty*VLOOKUP(Item,Food,Database!D$1,FALSE)) ->  | J41: =IF(OR(Item="",Qty=""),"",Qty*VLOOKUP(Item,Food,Database!E$1,FALSE)) ->  | K41: =IF(OR(Item="",Qty=""),"",Qty*VLOOKUP(Item,Food,Database!F$1,FALSE)) ->  | L41: =IF(OR(Item="",Qty=""),"",Qty*VLOOKUP(Item,Food,Database!G$1,FALSE)) ->  | M41: =IF(OR(Item="",Qty=""),"",Qty*VLOOKUP(Item,Food,Database!H$1,FALSE)) ->  | N41: =IF(OR(Item="",Qty=""),"",Qty*VLOOKUP(Item,Food,Database!I$1,FALSE)) ->  | O41: =IF(OR(Item="",Qty=""),"",Qty*VLOOKUP(Item,Food,Database!J$1,FALSE)) ->  | P41: =IF(OR(Item="",Qty=""),"",Qty*VLOOKUP(Item,Food,Database!K$1,FALSE)) ->  | Q41: =IF(OR(Item="",Qty=""),"",Qty*VLOOKUP(Item,Food,Database!L$1,FALSE)) ->  | R41: =IF(OR(Item="",Qty=""),"",Qty*VLOOKUP(Item,Food,Database!M$1,FALSE)) ->  | S41: =IF(OR(Item="",Qty=""),"",Qty*VLOOKUP(Item,Food,Database!N$1,FALSE)) ->  | T41: =IF(OR(Item="",Qty=""),"",Qty*VLOOKUP(Item,Food,Database!O$1,FALSE)) ->  | U41: =IF(OR(Item="",Qty=""),"",Qty*VLOOKUP(Item,Food,Database!P$1,FALSE)) ->  | V41: =IF(OR(Item="",Qty=""),"",Qty*VLOOKUP(Item,Food,Database!Q$1,FALSE)) ->  | W41: =IF(OR(Item="",Qty=""),"",Qty*VLOOKUP(Item,Food,Database!R$1,FALSE)) ->  | X41: =IF(OR(Item="",Qty=""),"",Qty*VLOOKUP(Item,Food,Database!S$1,FALSE)) -> 
H42: =IF(Item="","",VLOOKUP(Item,Food,Database!C$1,FALSE)) ->  | I42: =IF(OR(Item="",Qty=""),"",Qty*VLOOKUP(Item,Food,Database!D$1,FALSE)) ->  | J42: =IF(OR(Item="",Qty=""),"",Qty*VLOOKUP(Item,Food,Database!E$1,FALSE)) ->  | K42: =IF(OR(Item="",Qty=""),"",Qty*VLOOKUP(Item,Food,Database!F$1,FALSE)) ->  | L42: =IF(OR(Item="",Qty=""),"",Qty*VLOOKUP(Item,Food,Database!G$1,FALSE)) ->  | M42: =IF(OR(Item="",Qty=""),"",Qty*VLOOKUP(Item,Food,Database!H$1,FALSE)) ->  | N42: =IF(OR(Item="",Qty=""),"",Qty*VLOOKUP(Item,Food,Database!I$1,FALSE)) ->  | O42: =IF(OR(Item="",Qty=""),"",Qty*VLOOKUP(Item,Food,Database!J$1,FALSE)) ->  | P42: =IF(OR(Item="",Qty=""),"",Qty*VLOOKUP(Item,Food,Database!K$1,FALSE)) ->  | Q42: =IF(OR(Item="",Qty=""),"",Qty*VLOOKUP(Item,Food,Database!L$1,FALSE)) ->  | R42: =IF(OR(Item="",Qty=""),"",Qty*VLOOKUP(Item,Food,Database!M$1,FALSE)) ->  | S42: =IF(OR(Item="",Qty=""),"",Qty*VLOOKUP(Item,Food,Database!N$1,FALSE)) ->  | T42: =IF(OR(Item="",Qty=""),"",Qty*VLOOKUP(Item,Food,Database!O$1,FALSE)) ->  | U42: =IF(OR(Item="",Qty=""),"",Qty*VLOOKUP(Item,Food,Database!P$1,FALSE)) ->  | V42: =IF(OR(Item="",Qty=""),"",Qty*VLOOKUP(Item,Food,Database!Q$1,FALSE)) ->  | W42: =IF(OR(Item="",Qty=""),"",Qty*VLOOKUP(Item,Food,Database!R$1,FALSE)) ->  | X42: =IF(OR(Item="",Qty=""),"",Qty*VLOOKUP(Item,Food,Database!S$1,FALSE)) -> 
H43: =IF(Item="","",VLOOKUP(Item,Food,Database!C$1,FALSE)) ->  | I43: =IF(OR(Item="",Qty=""),"",Qty*VLOOKUP(Item,Food,Database!D$1,FALSE)) ->  | J43: =IF(OR(Item="",Qty=""),"",Qty*VLOOKUP(Item,Food,Database!E$1,FALSE)) ->  | K43: =IF(OR(Item="",Qty=""),"",Qty*VLOOKUP(Item,Food,Database!F$1,FALSE)) ->  | L43: =IF(OR(Item="",Qty=""),"",Qty*VLOOKUP(Item,Food,Database!G$1,FALSE)) ->  | M43: =IF(OR(Item="",Qty=""),"",Qty*VLOOKUP(Item,Food,Database!H$1,FALSE)) ->  | N43: =IF(OR(Item="",Qty=""),"",Qty*VLOOKUP(Item,Food,Database!I$1,FALSE)) ->  | O43: =IF(OR(Item="",Qty=""),"",Qty*VLOOKUP(Item,Food,Database!J$1,FALSE)) ->  | P43: =IF(OR(Item="",Qty=""),"",Qty*VLOOKUP(Item,Food,Database!K$1,FALSE)) ->  | Q43: =IF(OR(Item="",Qty=""),"",Qty*VLOOKUP(Item,Food,Database!L$1,FALSE)) ->  | R43: =IF(OR(Item="",Qty=""),"",Qty*VLOOKUP(Item,Food,Database!M$1,FALSE)) ->  | S43: =IF(OR(Item="",Qty=""),"",Qty*VLOOKUP(Item,Food,Database!N$1,FALSE)) ->  | T43: =IF(OR(Item="",Qty=""),"",Qty*VLOOKUP(Item,Food,Database!O$1,FALSE)) ->  | U43: =IF(OR(Item="",Qty=""),"",Qty*VLOOKUP(Item,Food,Database!P$1,FALSE)) ->  | V43: =IF(OR(Item="",Qty=""),"",Qty*VLOOKUP(Item,Food,Database!Q$1,FALSE)) ->  | W43: =IF(OR(Item="",Qty=""),"",Qty*VLOOKUP(Item,Food,Database!R$1,FALSE)) ->  | X43: =IF(OR(Item="",Qty=""),"",Qty*VLOOKUP(Item,Food,Database!S$1,FALSE)) -> 
H44: =IF(Item="","",VLOOKUP(Item,Food,Database!C$1,FALSE)) ->  | I44: =IF(OR(Item="",Qty=""),"",Qty*VLOOKUP(Item,Food,Database!D$1,FALSE)) ->  | J44: =IF(OR(Item="",Qty=""),"",Qty*VLOOKUP(Item,Food,Database!E$1,FALSE)) ->  | K44: =IF(OR(Item="",Qty=""),"",Qty*VLOOKUP(Item,Food,Database!F$1,FALSE)) ->  | L44: =IF(OR(Item="",Qty=""),"",Qty*VLOOKUP(Item,Food,Database!G$1,FALSE)) ->  | M44: =IF(OR(Item="",Qty=""),"",Qty*VLOOKUP(Item,Food,Database!H$1,FALSE)) ->  | N44: =IF(OR(Item="",Qty=""),"",Qty*VLOOKUP(Item,Food,Database!I$1,FALSE)) ->  | O44: =IF(OR(Item="",Qty=""),"",Qty*VLOOKUP(Item,Food,Database!J$1,FALSE)) ->  | P44: =IF(OR(Item="",Qty=""),"",Qty*VLOOKUP(Item,Food,Database!K$1,FALSE)) ->  | Q44: =IF(OR(Item="",Qty=""),"",Qty*VLOOKUP(Item,Food,Database!L$1,FALSE)) ->  | R44: =IF(OR(Item="",Qty=""),"",Qty*VLOOKUP(Item,Food,Database!M$1,FALSE)) ->  | S44: =IF(OR(Item="",Qty=""),"",Qty*VLOOKUP(Item,Food,Database!N$1,FALSE)) ->  | T44: =IF(OR(Item="",Qty=""),"",Qty*VLOOKUP(Item,Food,Database!O$1,FALSE)) ->  | U44: =IF(OR(Item="",Qty=""),"",Qty*VLOOKUP(Item,Food,Database!P$1,FALSE)) ->  | V44: =IF(OR(Item="",Qty=""),"",Qty*VLOOKUP(Item,Food,Database!Q$1,FALSE)) ->  | W44: =IF(OR(Item="",Qty=""),"",Qty*VLOOKUP(Item,Food,Database!R$1,FALSE)) ->  | X44: =IF(OR(Item="",Qty=""),"",Qty*VLOOKUP(Item,Food,Database!S$1,FALSE)) -> 
H45: =IF(Item="","",VLOOKUP(Item,Food,Database!C$1,FALSE)) ->  | I45: =IF(OR(Item="",Qty=""),"",Qty*VLOOKUP(Item,Food,Database!D$1,FALSE)) ->  | J45: =IF(OR(Item="",Qty=""),"",Qty*VLOOKUP(Item,Food,Database!E$1,FALSE)) ->  | K45: =IF(OR(Item="",Qty=""),"",Qty*VLOOKUP(Item,Food,Database!F$1,FALSE)) ->  | L45: =IF(OR(Item="",Qty=""),"",Qty*VLOOKUP(Item,Food,Database!G$1,FALSE)) ->  | M45: =IF(OR(Item="",Qty=""),"",Qty*VLOOKUP(Item,Food,Database!H$1,FALSE)) ->  | N45: =IF(OR(Item="",Qty=""),"",Qty*VLOOKUP(Item,Food,Database!I$1,FALSE)) ->  | O45: =IF(OR(Item="",Qty=""),"",Qty*VLOOKUP(Item,Food,Database!J$1,FALSE)) ->  | P45: =IF(OR(Item="",Qty=""),"",Qty*VLOOKUP(Item,Food,Database!K$1,FALSE)) ->  | Q45: =IF(OR(Item="",Qty=""),"",Qty*VLOOKUP(Item,Food,Database!L$1,FALSE)) ->  | R45: =IF(OR(Item="",Qty=""),"",Qty*VLOOKUP(Item,Food,Database!M$1,FALSE)) ->  | S45: =IF(OR(Item="",Qty=""),"",Qty*VLOOKUP(Item,Food,Database!N$1,FALSE)) ->  | T45: =IF(OR(Item="",Qty=""),"",Qty*VLOOKUP(Item,Food,Database!O$1,FALSE)) ->  | U45: =IF(OR(Item="",Qty=""),"",Qty*VLOOKUP(Item,Food,Database!P$1,FALSE)) ->  | V45: =IF(OR(Item="",Qty=""),"",Qty*VLOOKUP(Item,Food,Database!Q$1,FALSE)) ->  | W45: =IF(OR(Item="",Qty=""),"",Qty*VLOOKUP(Item,Food,Database!R$1,FALSE)) ->  | X45: =IF(OR(Item="",Qty=""),"",Qty*VLOOKUP(Item,Food,Database!S$1,FALSE)) -> 
H46: =IF(Item="","",VLOOKUP(Item,Food,Database!C$1,FALSE)) ->  | I46: =IF(OR(Item="",Qty=""),"",Qty*VLOOKUP(Item,Food,Database!D$1,FALSE)) ->  | J46: =IF(OR(Item="",Qty=""),"",Qty*VLOOKUP(Item,Food,Database!E$1,FALSE)) ->  | K46: =IF(OR(Item="",Qty=""),"",Qty*VLOOKUP(Item,Food,Database!F$1,FALSE)) ->  | L46: =IF(OR(Item="",Qty=""),"",Qty*VLOOKUP(Item,Food,Database!G$1,FALSE)) ->  | M46: =IF(OR(Item="",Qty=""),"",Qty*VLOOKUP(Item,Food,Database!H$1,FALSE)) ->  | N46: =IF(OR(Item="",Qty=""),"",Qty*VLOOKUP(Item,Food,Database!I$1,FALSE)) ->  | O46: =IF(OR(Item="",Qty=""),"",Qty*VLOOKUP(Item,Food,Database!J$1,FALSE)) ->  | P46: =IF(OR(Item="",Qty=""),"",Qty*VLOOKUP(Item,Food,Database!K$1,FALSE)) ->  | Q46: =IF(OR(Item="",Qty=""),"",Qty*VLOOKUP(Item,Food,Database!L$1,FALSE)) ->  | R46: =IF(OR(Item="",Qty=""),"",Qty*VLOOKUP(Item,Food,Database!M$1,FALSE)) ->  | S46: =IF(OR(Item="",Qty=""),"",Qty*VLOOKUP(Item,Food,Database!N$1,FALSE)) ->  | T46: =IF(OR(Item="",Qty=""),"",Qty*VLOOKUP(Item,Food,Database!O$1,FALSE)) ->  | U46: =IF(OR(Item="",Qty=""),"",Qty*VLOOKUP(Item,Food,Database!P$1,FALSE)) ->  | V46: =IF(OR(Item="",Qty=""),"",Qty*VLOOKUP(Item,Food,Database!Q$1,FALSE)) ->  | W46: =IF(OR(Item="",Qty=""),"",Qty*VLOOKUP(Item,Food,Database!R$1,FALSE)) ->  | X46: =IF(OR(Item="",Qty=""),"",Qty*VLOOKUP(Item,Food,Database!S$1,FALSE)) -> 
H47: =IF(Item="","",VLOOKUP(Item,Food,Database!C$1,FALSE)) ->  | I47: =IF(OR(Item="",Qty=""),"",Qty*VLOOKUP(Item,Food,Database!D$1,FALSE)) ->  | J47: =IF(OR(Item="",Qty=""),"",Qty*VLOOKUP(Item,Food,Database!E$1,FALSE)) ->  | K47: =IF(OR(Item="",Qty=""),"",Qty*VLOOKUP(Item,Food,Database!F$1,FALSE)) ->  | L47: =IF(OR(Item="",Qty=""),"",Qty*VLOOKUP(Item,Food,Database!G$1,FALSE)) ->  | M47: =IF(OR(Item="",Qty=""),"",Qty*VLOOKUP(Item,Food,Database!H$1,FALSE)) ->  | N47: =IF(OR(Item="",Qty=""),"",Qty*VLOOKUP(Item,Food,Database!I$1,FALSE)) ->  | O47: =IF(OR(Item="",Qty=""),"",Qty*VLOOKUP(Item,Food,Database!J$1,FALSE)) ->  | P47: =IF(OR(Item="",Qty=""),"",Qty*VLOOKUP(Item,Food,Database!K$1,FALSE)) ->  | Q47: =IF(OR(Item="",Qty=""),"",Qty*VLOOKUP(Item,Food,Database!L$1,FALSE)) ->  | R47: =IF(OR(Item="",Qty=""),"",Qty*VLOOKUP(Item,Food,Database!M$1,FALSE)) ->  | S47: =IF(OR(Item="",Qty=""),"",Qty*VLOOKUP(Item,Food,Database!N$1,FALSE)) ->  | T47: =IF(OR(Item="",Qty=""),"",Qty*VLOOKUP(Item,Food,Database!O$1,FALSE)) ->  | U47: =IF(OR(Item="",Qty=""),"",Qty*VLOOKUP(Item,Food,Database!P$1,FALSE)) ->  | V47: =IF(OR(Item="",Qty=""),"",Qty*VLOOKUP(Item,Food,Database!Q$1,FALSE)) ->  | W47: =IF(OR(Item="",Qty=""),"",Qty*VLOOKUP(Item,Food,Database!R$1,FALSE)) ->  | X47: =IF(OR(Item="",Qty=""),"",Qty*VLOOKUP(Item,Food,Database!S$1,FALSE)) -> 
H48: =IF(Item="","",VLOOKUP(Item,Food,Database!C$1,FALSE)) ->  | I48: =IF(OR(Item="",Qty=""),"",Qty*VLOOKUP(Item,Food,Database!D$1,FALSE)) ->  | J48: =IF(OR(Item="",Qty=""),"",Qty*VLOOKUP(Item,Food,Database!E$1,FALSE)) ->  | K48: =IF(OR(Item="",Qty=""),"",Qty*VLOOKUP(Item,Food,Database!F$1,FALSE)) ->  | L48: =IF(OR(Item="",Qty=""),"",Qty*VLOOKUP(Item,Food,Database!G$1,FALSE)) ->  | M48: =IF(OR(Item="",Qty=""),"",Qty*VLOOKUP(Item,Food,Database!H$1,FALSE)) ->  | N48: =IF(OR(Item="",Qty=""),"",Qty*VLOOKUP(Item,Food,Database!I$1,FALSE)) ->  | O48: =IF(OR(Item="",Qty=""),"",Qty*VLOOKUP(Item,Food,Database!J$1,FALSE)) ->  | P48: =IF(OR(Item="",Qty=""),"",Qty*VLOOKUP(Item,Food,Database!K$1,FALSE)) ->  | Q48: =IF(OR(Item="",Qty=""),"",Qty*VLOOKUP(Item,Food,Database!L$1,FALSE)) ->  | R48: =IF(OR(Item="",Qty=""),"",Qty*VLOOKUP(Item,Food,Database!M$1,FALSE)) ->  | S48: =IF(OR(Item="",Qty=""),"",Qty*VLOOKUP(Item,Food,Database!N$1,FALSE)) ->  | T48: =IF(OR(Item="",Qty=""),"",Qty*VLOOKUP(Item,Food,Database!O$1,FALSE)) ->  | U48: =IF(OR(Item="",Qty=""),"",Qty*VLOOKUP(Item,Food,Database!P$1,FALSE)) ->  | V48: =IF(OR(Item="",Qty=""),"",Qty*VLOOKUP(Item,Food,Database!Q$1,FALSE)) ->  | W48: =IF(OR(Item="",Qty=""),"",Qty*VLOOKUP(Item,Food,Database!R$1,FALSE)) ->  | X48: =IF(OR(Item="",Qty=""),"",Qty*VLOOKUP(Item,Food,Database!S$1,FALSE)) -> 
D49: TOTAL | I49: =IF(SUM(I39:I48)=0,"",SUM(I39:I48)) ->  | J49: =IF(SUM(J39:J48)=0,"",SUM(J39:J48)) -> 
D50: Percentage (in Calories) | K50: =IF(K49="","",(K49*9)/(K49*9+(S49-T49)*4+X49*4)) ->  | S50: =IF(S49="","",(S49-T49)*4/(K49*9+(S49-T49)*4+X49*4)) ->  | X50: =IF(X49="","",X49*4/(K49*9+(S49-T49)*4+X49*4)) -> 
B51: =B39+1 -> 2008-10-03 | C51: =VLOOKUP(WEEKDAY(B51,2),WkDay,2,FALSE) -> Fri | H51: =IF(Item="","",VLOOKUP(Item,Food,Database!C$1,FALSE)) ->  | I51: =IF(OR(Item="",Qty=""),"",Qty*VLOOKUP(Item,Food,Database!D$1,FALSE)) ->  | J51: =IF(OR(Item="",Qty=""),"",Qty*VLOOKUP(Item,Food,Database!E$1,FALSE)) ->  | K51: =IF(OR(Item="",Qty=""),"",Qty*VLOOKUP(Item,Food,Database!F$1,FALSE)) ->  | L51: =IF(OR(Item="",Qty=""),"",Qty*VLOOKUP(Item,Food,Database!G$1,FALSE)) ->  | M51: =IF(OR(Item="",Qty=""),"",Qty*VLOOKUP(Item,Food,Database!H$1,FALSE)) ->  | N51: =IF(OR(Item="",Qty=""),"",Qty*VLOOKUP(Item,Food,Database!I$1,FALSE)) ->  | O51: =IF(OR(Item="",Qty=""),"",Qty*VLOOKUP(Item,Food,Database!J$1,FALSE)) ->  | P51: =IF(OR(Item="",Qty=""),"",Qty*VLOOKUP(Item,Food,Database!K$1,FALSE)) ->  | Q51: =IF(OR(Item="",Qty=""),"",Qty*VLOOKUP(Item,Food,Database!L$1,FALSE)) ->  | R51: =IF(OR(Item="",Qty=""),"",Qty*VLOOKUP(Item,Food,Database!M$1,FALSE)) ->  | S51: =IF(OR(Item="",Qty=""),"",Qty*VLOOKUP(Item,Food,Database!N$1,FALSE)) ->  | T51: =IF(OR(Item="",Qty=""),"",Qty*VLOOKUP(Item,Food,Database!O$1,FALSE)) ->  | U51: =IF(OR(Item="",Qty=""),"",Qty*VLOOKUP(Item,Food,Database!P$1,FALSE)) ->  | V51: =IF(OR(Item="",Qty=""),"",Qty*VLOOKUP(Item,Food,Database!Q$1,FALSE)) ->  | W51: =IF(OR(Item="",Qty=""),"",Qty*VLOOKUP(Item,Food,Database!R$1,FALSE)) ->  | X51: =IF(OR(Item="",Qty=""),"",Qty*VLOOKUP(Item,Food,Database!S$1,FALSE)) -> 
H52: =IF(Item="","",VLOOKUP(Item,Food,Database!C$1,FALSE)) ->  | I52: =IF(OR(Item="",Qty=""),"",Qty*VLOOKUP(Item,Food,Database!D$1,FALSE)) ->  | J52: =IF(OR(Item="",Qty=""),"",Qty*VLOOKUP(Item,Food,Database!E$1,FALSE)) ->  | K52: =IF(OR(Item="",Qty=""),"",Qty*VLOOKUP(Item,Food,Database!F$1,FALSE)) ->  | L52: =IF(OR(Item="",Qty=""),"",Qty*VLOOKUP(Item,Food,Database!G$1,FALSE)) ->  | M52: =IF(OR(Item="",Qty=""),"",Qty*VLOOKUP(Item,Food,Database!H$1,FALSE)) ->  | N52: =IF(OR(Item="",Qty=""),"",Qty*VLOOKUP(Item,Food,Database!I$1,FALSE)) ->  | O52: =IF(OR(Item="",Qty=""),"",Qty*VLOOKUP(Item,Food,Database!J$1,FALSE)) ->  | P52: =IF(OR(Item="",Qty=""),"",Qty*VLOOKUP(Item,Food,Database!K$1,FALSE)) ->  | Q52: =IF(OR(Item="",Qty=""),"",Qty*VLOOKUP(Item,Food,Database!L$1,FALSE)) ->  | R52: =IF(OR(Item="",Qty=""),"",Qty*VLOOKUP(Item,Food,Database!M$1,FALSE)) ->  | S52: =IF(OR(Item="",Qty=""),"",Qty*VLOOKUP(Item,Food,Database!N$1,FALSE)) ->  | T52: =IF(OR(Item="",Qty=""),"",Qty*VLOOKUP(Item,Food,Database!O$1,FALSE)) ->  | U52: =IF(OR(Item="",Qty=""),"",Qty*VLOOKUP(Item,Food,Database!P$1,FALSE)) ->  | V52: =IF(OR(Item="",Qty=""),"",Qty*VLOOKUP(Item,Food,Database!Q$1,FALSE)) ->  | W52: =IF(OR(Item="",Qty=""),"",Qty*VLOOKUP(Item,Food,Database!R$1,FALSE)) ->  | X52: =IF(OR(Item="",Qty=""),"",Qty*VLOOKUP(Item,Food,Database!S$1,FALSE)) -> 
H53: =IF(Item="","",VLOOKUP(Item,Food,Database!C$1,FALSE)) ->  | I53: =IF(OR(Item="",Qty=""),"",Qty*VLOOKUP(Item,Food,Database!D$1,FALSE)) ->  | J53: =IF(OR(Item="",Qty=""),"",Qty*VLOOKUP(Item,Food,Database!E$1,FALSE)) ->  | K53: =IF(OR(Item="",Qty=""),"",Qty*VLOOKUP(Item,Food,Database!F$1,FALSE)) ->  | L53: =IF(OR(Item="",Qty=""),"",Qty*VLOOKUP(Item,Food,Database!G$1,FALSE)) ->  | M53: =IF(OR(Item="",Qty=""),"",Qty*VLOOKUP(Item,Food,Database!H$1,FALSE)) ->  | N53: =IF(OR(Item="",Qty=""),"",Qty*VLOOKUP(Item,Food,Database!I$1,FALSE)) ->  | O53: =IF(OR(Item="",Qty=""),"",Qty*VLOOKUP(Item,Food,Database!J$1,FALSE)) ->  | P53: =IF(OR(Item="",Qty=""),"",Qty*VLOOKUP(Item,Food,Database!K$1,FALSE)) ->  | Q53: =IF(OR(Item="",Qty=""),"",Qty*VLOOKUP(Item,Food,Database!L$1,FALSE)) ->  | R53: =IF(OR(Item="",Qty=""),"",Qty*VLOOKUP(Item,Food,Database!M$1,FALSE)) ->  | S53: =IF(OR(Item="",Qty=""),"",Qty*VLOOKUP(Item,Food,Database!N$1,FALSE)) ->  | T53: =IF(OR(Item="",Qty=""),"",Qty*VLOOKUP(Item,Food,Database!O$1,FALSE)) ->  | U53: =IF(OR(Item="",Qty=""),"",Qty*VLOOKUP(Item,Food,Database!P$1,FALSE)) ->  | V53: =IF(OR(Item="",Qty=""),"",Qty*VLOOKUP(Item,Food,Database!Q$1,FALSE)) ->  | W53: =IF(OR(Item="",Qty=""),"",Qty*VLOOKUP(Item,Food,Database!R$1,FALSE)) ->  | X53: =IF(OR(Item="",Qty=""),"",Qty*VLOOKUP(Item,Food,Database!S$1,FALSE)) -> 
H54: =IF(Item="","",VLOOKUP(Item,Food,Database!C$1,FALSE)) ->  | I54: =IF(OR(Item="",Qty=""),"",Qty*VLOOKUP(Item,Food,Database!D$1,FALSE)) ->  | J54: =IF(OR(Item="",Qty=""),"",Qty*VLOOKUP(Item,Food,Database!E$1,FALSE)) ->  | K54: =IF(OR(Item="",Qty=""),"",Qty*VLOOKUP(Item,Food,Database!F$1,FALSE)) ->  | L54: =IF(OR(Item="",Qty=""),"",Qty*VLOOKUP(Item,Food,Database!G$1,FALSE)) ->  | M54: =IF(OR(Item="",Qty=""),"",Qty*VLOOKUP(Item,Food,Database!H$1,FALSE)) ->  | N54: =IF(OR(Item="",Qty=""),"",Qty*VLOOKUP(Item,Food,Database!I$1,FALSE)) ->  | O54: =IF(OR(Item="",Qty=""),"",Qty*VLOOKUP(Item,Food,Database!J$1,FALSE)) ->  | P54: =IF(OR(Item="",Qty=""),"",Qty*VLOOKUP(Item,Food,Database!K$1,FALSE)) ->  | Q54: =IF(OR(Item="",Qty=""),"",Qty*VLOOKUP(Item,Food,Database!L$1,FALSE)) ->  | R54: =IF(OR(Item="",Qty=""),"",Qty*VLOOKUP(Item,Food,Database!M$1,FALSE)) ->  | S54: =IF(OR(Item="",Qty=""),"",Qty*VLOOKUP(Item,Food,Database!N$1,FALSE)) ->  | T54: =IF(OR(Item="",Qty=""),"",Qty*VLOOKUP(Item,Food,Database!O$1,FALSE)) ->  | U54: =IF(OR(Item="",Qty=""),"",Qty*VLOOKUP(Item,Food,Database!P$1,FALSE)) ->  | V54: =IF(OR(Item="",Qty=""),"",Qty*VLOOKUP(Item,Food,Database!Q$1,FALSE)) ->  | W54: =IF(OR(Item="",Qty=""),"",Qty*VLOOKUP(Item,Food,Database!R$1,FALSE)) ->  | X54: =IF(OR(Item="",Qty=""),"",Qty*VLOOKUP(Item,Food,Database!S$1,FALSE)) -> 
H55: =IF(Item="","",VLOOKUP(Item,Food,Database!C$1,FALSE)) ->  | I55: =IF(OR(Item="",Qty=""),"",Qty*VLOOKUP(Item,Food,Database!D$1,FALSE)) ->  | J55: =IF(OR(Item="",Qty=""),"",Qty*VLOOKUP(Item,Food,Database!E$1,FALSE)) ->  | K55: =IF(OR(Item="",Qty=""),"",Qty*VLOOKUP(Item,Food,Database!F$1,FALSE)) ->  | L55: =IF(OR(Item="",Qty=""),"",Qty*VLOOKUP(Item,Food,Database!G$1,FALSE)) ->  | M55: =IF(OR(Item="",Qty=""),"",Qty*VLOOKUP(Item,Food,Database!H$1,FALSE)) ->  | N55: =IF(OR(Item="",Qty=""),"",Qty*VLOOKUP(Item,Food,Database!I$1,FALSE)) ->  | O55: =IF(OR(Item="",Qty=""),"",Qty*VLOOKUP(Item,Food,Database!J$1,FALSE)) ->  | P55: =IF(OR(Item="",Qty=""),"",Qty*VLOOKUP(Item,Food,Database!K$1,FALSE)) ->  | Q55: =IF(OR(Item="",Qty=""),"",Qty*VLOOKUP(Item,Food,Database!L$1,FALSE)) ->  | R55: =IF(OR(Item="",Qty=""),"",Qty*VLOOKUP(Item,Food,Database!M$1,FALSE)) ->  | S55: =IF(OR(Item="",Qty=""),"",Qty*VLOOKUP(Item,Food,Database!N$1,FALSE)) ->  | T55: =IF(OR(Item="",Qty=""),"",Qty*VLOOKUP(Item,Food,Database!O$1,FALSE)) ->  | U55: =IF(OR(Item="",Qty=""),"",Qty*VLOOKUP(Item,Food,Database!P$1,FALSE)) ->  | V55: =IF(OR(Item="",Qty=""),"",Qty*VLOOKUP(Item,Food,Database!Q$1,FALSE)) ->  | W55: =IF(OR(Item="",Qty=""),"",Qty*VLOOKUP(Item,Food,Database!R$1,FALSE)) ->  | X55: =IF(OR(Item="",Qty=""),"",Qty*VLOOKUP(Item,Food,Database!S$1,FALSE)) -> 
H56: =IF(Item="","",VLOOKUP(Item,Food,Database!C$1,FALSE)) ->  | I56: =IF(OR(Item="",Qty=""),"",Qty*VLOOKUP(Item,Food,Database!D$1,FALSE)) ->  | J56: =IF(OR(Item="",Qty=""),"",Qty*VLOOKUP(Item,Food,Database!E$1,FALSE)) ->  | K56: =IF(OR(Item="",Qty=""),"",Qty*VLOOKUP(Item,Food,Database!F$1,FALSE)) ->  | L56: =IF(OR(Item="",Qty=""),"",Qty*VLOOKUP(Item,Food,Database!G$1,FALSE)) ->  | M56: =IF(OR(Item="",Qty=""),"",Qty*VLOOKUP(Item,Food,Database!H$1,FALSE)) ->  | N56: =IF(OR(Item="",Qty=""),"",Qty*VLOOKUP(Item,Food,Database!I$1,FALSE)) ->  | O56: =IF(OR(Item="",Qty=""),"",Qty*VLOOKUP(Item,Food,Database!J$1,FALSE)) ->  | P56: =IF(OR(Item="",Qty=""),"",Qty*VLOOKUP(Item,Food,Database!K$1,FALSE)) ->  | Q56: =IF(OR(Item="",Qty=""),"",Qty*VLOOKUP(Item,Food,Database!L$1,FALSE)) ->  | R56: =IF(OR(Item="",Qty=""),"",Qty*VLOOKUP(Item,Food,Database!M$1,FALSE)) ->  | S56: =IF(OR(Item="",Qty=""),"",Qty*VLOOKUP(Item,Food,Database!N$1,FALSE)) ->  | T56: =IF(OR(Item="",Qty=""),"",Qty*VLOOKUP(Item,Food,Database!O$1,FALSE)) ->  | U56: =IF(OR(Item="",Qty=""),"",Qty*VLOOKUP(Item,Food,Database!P$1,FALSE)) ->  | V56: =IF(OR(Item="",Qty=""),"",Qty*VLOOKUP(Item,Food,Database!Q$1,FALSE)) ->  | W56: =IF(OR(Item="",Qty=""),"",Qty*VLOOKUP(Item,Food,Database!R$1,FALSE)) ->  | X56: =IF(OR(Item="",Qty=""),"",Qty*VLOOKUP(Item,Food,Database!S$1,FALSE)) -> 
H57: =IF(Item="","",VLOOKUP(Item,Food,Database!C$1,FALSE)) ->  | I57: =IF(OR(Item="",Qty=""),"",Qty*VLOOKUP(Item,Food,Database!D$1,FALSE)) ->  | J57: =IF(OR(Item="",Qty=""),"",Qty*VLOOKUP(Item,Food,Database!E$1,FALSE)) ->  | K57: =IF(OR(Item="",Qty=""),"",Qty*VLOOKUP(Item,Food,Database!F$1,FALSE)) ->  | L57: =IF(OR(Item="",Qty=""),"",Qty*VLOOKUP(Item,Food,Database!G$1,FALSE)) ->  | M57: =IF(OR(Item="",Qty=""),"",Qty*VLOOKUP(Item,Food,Database!H$1,FALSE)) ->  | N57: =IF(OR(Item="",Qty=""),"",Qty*VLOOKUP(Item,Food,Database!I$1,FALSE)) ->  | O57: =IF(OR(Item="",Qty=""),"",Qty*VLOOKUP(Item,Food,Database!J$1,FALSE)) ->  | P57: =IF(OR(Item="",Qty=""),"",Qty*VLOOKUP(Item,Food,Database!K$1,FALSE)) ->  | Q57: =IF(OR(Item="",Qty=""),"",Qty*VLOOKUP(Item,Food,Database!L$1,FALSE)) ->  | R57: =IF(OR(Item="",Qty=""),"",Qty*VLOOKUP(Item,Food,Database!M$1,FALSE)) ->  | S57: =IF(OR(Item="",Qty=""),"",Qty*VLOOKUP(Item,Food,Database!N$1,FALSE)) ->  | T57: =IF(OR(Item="",Qty=""),"",Qty*VLOOKUP(Item,Food,Database!O$1,FALSE)) ->  | U57: =IF(OR(Item="",Qty=""),"",Qty*VLOOKUP(Item,Food,Database!P$1,FALSE)) ->  | V57: =IF(OR(Item="",Qty=""),"",Qty*VLOOKUP(Item,Food,Database!Q$1,FALSE)) ->  | W57: =IF(OR(Item="",Qty=""),"",Qty*VLOOKUP(Item,Food,Database!R$1,FALSE)) ->  | X57: =IF(OR(Item="",Qty=""),"",Qty*VLOOKUP(Item,Food,Database!S$1,FALSE)) -> 
H58: =IF(Item="","",VLOOKUP(Item,Food,Database!C$1,FALSE)) ->  | I58: =IF(OR(Item="",Qty=""),"",Qty*VLOOKUP(Item,Food,Database!D$1,FALSE)) ->  | J58: =IF(OR(Item="",Qty=""),"",Qty*VLOOKUP(Item,Food,Database!E$1,FALSE)) ->  | K58: =IF(OR(Item="",Qty=""),"",Qty*VLOOKUP(Item,Food,Database!F$1,FALSE)) ->  | L58: =IF(OR(Item="",Qty=""),"",Qty*VLOOKUP(Item,Food,Database!G$1,FALSE)) ->  | M58: =IF(OR(Item="",Qty=""),"",Qty*VLOOKUP(Item,Food,Database!H$1,FALSE)) ->  | N58: =IF(OR(Item="",Qty=""),"",Qty*VLOOKUP(Item,Food,Database!I$1,FALSE)) ->  | O58: =IF(OR(Item="",Qty=""),"",Qty*VLOOKUP(Item,Food,Database!J$1,FALSE)) ->  | P58: =IF(OR(Item="",Qty=""),"",Qty*VLOOKUP(Item,Food,Database!K$1,FALSE)) ->  | Q58: =IF(OR(Item="",Qty=""),"",Qty*VLOOKUP(Item,Food,Database!L$1,FALSE)) ->  | R58: =IF(OR(Item="",Qty=""),"",Qty*VLOOKUP(Item,Food,Database!M$1,FALSE)) ->  | S58: =IF(OR(Item="",Qty=""),"",Qty*VLOOKUP(Item,Food,Database!N$1,FALSE)) ->  | T58: =IF(OR(Item="",Qty=""),"",Qty*VLOOKUP(Item,Food,Database!O$1,FALSE)) ->  | U58: =IF(OR(Item="",Qty=""),"",Qty*VLOOKUP(Item,Food,Database!P$1,FALSE)) ->  | V58: =IF(OR(Item="",Qty=""),"",Qty*VLOOKUP(Item,Food,Database!Q$1,FALSE)) ->  | W58: =IF(OR(Item="",Qty=""),"",Qty*VLOOKUP(Item,Food,Database!R$1,FALSE)) ->  | X58: =IF(OR(Item="",Qty=""),"",Qty*VLOOKUP(Item,Food,Database!S$1,FALSE)) -> 
H59: =IF(Item="","",VLOOKUP(Item,Food,Database!C$1,FALSE)) ->  | I59: =IF(OR(Item="",Qty=""),"",Qty*VLOOKUP(Item,Food,Database!D$1,FALSE)) ->  | J59: =IF(OR(Item="",Qty=""),"",Qty*VLOOKUP(Item,Food,Database!E$1,FALSE)) ->  | K59: =IF(OR(Item="",Qty=""),"",Qty*VLOOKUP(Item,Food,Database!F$1,FALSE)) ->  | L59: =IF(OR(Item="",Qty=""),"",Qty*VLOOKUP(Item,Food,Database!G$1,FALSE)) ->  | M59: =IF(OR(Item="",Qty=""),"",Qty*VLOOKUP(Item,Food,Database!H$1,FALSE)) ->  | N59: =IF(OR(Item="",Qty=""),"",Qty*VLOOKUP(Item,Food,Database!I$1,FALSE)) ->  | O59: =IF(OR(Item="",Qty=""),"",Qty*VLOOKUP(Item,Food,Database!J$1,FALSE)) ->  | P59: =IF(OR(Item="",Qty=""),"",Qty*VLOOKUP(Item,Food,Database!K$1,FALSE)) ->  | Q59: =IF(OR(Item="",Qty=""),"",Qty*VLOOKUP(Item,Food,Database!L$1,FALSE)) ->  | R59: =IF(OR(Item="",Qty=""),"",Qty*VLOOKUP(Item,Food,Database!M$1,FALSE)) ->  | S59: =IF(OR(Item="",Qty=""),"",Qty*VLOOKUP(Item,Food,Database!N$1,FALSE)) ->  | T59: =IF(OR(Item="",Qty=""),"",Qty*VLOOKUP(Item,Food,Database!O$1,FALSE)) ->  | U59: =IF(OR(Item="",Qty=""),"",Qty*VLOOKUP(Item,Food,Database!P$1,FALSE)) ->  | V59: =IF(OR(Item="",Qty=""),"",Qty*VLOOKUP(Item,Food,Database!Q$1,FALSE)) ->  | W59: =IF(OR(Item="",Qty=""),"",Qty*VLOOKUP(Item,Food,Database!R$1,FALSE)) ->  | X59: =IF(OR(Item="",Qty=""),"",Qty*VLOOKUP(Item,Food,Database!S$1,FALSE)) -> 
H60: =IF(Item="","",VLOOKUP(Item,Food,Database!C$1,FALSE)) ->  | I60: =IF(OR(Item="",Qty=""),"",Qty*VLOOKUP(Item,Food,Database!D$1,FALSE)) ->  | J60: =IF(OR(Item="",Qty=""),"",Qty*VLOOKUP(Item,Food,Database!E$1,FALSE)) ->  | K60: =IF(OR(Item="",Qty=""),"",Qty*VLOOKUP(Item,Food,Database!F$1,FALSE)) ->  | L60: =IF(OR(Item="",Qty=""),"",Qty*VLOOKUP(Item,Food,Database!G$1,FALSE)) ->  | M60: =IF(OR(Item="",Qty=""),"",Qty*VLOOKUP(Item,Food,Database!H$1,FALSE)) ->  | N60: =IF(OR(Item="",Qty=""),"",Qty*VLOOKUP(Item,Food,Database!I$1,FALSE)) ->  | O60: =IF(OR(Item="",Qty=""),"",Qty*VLOOKUP(Item,Food,Database!J$1,FALSE)) ->  | P60: =IF(OR(Item="",Qty=""),"",Qty*VLOOKUP(Item,Food,Database!K$1,FALSE)) ->  | Q60: =IF(OR(Item="",Qty=""),"",Qty*VLOOKUP(Item,Food,Database!L$1,FALSE)) ->  | R60: =IF(OR(Item="",Qty=""),"",Qty*VLOOKUP(Item,Food,Database!M$1,FALSE)) ->  | S60: =IF(OR(Item="",Qty=""),"",Qty*VLOOKUP(Item,Food,Database!N$1,FALSE)) ->  | T60: =IF(OR(Item="",Qty=""),"",Qty*VLOOKUP(Item,Food,Database!O$1,FALSE)) ->  | U60: =IF(OR(Item="",Qty=""),"",Qty*VLOOKUP(Item,Food,Database!P$1,FALSE)) ->  | V60: =IF(OR(Item="",Qty=""),"",Qty*VLOOKUP(Item,Food,Database!Q$1,FALSE)) ->  | W60: =IF(OR(Item="",Qty=""),"",Qty*VLOOKUP(Item,Food,Database!R$1,FALSE)) ->  | X60: =IF(OR(Item="",Qty=""),"",Qty*VLOOKUP(Item,Food,Database!S$1,FALSE)) -> 
D61: TOTAL | I61: =IF(SUM(I51:I60)=0,"",SUM(I51:I60)) ->  | J61: =IF(SUM(J51:J60)=0,"",SUM(J51:J60)) -> 
D62: Percentage (in Calories) | K62: =IF(K61="","",(K61*9)/(K61*9+(S61-T61)*4+X61*4)) ->  | S62: =IF(S61="","",(S61-T61)*4/(K61*9+(S61-T61)*4+X61*4)) ->  | X62: =IF(X61="","",X61*4/(K61*9+(S61-T61)*4+X61*4)) -> 
B63: =B51+1 -> 2008-10-04 | C63: =VLOOKUP(WEEKDAY(B63,2),WkDay,2,FALSE) -> Sat | H63: =IF(Item="","",VLOOKUP(Item,Food,Database!C$1,FALSE)) ->  | I63: =IF(OR(Item="",Qty=""),"",Qty*VLOOKUP(Item,Food,Database!D$1,FALSE)) ->  | J63: =IF(OR(Item="",Qty=""),"",Qty*VLOOKUP(Item,Food,Database!E$1,FALSE)) ->  | K63: =IF(OR(Item="",Qty=""),"",Qty*VLOOKUP(Item,Food,Database!F$1,FALSE)) ->  | L63: =IF(OR(Item="",Qty=""),"",Qty*VLOOKUP(Item,Food,Database!G$1,FALSE)) ->  | M63: =IF(OR(Item="",Qty=""),"",Qty*VLOOKUP(Item,Food,Database!H$1,FALSE)) ->  | N63: =IF(OR(Item="",Qty=""),"",Qty*VLOOKUP(Item,Food,Database!I$1,FALSE)) ->  | O63: =IF(OR(Item="",Qty=""),"",Qty*VLOOKUP(Item,Food,Database!J$1,FALSE)) ->  | P63: =IF(OR(Item="",Qty=""),"",Qty*VLOOKUP(Item,Food,Database!K$1,FALSE)) ->  | Q63: =IF(OR(Item="",Qty=""),"",Qty*VLOOKUP(Item,Food,Database!L$1,FALSE)) ->  | R63: =IF(OR(Item="",Qty=""),"",Qty*VLOOKUP(Item,Food,Database!M$1,FALSE)) ->  | S63: =IF(OR(Item="",Qty=""),"",Qty*VLOOKUP(Item,Food,Database!N$1,FALSE)) ->  | T63: =IF(OR(Item="",Qty=""),"",Qty*VLOOKUP(Item,Food,Database!O$1,FALSE)) ->  | U63: =IF(OR(Item="",Qty=""),"",Qty*VLOOKUP(Item,Food,Database!P$1,FALSE)) ->  | V63: =IF(OR(Item="",Qty=""),"",Qty*VLOOKUP(Item,Food,Database!Q$1,FALSE)) ->  | W63: =IF(OR(Item="",Qty=""),"",Qty*VLOOKUP(Item,Food,Database!R$1,FALSE)) ->  | X63: =IF(OR(Item="",Qty=""),"",Qty*VLOOKUP(Item,Food,Database!S$1,FALSE)) -> 
H64: =IF(Item="","",VLOOKUP(Item,Food,Database!C$1,FALSE)) ->  | I64: =IF(OR(Item="",Qty=""),"",Qty*VLOOKUP(Item,Food,Database!D$1,FALSE)) ->  | J64: =IF(OR(Item="",Qty=""),"",Qty*VLOOKUP(Item,Food,Database!E$1,FALSE)) ->  | K64: =IF(OR(Item="",Qty=""),"",Qty*VLOOKUP(Item,Food,Database!F$1,FALSE)) ->  | L64: =IF(OR(Item="",Qty=""),"",Qty*VLOOKUP(Item,Food,Database!G$1,FALSE)) ->  | M64: =IF(OR(Item="",Qty=""),"",Qty*VLOOKUP(Item,Food,Database!H$1,FALSE)) ->  | N64: =IF(OR(Item="",Qty=""),"",Qty*VLOOKUP(Item,Food,Database!I$1,FALSE)) ->  | O64: =IF(OR(Item="",Qty=""),"",Qty*VLOOKUP(Item,Food,Database!J$1,FALSE)) ->  | P64: =IF(OR(Item="",Qty=""),"",Qty*VLOOKUP(Item,Food,Database!K$1,FALSE)) ->  | Q64: =IF(OR(Item="",Qty=""),"",Qty*VLOOKUP(Item,Food,Database!L$1,FALSE)) ->  | R64: =IF(OR(Item="",Qty=""),"",Qty*VLOOKUP(Item,Food,Database!M$1,FALSE)) ->  | S64: =IF(OR(Item="",Qty=""),"",Qty*VLOOKUP(Item,Food,Database!N$1,FALSE)) ->  | T64: =IF(OR(Item="",Qty=""),"",Qty*VLOOKUP(Item,Food,Database!O$1,FALSE)) ->  | U64: =IF(OR(Item="",Qty=""),"",Qty*VLOOKUP(Item,Food,Database!P$1,FALSE)) ->  | V64: =IF(OR(Item="",Qty=""),"",Qty*VLOOKUP(Item,Food,Database!Q$1,FALSE)) ->  | W64: =IF(OR(Item="",Qty=""),"",Qty*VLOOKUP(Item,Food,Database!R$1,FALSE)) ->  | X64: =IF(OR(Item="",Qty=""),"",Qty*VLOOKUP(Item,Food,Database!S$1,FALSE)) -> 
H65: =IF(Item="","",VLOOKUP(Item,Food,Database!C$1,FALSE)) ->  | I65: =IF(OR(Item="",Qty=""),"",Qty*VLOOKUP(Item,Food,Database!D$1,FALSE)) ->  | J65: =IF(OR(Item="",Qty=""),"",Qty*VLOOKUP(Item,Food,Database!E$1,FALSE)) ->  | K65: =IF(OR(Item="",Qty=""),"",Qty*VLOOKUP(Item,Food,Database!F$1,FALSE)) ->  | L65: =IF(OR(Item="",Qty=""),"",Qty*VLOOKUP(Item,Food,Database!G$1,FALSE)) ->  | M65: =IF(OR(Item="",Qty=""),"",Qty*VLOOKUP(Item,Food,Database!H$1,FALSE)) ->  | N65: =IF(OR(Item="",Qty=""),"",Qty*VLOOKUP(Item,Food,Database!I$1,FALSE)) ->  | O65: =IF(OR(Item="",Qty=""),"",Qty*VLOOKUP(Item,Food,Database!J$1,FALSE)) ->  | P65: =IF(OR(Item="",Qty=""),"",Qty*VLOOKUP(Item,Food,Database!K$1,FALSE)) ->  | Q65: =IF(OR(Item="",Qty=""),"",Qty*VLOOKUP(Item,Food,Database!L$1,FALSE)) ->  | R65: =IF(OR(Item="",Qty=""),"",Qty*VLOOKUP(Item,Food,Database!M$1,FALSE)) ->  | S65: =IF(OR(Item="",Qty=""),"",Qty*VLOOKUP(Item,Food,Database!N$1,FALSE)) ->  | T65: =IF(OR(Item="",Qty=""),"",Qty*VLOOKUP(Item,Food,Database!O$1,FALSE)) ->  | U65: =IF(OR(Item="",Qty=""),"",Qty*VLOOKUP(Item,Food,Database!P$1,FALSE)) ->  | V65: =IF(OR(Item="",Qty=""),"",Qty*VLOOKUP(Item,Food,Database!Q$1,FALSE)) ->  | W65: =IF(OR(Item="",Qty=""),"",Qty*VLOOKUP(Item,Food,Database!R$1,FALSE)) ->  | X65: =IF(OR(Item="",Qty=""),"",Qty*VLOOKUP(Item,Food,Database!S$1,FALSE)) -> 
H66: =IF(Item="","",VLOOKUP(Item,Food,Database!C$1,FALSE)) ->  | I66: =IF(OR(Item="",Qty=""),"",Qty*VLOOKUP(Item,Food,Database!D$1,FALSE)) ->  | J66: =IF(OR(Item="",Qty=""),"",Qty*VLOOKUP(Item,Food,Database!E$1,FALSE)) ->  | K66: =IF(OR(Item="",Qty=""),"",Qty*VLOOKUP(Item,Food,Database!F$1,FALSE)) ->  | L66: =IF(OR(Item="",Qty=""),"",Qty*VLOOKUP(Item,Food,Database!G$1,FALSE)) ->  | M66: =IF(OR(Item="",Qty=""),"",Qty*VLOOKUP(Item,Food,Database!H$1,FALSE)) ->  | N66: =IF(OR(Item="",Qty=""),"",Qty*VLOOKUP(Item,Food,Database!I$1,FALSE)) ->  | O66: =IF(OR(Item="",Qty=""),"",Qty*VLOOKUP(Item,Food,Database!J$1,FALSE)) ->  | P66: =IF(OR(Item="",Qty=""),"",Qty*VLOOKUP(Item,Food,Database!K$1,FALSE)) ->  | Q66: =IF(OR(Item="",Qty=""),"",Qty*VLOOKUP(Item,Food,Database!L$1,FALSE)) ->  | R66: =IF(OR(Item="",Qty=""),"",Qty*VLOOKUP(Item,Food,Database!M$1,FALSE)) ->  | S66: =IF(OR(Item="",Qty=""),"",Qty*VLOOKUP(Item,Food,Database!N$1,FALSE)) ->  | T66: =IF(OR(Item="",Qty=""),"",Qty*VLOOKUP(Item,Food,Database!O$1,FALSE)) ->  | U66: =IF(OR(Item="",Qty=""),"",Qty*VLOOKUP(Item,Food,Database!P$1,FALSE)) ->  | V66: =IF(OR(Item="",Qty=""),"",Qty*VLOOKUP(Item,Food,Database!Q$1,FALSE)) ->  | W66: =IF(OR(Item="",Qty=""),"",Qty*VLOOKUP(Item,Food,Database!R$1,FALSE)) ->  | X66: =IF(OR(Item="",Qty=""),"",Qty*VLOOKUP(Item,Food,Database!S$1,FALSE)) -> 
H67: =IF(Item="","",VLOOKUP(Item,Food,Database!C$1,FALSE)) ->  | I67: =IF(OR(Item="",Qty=""),"",Qty*VLOOKUP(Item,Food,Database!D$1,FALSE)) ->  | J67: =IF(OR(Item="",Qty=""),"",Qty*VLOOKUP(Item,Food,Database!E$1,FALSE)) ->  | K67: =IF(OR(Item="",Qty=""),"",Qty*VLOOKUP(Item,Food,Database!F$1,FALSE)) ->  | L67: =IF(OR(Item="",Qty=""),"",Qty*VLOOKUP(Item,Food,Database!G$1,FALSE)) ->  | M67: =IF(OR(Item="",Qty=""),"",Qty*VLOOKUP(Item,Food,Database!H$1,FALSE)) ->  | N67: =IF(OR(Item="",Qty=""),"",Qty*VLOOKUP(Item,Food,Database!I$1,FALSE)) ->  | O67: =IF(OR(Item="",Qty=""),"",Qty*VLOOKUP(Item,Food,Database!J$1,FALSE)) ->  | P67: =IF(OR(Item="",Qty=""),"",Qty*VLOOKUP(Item,Food,Database!K$1,FALSE)) ->  | Q67: =IF(OR(Item="",Qty=""),"",Qty*VLOOKUP(Item,Food,Database!L$1,FALSE)) ->  | R67: =IF(OR(Item="",Qty=""),"",Qty*VLOOKUP(Item,Food,Database!M$1,FALSE)) ->  | S67: =IF(OR(Item="",Qty=""),"",Qty*VLOOKUP(Item,Food,Database!N$1,FALSE)) ->  | T67: =IF(OR(Item="",Qty=""),"",Qty*VLOOKUP(Item,Food,Database!O$1,FALSE)) ->  | U67: =IF(OR(Item="",Qty=""),"",Qty*VLOOKUP(Item,Food,Database!P$1,FALSE)) ->  | V67: =IF(OR(Item="",Qty=""),"",Qty*VLOOKUP(Item,Food,Database!Q$1,FALSE)) ->  | W67: =IF(OR(Item="",Qty=""),"",Qty*VLOOKUP(Item,Food,Database!R$1,FALSE)) ->  | X67: =IF(OR(Item="",Qty=""),"",Qty*VLOOKUP(Item,Food,Database!S$1,FALSE)) -> 
H68: =IF(Item="","",VLOOKUP(Item,Food,Database!C$1,FALSE)) ->  | I68: =IF(OR(Item="",Qty=""),"",Qty*VLOOKUP(Item,Food,Database!D$1,FALSE)) ->  | J68: =IF(OR(Item="",Qty=""),"",Qty*VLOOKUP(Item,Food,Database!E$1,FALSE)) ->  | K68: =IF(OR(Item="",Qty=""),"",Qty*VLOOKUP(Item,Food,Database!F$1,FALSE)) ->  | L68: =IF(OR(Item="",Qty=""),"",Qty*VLOOKUP(Item,Food,Database!G$1,FALSE)) ->  | M68: =IF(OR(Item="",Qty=""),"",Qty*VLOOKUP(Item,Food,Database!H$1,FALSE)) ->  | N68: =IF(OR(Item="",Qty=""),"",Qty*VLOOKUP(Item,Food,Database!I$1,FALSE)) ->  | O68: =IF(OR(Item="",Qty=""),"",Qty*VLOOKUP(Item,Food,Database!J$1,FALSE)) ->  | P68: =IF(OR(Item="",Qty=""),"",Qty*VLOOKUP(Item,Food,Database!K$1,FALSE)) ->  | Q68: =IF(OR(Item="",Qty=""),"",Qty*VLOOKUP(Item,Food,Database!L$1,FALSE)) ->  | R68: =IF(OR(Item="",Qty=""),"",Qty*VLOOKUP(Item,Food,Database!M$1,FALSE)) ->  | S68: =IF(OR(Item="",Qty=""),"",Qty*VLOOKUP(Item,Food,Database!N$1,FALSE)) ->  | T68: =IF(OR(Item="",Qty=""),"",Qty*VLOOKUP(Item,Food,Database!O$1,FALSE)) ->  | U68: =IF(OR(Item="",Qty=""),"",Qty*VLOOKUP(Item,Food,Database!P$1,FALSE)) ->  | V68: =IF(OR(Item="",Qty=""),"",Qty*VLOOKUP(Item,Food,Database!Q$1,FALSE)) ->  | W68: =IF(OR(Item="",Qty=""),"",Qty*VLOOKUP(Item,Food,Database!R$1,FALSE)) ->  | X68: =IF(OR(Item="",Qty=""),"",Qty*VLOOKUP(Item,Food,Database!S$1,FALSE)) -> 
H69: =IF(Item="","",VLOOKUP(Item,Food,Database!C$1,FALSE)) ->  | I69: =IF(OR(Item="",Qty=""),"",Qty*VLOOKUP(Item,Food,Database!D$1,FALSE)) ->  | J69: =IF(OR(Item="",Qty=""),"",Qty*VLOOKUP(Item,Food,Database!E$1,FALSE)) ->  | K69: =IF(OR(Item="",Qty=""),"",Qty*VLOOKUP(Item,Food,Database!F$1,FALSE)) ->  | L69: =IF(OR(Item="",Qty=""),"",Qty*VLOOKUP(Item,Food,Database!G$1,FALSE)) ->  | M69: =IF(OR(Item="",Qty=""),"",Qty*VLOOKUP(Item,Food,Database!H$1,FALSE)) ->  | N69: =IF(OR(Item="",Qty=""),"",Qty*VLOOKUP(Item,Food,Database!I$1,FALSE)) ->  | O69: =IF(OR(Item="",Qty=""),"",Qty*VLOOKUP(Item,Food,Database!J$1,FALSE)) ->  | P69: =IF(OR(Item="",Qty=""),"",Qty*VLOOKUP(Item,Food,Database!K$1,FALSE)) ->  | Q69: =IF(OR(Item="",Qty=""),"",Qty*VLOOKUP(Item,Food,Database!L$1,FALSE)) ->  | R69: =IF(OR(Item="",Qty=""),"",Qty*VLOOKUP(Item,Food,Database!M$1,FALSE)) ->  | S69: =IF(OR(Item="",Qty=""),"",Qty*VLOOKUP(Item,Food,Database!N$1,FALSE)) ->  | T69: =IF(OR(Item="",Qty=""),"",Qty*VLOOKUP(Item,Food,Database!O$1,FALSE)) ->  | U69: =IF(OR(Item="",Qty=""),"",Qty*VLOOKUP(Item,Food,Database!P$1,FALSE)) ->  | V69: =IF(OR(Item="",Qty=""),"",Qty*VLOOKUP(Item,Food,Database!Q$1,FALSE)) ->  | W69: =IF(OR(Item="",Qty=""),"",Qty*VLOOKUP(Item,Food,Database!R$1,FALSE)) ->  | X69: =IF(OR(Item="",Qty=""),"",Qty*VLOOKUP(Item,Food,Database!S$1,FALSE)) -> 
H70: =IF(Item="","",VLOOKUP(Item,Food,Database!C$1,FALSE)) ->  | I70: =IF(OR(Item="",Qty=""),"",Qty*VLOOKUP(Item,Food,Database!D$1,FALSE)) ->  | J70: =IF(OR(Item="",Qty=""),"",Qty*VLOOKUP(Item,Food,Database!E$1,FALSE)) ->  | K70: =IF(OR(Item="",Qty=""),"",Qty*VLOOKUP(Item,Food,Database!F$1,FALSE)) ->  | L70: =IF(OR(Item="",Qty=""),"",Qty*VLOOKUP(Item,Food,Database!G$1,FALSE)) ->  | M70: =IF(OR(Item="",Qty=""),"",Qty*VLOOKUP(Item,Food,Database!H$1,FALSE)) ->  | N70: =IF(OR(Item="",Qty=""),"",Qty*VLOOKUP(Item,Food,Database!I$1,FALSE)) ->  | O70: =IF(OR(Item="",Qty=""),"",Qty*VLOOKUP(Item,Food,Database!J$1,FALSE)) ->  | P70: =IF(OR(Item="",Qty=""),"",Qty*VLOOKUP(Item,Food,Database!K$1,FALSE)) ->  | Q70: =IF(OR(Item="",Qty=""),"",Qty*VLOOKUP(Item,Food,Database!L$1,FALSE)) ->  | R70: =IF(OR(Item="",Qty=""),"",Qty*VLOOKUP(Item,Food,Database!M$1,FALSE)) ->  | S70: =IF(OR(Item="",Qty=""),"",Qty*VLOOKUP(Item,Food,Database!N$1,FALSE)) ->  | T70: =IF(OR(Item="",Qty=""),"",Qty*VLOOKUP(Item,Food,Database!O$1,FALSE)) ->  | U70: =IF(OR(Item="",Qty=""),"",Qty*VLOOKUP(Item,Food,Database!P$1,FALSE)) ->  | V70: =IF(OR(Item="",Qty=""),"",Qty*VLOOKUP(Item,Food,Database!Q$1,FALSE)) ->  | W70: =IF(OR(Item="",Qty=""),"",Qty*VLOOKUP(Item,Food,Database!R$1,FALSE)) ->  | X70: =IF(OR(Item="",Qty=""),"",Qty*VLOOKUP(Item,Food,Database!S$1,FALSE)) -> 
H71: =IF(Item="","",VLOOKUP(Item,Food,Database!C$1,FALSE)) ->  | I71: =IF(OR(Item="",Qty=""),"",Qty*VLOOKUP(Item,Food,Database!D$1,FALSE)) ->  | J71: =IF(OR(Item="",Qty=""),"",Qty*VLOOKUP(Item,Food,Database!E$1,FALSE)) ->  | K71: =IF(OR(Item="",Qty=""),"",Qty*VLOOKUP(Item,Food,Database!F$1,FALSE)) ->  | L71: =IF(OR(Item="",Qty=""),"",Qty*VLOOKUP(Item,Food,Database!G$1,FALSE)) ->  | M71: =IF(OR(Item="",Qty=""),"",Qty*VLOOKUP(Item,Food,Database!H$1,FALSE)) ->  | N71: =IF(OR(Item="",Qty=""),"",Qty*VLOOKUP(Item,Food,Database!I$1,FALSE)) ->  | O71: =IF(OR(Item="",Qty=""),"",Qty*VLOOKUP(Item,Food,Database!J$1,FALSE)) ->  | P71: =IF(OR(Item="",Qty=""),"",Qty*VLOOKUP(Item,Food,Database!K$1,FALSE)) ->  | Q71: =IF(OR(Item="",Qty=""),"",Qty*VLOOKUP(Item,Food,Database!L$1,FALSE)) ->  | R71: =IF(OR(Item="",Qty=""),"",Qty*VLOOKUP(Item,Food,Database!M$1,FALSE)) ->  | S71: =IF(OR(Item="",Qty=""),"",Qty*VLOOKUP(Item,Food,Database!N$1,FALSE)) ->  | T71: =IF(OR(Item="",Qty=""),"",Qty*VLOOKUP(Item,Food,Database!O$1,FALSE)) ->  | U71: =IF(OR(Item="",Qty=""),"",Qty*VLOOKUP(Item,Food,Database!P$1,FALSE)) ->  | V71: =IF(OR(Item="",Qty=""),"",Qty*VLOOKUP(Item,Food,Database!Q$1,FALSE)) ->  | W71: =IF(OR(Item="",Qty=""),"",Qty*VLOOKUP(Item,Food,Database!R$1,FALSE)) ->  | X71: =IF(OR(Item="",Qty=""),"",Qty*VLOOKUP(Item,Food,Database!S$1,FALSE)) -> 
H72: =IF(Item="","",VLOOKUP(Item,Food,Database!C$1,FALSE)) ->  | I72: =IF(OR(Item="",Qty=""),"",Qty*VLOOKUP(Item,Food,Database!D$1,FALSE)) ->  | J72: =IF(OR(Item="",Qty=""),"",Qty*VLOOKUP(Item,Food,Database!E$1,FALSE)) ->  | K72: =IF(OR(Item="",Qty=""),"",Qty*VLOOKUP(Item,Food,Database!F$1,FALSE)) ->  | L72: =IF(OR(Item="",Qty=""),"",Qty*VLOOKUP(Item,Food,Database!G$1,FALSE)) ->  | M72: =IF(OR(Item="",Qty=""),"",Qty*VLOOKUP(Item,Food,Database!H$1,FALSE)) ->  | N72: =IF(OR(Item="",Qty=""),"",Qty*VLOOKUP(Item,Food,Database!I$1,FALSE)) ->  | O72: =IF(OR(Item="",Qty=""),"",Qty*VLOOKUP(Item,Food,Database!J$1,FALSE)) ->  | P72: =IF(OR(Item="",Qty=""),"",Qty*VLOOKUP(Item,Food,Database!K$1,FALSE)) ->  | Q72: =IF(OR(Item="",Qty=""),"",Qty*VLOOKUP(Item,Food,Database!L$1,FALSE)) ->  | R72: =IF(OR(Item="",Qty=""),"",Qty*VLOOKUP(Item,Food,Database!M$1,FALSE)) ->  | S72: =IF(OR(Item="",Qty=""),"",Qty*VLOOKUP(Item,Food,Database!N$1,FALSE)) ->  | T72: =IF(OR(Item="",Qty=""),"",Qty*VLOOKUP(Item,Food,Database!O$1,FALSE)) ->  | U72: =IF(OR(Item="",Qty=""),"",Qty*VLOOKUP(Item,Food,Database!P$1,FALSE)) ->  | V72: =IF(OR(Item="",Qty=""),"",Qty*VLOOKUP(Item,Food,Database!Q$1,FALSE)) ->  | W72: =IF(OR(Item="",Qty=""),"",Qty*VLOOKUP(Item,Food,Database!R$1,FALSE)) ->  | X72: =IF(OR(Item="",Qty=""),"",Qty*VLOOKUP(Item,Food,Database!S$1,FALSE)) -> 
D73: TOTAL | I73: =IF(SUM(I63:I72)=0,"",SUM(I63:I72)) ->  | J73: =IF(SUM(J63:J72)=0,"",SUM(J63:J72)) -> 
D74: Percentage (in Calories) | K74: =IF(K73="","",(K73*9)/(K73*9+(S73-T73)*4+X73*4)) ->  | S74: =IF(S73="","",(S73-T73)*4/(K73*9+(S73-T73)*4+X73*4)) ->  | X74: =IF(X73="","",X73*4/(K73*9+(S73-T73)*4+X73*4)) -> 
B75: =B63+1 -> 2008-10-05 | C75: =VLOOKUP(WEEKDAY(B75,2),WkDay,2,FALSE) -> Sun | H75: =IF(Item="","",VLOOKUP(Item,Food,Database!C$1,FALSE)) ->  | I75: =IF(OR(Item="",Qty=""),"",Qty*VLOOKUP(Item,Food,Database!D$1,FALSE)) ->  | J75: =IF(OR(Item="",Qty=""),"",Qty*VLOOKUP(Item,Food,Database!E$1,FALSE)) ->  | K75: =IF(OR(Item="",Qty=""),"",Qty*VLOOKUP(Item,Food,Database!F$1,FALSE)) ->  | L75: =IF(OR(Item="",Qty=""),"",Qty*VLOOKUP(Item,Food,Database!G$1,FALSE)) ->  | M75: =IF(OR(Item="",Qty=""),"",Qty*VLOOKUP(Item,Food,Database!H$1,FALSE)) ->  | N75: =IF(OR(Item="",Qty=""),"",Qty*VLOOKUP(Item,Food,Database!I$1,FALSE)) ->  | O75: =IF(OR(Item="",Qty=""),"",Qty*VLOOKUP(Item,Food,Database!J$1,FALSE)) ->  | P75: =IF(OR(Item="",Qty=""),"",Qty*VLOOKUP(Item,Food,Database!K$1,FALSE)) ->  | Q75: =IF(OR(Item="",Qty=""),"",Qty*VLOOKUP(Item,Food,Database!L$1,FALSE)) ->  | R75: =IF(OR(Item="",Qty=""),"",Qty*VLOOKUP(Item,Food,Database!M$1,FALSE)) ->  | S75: =IF(OR(Item="",Qty=""),"",Qty*VLOOKUP(Item,Food,Database!N$1,FALSE)) ->  | T75: =IF(OR(Item="",Qty=""),"",Qty*VLOOKUP(Item,Food,Database!O$1,FALSE)) ->  | U75: =IF(OR(Item="",Qty=""),"",Qty*VLOOKUP(Item,Food,Database!P$1,FALSE)) ->  | V75: =IF(OR(Item="",Qty=""),"",Qty*VLOOKUP(Item,Food,Database!Q$1,FALSE)) ->  | W75: =IF(OR(Item="",Qty=""),"",Qty*VLOOKUP(Item,Food,Database!R$1,FALSE)) ->  | X75: =IF(OR(Item="",Qty=""),"",Qty*VLOOKUP(Item,Food,Database!S$1,FALSE)) -> 
H76: =IF(Item="","",VLOOKUP(Item,Food,Database!C$1,FALSE)) ->  | I76: =IF(OR(Item="",Qty=""),"",Qty*VLOOKUP(Item,Food,Database!D$1,FALSE)) ->  | J76: =IF(OR(Item="",Qty=""),"",Qty*VLOOKUP(Item,Food,Database!E$1,FALSE)) ->  | K76: =IF(OR(Item="",Qty=""),"",Qty*VLOOKUP(Item,Food,Database!F$1,FALSE)) ->  | L76: =IF(OR(Item="",Qty=""),"",Qty*VLOOKUP(Item,Food,Database!G$1,FALSE)) ->  | M76: =IF(OR(Item="",Qty=""),"",Qty*VLOOKUP(Item,Food,Database!H$1,FALSE)) ->  | N76: =IF(OR(Item="",Qty=""),"",Qty*VLOOKUP(Item,Food,Database!I$1,FALSE)) ->  | O76: =IF(OR(Item="",Qty=""),"",Qty*VLOOKUP(Item,Food,Database!J$1,FALSE)) ->  | P76: =IF(OR(Item="",Qty=""),"",Qty*VLOOKUP(Item,Food,Database!K$1,FALSE)) ->  | Q76: =IF(OR(Item="",Qty=""),"",Qty*VLOOKUP(Item,Food,Database!L$1,FALSE)) ->  | R76: =IF(OR(Item="",Qty=""),"",Qty*VLOOKUP(Item,Food,Database!M$1,FALSE)) ->  | S76: =IF(OR(Item="",Qty=""),"",Qty*VLOOKUP(Item,Food,Database!N$1,FALSE)) ->  | T76: =IF(OR(Item="",Qty=""),"",Qty*VLOOKUP(Item,Food,Database!O$1,FALSE)) ->  | U76: =IF(OR(Item="",Qty=""),"",Qty*VLOOKUP(Item,Food,Database!P$1,FALSE)) ->  | V76: =IF(OR(Item="",Qty=""),"",Qty*VLOOKUP(Item,Food,Database!Q$1,FALSE)) ->  | W76: =IF(OR(Item="",Qty=""),"",Qty*VLOOKUP(Item,Food,Database!R$1,FALSE)) ->  | X76: =IF(OR(Item="",Qty=""),"",Qty*VLOOKUP(Item,Food,Database!S$1,FALSE)) -> 
H77: =IF(Item="","",VLOOKUP(Item,Food,Database!C$1,FALSE)) ->  | I77: =IF(OR(Item="",Qty=""),"",Qty*VLOOKUP(Item,Food,Database!D$1,FALSE)) ->  | J77: =IF(OR(Item="",Qty=""),"",Qty*VLOOKUP(Item,Food,Database!E$1,FALSE)) ->  | K77: =IF(OR(Item="",Qty=""),"",Qty*VLOOKUP(Item,Food,Database!F$1,FALSE)) ->  | L77: =IF(OR(Item="",Qty=""),"",Qty*VLOOKUP(Item,Food,Database!G$1,FALSE)) ->  | M77: =IF(OR(Item="",Qty=""),"",Qty*VLOOKUP(Item,Food,Database!H$1,FALSE)) ->  | N77: =IF(OR(Item="",Qty=""),"",Qty*VLOOKUP(Item,Food,Database!I$1,FALSE)) ->  | O77: =IF(OR(Item="",Qty=""),"",Qty*VLOOKUP(Item,Food,Database!J$1,FALSE)) ->  | P77: =IF(OR(Item="",Qty=""),"",Qty*VLOOKUP(Item,Food,Database!K$1,FALSE)) ->  | Q77: =IF(OR(Item="",Qty=""),"",Qty*VLOOKUP(Item,Food,Database!L$1,FALSE)) ->  | R77: =IF(OR(Item="",Qty=""),"",Qty*VLOOKUP(Item,Food,Database!M$1,FALSE)) ->  | S77: =IF(OR(Item="",Qty=""),"",Qty*VLOOKUP(Item,Food,Database!N$1,FALSE)) ->  | T77: =IF(OR(Item="",Qty=""),"",Qty*VLOOKUP(Item,Food,Database!O$1,FALSE)) ->  | U77: =IF(OR(Item="",Qty=""),"",Qty*VLOOKUP(Item,Food,Database!P$1,FALSE)) ->  | V77: =IF(OR(Item="",Qty=""),"",Qty*VLOOKUP(Item,Food,Database!Q$1,FALSE)) ->  | W77: =IF(OR(Item="",Qty=""),"",Qty*VLOOKUP(Item,Food,Database!R$1,FALSE)) ->  | X77: =IF(OR(Item="",Qty=""),"",Qty*VLOOKUP(Item,Food,Database!S$1,FALSE)) -> 
H78: =IF(Item="","",VLOOKUP(Item,Food,Database!C$1,FALSE)) ->  | I78: =IF(OR(Item="",Qty=""),"",Qty*VLOOKUP(Item,Food,Database!D$1,FALSE)) ->  | J78: =IF(OR(Item="",Qty=""),"",Qty*VLOOKUP(Item,Food,Database!E$1,FALSE)) ->  | K78: =IF(OR(Item="",Qty=""),"",Qty*VLOOKUP(Item,Food,Database!F$1,FALSE)) ->  | L78: =IF(OR(Item="",Qty=""),"",Qty*VLOOKUP(Item,Food,Database!G$1,FALSE)) ->  | M78: =IF(OR(Item="",Qty=""),"",Qty*VLOOKUP(Item,Food,Database!H$1,FALSE)) ->  | N78: =IF(OR(Item="",Qty=""),"",Qty*VLOOKUP(Item,Food,Database!I$1,FALSE)) ->  | O78: =IF(OR(Item="",Qty=""),"",Qty*VLOOKUP(Item,Food,Database!J$1,FALSE)) ->  | P78: =IF(OR(Item="",Qty=""),"",Qty*VLOOKUP(Item,Food,Database!K$1,FALSE)) ->  | Q78: =IF(OR(Item="",Qty=""),"",Qty*VLOOKUP(Item,Food,Database!L$1,FALSE)) ->  | R78: =IF(OR(Item="",Qty=""),"",Qty*VLOOKUP(Item,Food,Database!M$1,FALSE)) ->  | S78: =IF(OR(Item="",Qty=""),"",Qty*VLOOKUP(Item,Food,Database!N$1,FALSE)) ->  | T78: =IF(OR(Item="",Qty=""),"",Qty*VLOOKUP(Item,Food,Database!O$1,FALSE)) ->  | U78: =IF(OR(Item="",Qty=""),"",Qty*VLOOKUP(Item,Food,Database!P$1,FALSE)) ->  | V78: =IF(OR(Item="",Qty=""),"",Qty*VLOOKUP(Item,Food,Database!Q$1,FALSE)) ->  | W78: =IF(OR(Item="",Qty=""),"",Qty*VLOOKUP(Item,Food,Database!R$1,FALSE)) ->  | X78: =IF(OR(Item="",Qty=""),"",Qty*VLOOKUP(Item,Food,Database!S$1,FALSE)) -> 
H79: =IF(Item="","",VLOOKUP(Item,Food,Database!C$1,FALSE)) ->  | I79: =IF(OR(Item="",Qty=""),"",Qty*VLOOKUP(Item,Food,Database!D$1,FALSE)) ->  | J79: =IF(OR(Item="",Qty=""),"",Qty*VLOOKUP(Item,Food,Database!E$1,FALSE)) ->  | K79: =IF(OR(Item="",Qty=""),"",Qty*VLOOKUP(Item,Food,Database!F$1,FALSE)) ->  | L79: =IF(OR(Item="",Qty=""),"",Qty*VLOOKUP(Item,Food,Database!G$1,FALSE)) ->  | M79: =IF(OR(Item="",Qty=""),"",Qty*VLOOKUP(Item,Food,Database!H$1,FALSE)) ->  | N79: =IF(OR(Item="",Qty=""),"",Qty*VLOOKUP(Item,Food,Database!I$1,FALSE)) ->  | O79: =IF(OR(Item="",Qty=""),"",Qty*VLOOKUP(Item,Food,Database!J$1,FALSE)) ->  | P79: =IF(OR(Item="",Qty=""),"",Qty*VLOOKUP(Item,Food,Database!K$1,FALSE)) ->  | Q79: =IF(OR(Item="",Qty=""),"",Qty*VLOOKUP(Item,Food,Database!L$1,FALSE)) ->  | R79: =IF(OR(Item="",Qty=""),"",Qty*VLOOKUP(Item,Food,Database!M$1,FALSE)) ->  | S79: =IF(OR(Item="",Qty=""),"",Qty*VLOOKUP(Item,Food,Database!N$1,FALSE)) ->  | T79: =IF(OR(Item="",Qty=""),"",Qty*VLOOKUP(Item,Food,Database!O$1,FALSE)) ->  | U79: =IF(OR(Item="",Qty=""),"",Qty*VLOOKUP(Item,Food,Database!P$1,FALSE)) ->  | V79: =IF(OR(Item="",Qty=""),"",Qty*VLOOKUP(Item,Food,Database!Q$1,FALSE)) ->  | W79: =IF(OR(Item="",Qty=""),"",Qty*VLOOKUP(Item,Food,Database!R$1,FALSE)) ->  | X79: =IF(OR(Item="",Qty=""),"",Qty*VLOOKUP(Item,Food,Database!S$1,FALSE)) -> 
H80: =IF(Item="","",VLOOKUP(Item,Food,Database!C$1,FALSE)) ->  | I80: =IF(OR(Item="",Qty=""),"",Qty*VLOOKUP(Item,Food,Database!D$1,FALSE)) ->  | J80: =IF(OR(Item="",Qty=""),"",Qty*VLOOKUP(Item,Food,Database!E$1,FALSE)) ->  | K80: =IF(OR(Item="",Qty=""),"",Qty*VLOOKUP(Item,Food,Database!F$1,FALSE)) ->  | L80: =IF(OR(Item="",Qty=""),"",Qty*VLOOKUP(Item,Food,Database!G$1,FALSE)) ->  | M80: =IF(OR(Item="",Qty=""),"",Qty*VLOOKUP(Item,Food,Database!H$1,FALSE)) ->  | N80: =IF(OR(Item="",Qty=""),"",Qty*VLOOKUP(Item,Food,Database!I$1,FALSE)) ->  | O80: =IF(OR(Item="",Qty=""),"",Qty*VLOOKUP(Item,Food,Database!J$1,FALSE)) ->  | P80: =IF(OR(Item="",Qty=""),"",Qty*VLOOKUP(Item,Food,Database!K$1,FALSE)) ->  | Q80: =IF(OR(Item="",Qty=""),"",Qty*VLOOKUP(Item,Food,Database!L$1,FALSE)) ->  | R80: =IF(OR(Item="",Qty=""),"",Qty*VLOOKUP(Item,Food,Database!M$1,FALSE)) ->  | S80: =IF(OR(Item="",Qty=""),"",Qty*VLOOKUP(Item,Food,Database!N$1,FALSE)) ->  | T80: =IF(OR(Item="",Qty=""),"",Qty*VLOOKUP(Item,Food,Database!O$1,FALSE)) ->  | U80: =IF(OR(Item="",Qty=""),"",Qty*VLOOKUP(Item,Food,Database!P$1,FALSE)) ->  | V80: =IF(OR(Item="",Qty=""),"",Qty*VLOOKUP(Item,Food,Database!Q$1,FALSE)) ->  | W80: =IF(OR(Item="",Qty=""),"",Qty*VLOOKUP(Item,Food,Database!R$1,FALSE)) ->  | X80: =IF(OR(Item="",Qty=""),"",Qty*VLOOKUP(Item,Food,Database!S$1,FALSE)) -> 
H81: =IF(Item="","",VLOOKUP(Item,Food,Database!C$1,FALSE)) ->  | I81: =IF(OR(Item="",Qty=""),"",Qty*VLOOKUP(Item,Food,Database!D$1,FALSE)) ->  | J81: =IF(OR(Item="",Qty=""),"",Qty*VLOOKUP(Item,Food,Database!E$1,FALSE)) ->  | K81: =IF(OR(Item="",Qty=""),"",Qty*VLOOKUP(Item,Food,Database!F$1,FALSE)) ->  | L81: =IF(OR(Item="",Qty=""),"",Qty*VLOOKUP(Item,Food,Database!G$1,FALSE)) ->  | M81: =IF(OR(Item="",Qty=""),"",Qty*VLOOKUP(Item,Food,Database!H$1,FALSE)) ->  | N81: =IF(OR(Item="",Qty=""),"",Qty*VLOOKUP(Item,Food,Database!I$1,FALSE)) ->  | O81: =IF(OR(Item="",Qty=""),"",Qty*VLOOKUP(Item,Food,Database!J$1,FALSE)) ->  | P81: =IF(OR(Item="",Qty=""),"",Qty*VLOOKUP(Item,Food,Database!K$1,FALSE)) ->  | Q81: =IF(OR(Item="",Qty=""),"",Qty*VLOOKUP(Item,Food,Database!L$1,FALSE)) ->  | R81: =IF(OR(Item="",Qty=""),"",Qty*VLOOKUP(Item,Food,Database!M$1,FALSE)) ->  | S81: =IF(OR(Item="",Qty=""),"",Qty*VLOOKUP(Item,Food,Database!N$1,FALSE)) ->  | T81: =IF(OR(Item="",Qty=""),"",Qty*VLOOKUP(Item,Food,Database!O$1,FALSE)) ->  | U81: =IF(OR(Item="",Qty=""),"",Qty*VLOOKUP(Item,Food,Database!P$1,FALSE)) ->  | V81: =IF(OR(Item="",Qty=""),"",Qty*VLOOKUP(Item,Food,Database!Q$1,FALSE)) ->  | W81: =IF(OR(Item="",Qty=""),"",Qty*VLOOKUP(Item,Food,Database!R$1,FALSE)) ->  | X81: =IF(OR(Item="",Qty=""),"",Qty*VLOOKUP(Item,Food,Database!S$1,FALSE)) -> 
H82: =IF(Item="","",VLOOKUP(Item,Food,Database!C$1,FALSE)) ->  | I82: =IF(OR(Item="",Qty=""),"",Qty*VLOOKUP(Item,Food,Database!D$1,FALSE)) ->  | J82: =IF(OR(Item="",Qty=""),"",Qty*VLOOKUP(Item,Food,Database!E$1,FALSE)) ->  | K82: =IF(OR(Item="",Qty=""),"",Qty*VLOOKUP(Item,Food,Database!F$1,FALSE)) ->  | L82: =IF(OR(Item="",Qty=""),"",Qty*VLOOKUP(Item,Food,Database!G$1,FALSE)) ->  | M82: =IF(OR(Item="",Qty=""),"",Qty*VLOOKUP(Item,Food,Database!H$1,FALSE)) ->  | N82: =IF(OR(Item="",Qty=""),"",Qty*VLOOKUP(Item,Food,Database!I$1,FALSE)) ->  | O82: =IF(OR(Item="",Qty=""),"",Qty*VLOOKUP(Item,Food,Database!J$1,FALSE)) ->  | P82: =IF(OR(Item="",Qty=""),"",Qty*VLOOKUP(Item,Food,Database!K$1,FALSE)) ->  | Q82: =IF(OR(Item="",Qty=""),"",Qty*VLOOKUP(Item,Food,Database!L$1,FALSE)) ->  | R82: =IF(OR(Item="",Qty=""),"",Qty*VLOOKUP(Item,Food,Database!M$1,FALSE)) ->  | S82: =IF(OR(Item="",Qty=""),"",Qty*VLOOKUP(Item,Food,Database!N$1,FALSE)) ->  | T82: =IF(OR(Item="",Qty=""),"",Qty*VLOOKUP(Item,Food,Database!O$1,FALSE)) ->  | U82: =IF(OR(Item="",Qty=""),"",Qty*VLOOKUP(Item,Food,Database!P$1,FALSE)) ->  | V82: =IF(OR(Item="",Qty=""),"",Qty*VLOOKUP(Item,Food,Database!Q$1,FALSE)) ->  | W82: =IF(OR(Item="",Qty=""),"",Qty*VLOOKUP(Item,Food,Database!R$1,FALSE)) ->  | X82: =IF(OR(Item="",Qty=""),"",Qty*VLOOKUP(Item,Food,Database!S$1,FALSE)) -> 
H83: =IF(Item="","",VLOOKUP(Item,Food,Database!C$1,FALSE)) ->  | I83: =IF(OR(Item="",Qty=""),"",Qty*VLOOKUP(Item,Food,Database!D$1,FALSE)) ->  | J83: =IF(OR(Item="",Qty=""),"",Qty*VLOOKUP(Item,Food,Database!E$1,FALSE)) ->  | K83: =IF(OR(Item="",Qty=""),"",Qty*VLOOKUP(Item,Food,Database!F$1,FALSE)) ->  | L83: =IF(OR(Item="",Qty=""),"",Qty*VLOOKUP(Item,Food,Database!G$1,FALSE)) ->  | M83: =IF(OR(Item="",Qty=""),"",Qty*VLOOKUP(Item,Food,Database!H$1,FALSE)) ->  | N83: =IF(OR(Item="",Qty=""),"",Qty*VLOOKUP(Item,Food,Database!I$1,FALSE)) ->  | O83: =IF(OR(Item="",Qty=""),"",Qty*VLOOKUP(Item,Food,Database!J$1,FALSE)) ->  | P83: =IF(OR(Item="",Qty=""),"",Qty*VLOOKUP(Item,Food,Database!K$1,FALSE)) ->  | Q83: =IF(OR(Item="",Qty=""),"",Qty*VLOOKUP(Item,Food,Database!L$1,FALSE)) ->  | R83: =IF(OR(Item="",Qty=""),"",Qty*VLOOKUP(Item,Food,Database!M$1,FALSE)) ->  | S83: =IF(OR(Item="",Qty=""),"",Qty*VLOOKUP(Item,Food,Database!N$1,FALSE)) ->  | T83: =IF(OR(Item="",Qty=""),"",Qty*VLOOKUP(Item,Food,Database!O$1,FALSE)) ->  | U83: =IF(OR(Item="",Qty=""),"",Qty*VLOOKUP(Item,Food,Database!P$1,FALSE)) ->  | V83: =IF(OR(Item="",Qty=""),"",Qty*VLOOKUP(Item,Food,Database!Q$1,FALSE)) ->  | W83: =IF(OR(Item="",Qty=""),"",Qty*VLOOKUP(Item,Food,Database!R$1,FALSE)) ->  | X83: =IF(OR(Item="",Qty=""),"",Qty*VLOOKUP(Item,Food,Database!S$1,FALSE)) -> 
H84: =IF(Item="","",VLOOKUP(Item,Food,Database!C$1,FALSE)) ->  | I84: =IF(OR(Item="",Qty=""),"",Qty*VLOOKUP(Item,Food,Database!D$1,FALSE)) ->  | J84: =IF(OR(Item="",Qty=""),"",Qty*VLOOKUP(Item,Food,Database!E$1,FALSE)) ->  | K84: =IF(OR(Item="",Qty=""),"",Qty*VLOOKUP(Item,Food,Database!F$1,FALSE)) ->  | L84: =IF(OR(Item="",Qty=""),"",Qty*VLOOKUP(Item,Food,Database!G$1,FALSE)) ->  | M84: =IF(OR(Item="",Qty=""),"",Qty*VLOOKUP(Item,Food,Database!H$1,FALSE)) ->  | N84: =IF(OR(Item="",Qty=""),"",Qty*VLOOKUP(Item,Food,Database!I$1,FALSE)) ->  | O84: =IF(OR(Item="",Qty=""),"",Qty*VLOOKUP(Item,Food,Database!J$1,FALSE)) ->  | P84: =IF(OR(Item="",Qty=""),"",Qty*VLOOKUP(Item,Food,Database!K$1,FALSE)) ->  | Q84: =IF(OR(Item="",Qty=""),"",Qty*VLOOKUP(Item,Food,Database!L$1,FALSE)) ->  | R84: =IF(OR(Item="",Qty=""),"",Qty*VLOOKUP(Item,Food,Database!M$1,FALSE)) ->  | S84: =IF(OR(Item="",Qty=""),"",Qty*VLOOKUP(Item,Food,Database!N$1,FALSE)) ->  | T84: =IF(OR(Item="",Qty=""),"",Qty*VLOOKUP(Item,Food,Database!O$1,FALSE)) ->  | U84: =IF(OR(Item="",Qty=""),"",Qty*VLOOKUP(Item,Food,Database!P$1,FALSE)) ->  | V84: =IF(OR(Item="",Qty=""),"",Qty*VLOOKUP(Item,Food,Database!Q$1,FALSE)) ->  | W84: =IF(OR(Item="",Qty=""),"",Qty*VLOOKUP(Item,Food,Database!R$1,FALSE)) ->  | X84: =IF(OR(Item="",Qty=""),"",Qty*VLOOKUP(Item,Food,Database!S$1,FALSE)) -> 
D85: TOTAL | I85: =IF(SUM(I75:I84)=0,"",SUM(I75:I84)) ->  | J85: =IF(SUM(J75:J84)=0,"",SUM(J75:J84)) -> 
D86: Percentage (in Calories) | K86: =IF(K85="","",(K85*9)/(K85*9+(S85-T85)*4+X85*4)) ->  | S86: =IF(S85="","",(S85-T85)*4/(K85*9+(S85-T85)*4+X85*4)) ->  | X86: =IF(X85="","",X85*4/(K85*9+(S85-T85)*4+X85*4)) -> 
B87: =B2 -> 9 | F87: WEEKLY AVERAGE | I87: =IF(ISERROR(AVERAGE(I85,I73,I61,I49,I37,I25,I13))=TRUE,"",IF(AVERAGE(I85,I73,I61,I49,I37,I25,I13)=0,"",AVERAGE(I85,I73,I61,I49,I37,I25,I13))) ->  | P87: =IF(ISERROR(AVERAGE(P85,P73,P61,P49,P37,P25,P13))=TRUE,"",IF(AVERAGE(P85,P73,P61,P49,P37,P25,P13)=0,"",AVERAGE(P85,P73,P61,P49,P37,P25,P13))) -> 
F88: Percentage (in Calories) | K88: =IF(K87="","",(K87*9)/(K87*9+(S87-T87)*4+X87*4)) ->  | S88: =IF(S87="","",(S87-T87)*4/(K87*9+(S87-T87)*4+X87*4)) ->  | X88: =IF(X87="","",X87*4/(K87*9+(S87-T87)*4+X87*4)) -> 
